Workbook

Sheet Parametros (hidden)
A1: DEPENDENCIA | B1: Regional | D1: CONCEPTO | E1: M | F1: SI | G1: N/A | H1: INICIAL | I1: MACROREGIONES | J1: OPERADOR | K1: COMISION | L1: DESCUENTO
A2: N/A | B2: N/A | D2: ALIMENTACIÓN | E2: F | F2: NO | H2: MODIFICACIÓN | I2: UNICA | J2: PUBBLICA S.A.S | K2: 0.0634 | L2: 0
A3: Dirección Administrativa | B3: Amazonas | D3: ALQUILER TÉCNICA / OTROS | I3: X | J3: X | K3: 0 | L3: 0
A4: Dirección de Abastecimiento | B4: Antioquia | D4: CONECTIVIDAD | E4: NACIONAL | F4: HONORARIOS | I4: X | J4: X | K4: 0 | L4: 0
A5: Dirección de Contratación | B5: Arauca | D5: EMERGENCIA Y CONTINGENCIA | E5: EXTRANJERO | F5: OTROS | I5: X | J5: X | K5: 0 | L5: 0
A6: Dirección de Familias, Comunidades y Pueblos | B6: Atlántico | D6: ENERGÌA | F6: N/A | I6: X | J6: X | K6: 0 | L6: 0
A7: Dirección de Talento Humano | B7: Bogotá | D7: ILUMINACIÓN
A8: Dirección de Tecnologías de la Información | B8: Bolívar | D8: MATERIALES Y OTROS | E8: AHORROS | F8: IVA
A9: Dirección de Infancias y Adolescencias | B9: Boyacá | D9: MENAJE | E9: CORRIENTE | F9: IPC
A10: Dirección de Nutrición | B10: Caldas | D10: MOBILIARIO | F10: N/A
A11: Dirección de Planeación y Control de Gestión | B11: Caquetá | D11: PERSONAL
A12: Dirección de Primera Infancia | B12: Casanare | D12: REGISTRO
A13: Dirección de Protección Especial | B13: Cauca | D13: SALONES Y ALOJAMIENTO
A14: Dirección de Relación con la Ciudadanía | B14: Cesar | D14: SONIDO
A15: Dirección Financiera | B15: Chocó | D15: TRADUCCIÓN
A16: Dirección General | B16: Córdoba | D16: TRANSPORTE
A17: Dirección SNBF | B17: Cundinamarca | D17: VIDEO
A18: Oficina Aseguramiento a la Calidad | B18: Guainía | D18: VIRTUAL / HIBRIDO
A19: Oficina Asesora de Comunicaciones | B19: Guaviare | D19: OTROS
A20: Oficina Asesora Jurídica | B20: Huila
A21: Oficina Cooperación y Convenios | B21: La Guajira
A22: Oficina de Control Interno | B22: Magdalena
A23: Oficina de Control Interno Disciplinario | B23: Meta
A24: Oficina Gestión Regional | B24: Nariño
A25: Secretaria General | B25: Norte de Santander
A26: Subdirección General | B26: Putumayo
A27: Regional Amazonas | B27: Quindío
A28: Regional Antioquia | B28: Risaralda
A29: Regional Arauca | B29: San Andrés
A30: Regional Atlántico | B30: Santander
A31: Regional Bogotá | B31: Sucre
A32: Regional Bolívar | B32: Tolima
A33: Regional Boyacá | B33: Valle del Cauca
A34: Regional Caldas | B34: Vaupés
A35: Regional Caquetá | B35: Vichada
A36: Regional Casanare
A37: Regional Cauca
A38: Regional Cesar
A39: Regional Chocó
A40: Regional Córdoba
A41: Regional Cundinamarca
A42: Regional Guainía
A43: Regional Guaviare
A44: Regional Huila
A45: Regional La Guajira
A46: Regional Magdalena
A47: Regional Meta
A48: Regional Nariño
A49: Regional Norte de Santander
A50: Regional Putumayo
A51: Regional Quindío
A52: Regional Risaralda
A53: Regional San Andrés
A54: Regional Santander
A55: Regional Sucre
A56: Regional Tolima
A57: Regional Valle del Cauca
A58: Regional Vaupés
A59: Regional Vichada

Sheet Tarifario (hidden)
A1: TARIFARIO - DESCRIPCION DE ITEMS | K1: ADJUDICADO A. IVA
A2: ITEM | B2: CONCEPTO | C2: BIEN O SERVICIO REQUERIDO | D2: DESCRIPCION | E2: UNIDAD DE MEDIDA | F2: Tarifa IVA | G2: Precio Techo unitario antes de IVA | H2: Precio unitario IVA Incluido | K2: 0.4137
A3: 1 | B3: ALIMENTACIÓN | C3: Refrigerio No Perecedero | D3: El Refrigerio esta compuesto: • Dos (2) productos de paquete (snack) entre 35 y 70 gramos • Bebida: Jugo de caja de 200 ml / jugo de botella plástica de 300 ml / gaseosa botella plástica de 250 ml • Fruta de cosecha • Empacado Incluye transporte (distribución en sitio de realización del evento o actividad) y empaque biodegradable | E3: UNIDAD | F3: 0.19 | G3: 18669 | H3: =+ROUND(G3*(1+F3),0) -> 22216 | K3: 10945 | L3: =+ROUND((G3*(1-$K$2)),0) -> 10946 | M3: =+K3-L3 -> -1
A4: 2 | B4: ALIMENTACIÓN | C4: Refrigerios Tipo A | D4: El Refrigerio esta compuesto: • Producto de sal o de dulce de 150 gramos o sándwich Gourmet (pan tipo árabe o baguette o aliñado especial, 2 rodajas de jamón de (cordero o pierna) de 70g, 2 rodajas de queso (doble crema o mozzarella) 60 gr de lechuga rizada y tomate). ** Sandwich o producto sustituto. • Bebida: Jugo de fruta Néctar, leche o derivados, sorbetes, malteada, gaseosas en empaque comercial duro, de vidrio o plástico o Tetrapak o lata. No en bolsas •Fruta de 150 gramos • Postre entre 35 y 70 gr Incluye transporte (distribución en sitio de realización del evento o actividad) y empaque biodegradable | E4: UNIDAD | F4: 0.19 | G4: 22095 | H4: =+ROUND(G4*(1+F4),0) -> 26293 | K4: 12954 | L4: =+ROUND((G4*(1-$K$2)),0) -> 12954 | M4: =+K4-L4 -> 0
A5: 3 | B5: ALIMENTACIÓN | C5: Refrigerios Tipo B | D5: El Refrigerio esta compuesto: • Producto de sal o de dulce de 200 gramos o sándwich gourmet (pan tipo árabe o baguette o aliñado especial, 2 rodajas de jamón de (cordero o pierna) de 70 g, 2 rodajas de queso (doble crema o mozzarella) 60 gr de lechuga rizada y tomate). ** Sandwich o producto sustituto. • Bebida: jugo Néctar de 200 ml, jugo de botella plástica de 300 ml, gaseosa botella plástica de 250 ml (tipo Pet) • Fruta de 150 gramos • Postre entre 35 y 70 gr • Empacado Incluye transporte (distribución en sitio de realización del evento o actividad) y empaque biodegradable | E5: UNIDAD | F5: 0.19 | G5: 23030 | H5: 27406 | K5: 13502 | L5: 13502 | M5: 0
A6: 4 | B6: ALIMENTACIÓN | C6: Refrigerios Tipo C | D6: El Refrigerio esta compuesto: • Producto de sal o de dulce de 200 gramos o sándwich (pan tipo árabe o baguette o aliñado especial, 2 rodajas de jamón de (cordero o pierna) de 70 g, 2 rodajas de queso (doble crema o mozzarella) 60 gr de lechuga rizada y tomate). ** Sandwich o producto sustituto. • Bebida: jugo Néctar 200 ml, jugo natural en agua servido en vaso o copa, gaseosa botella plástica de 250 ml (tipo pet) • Fruta de 150 gramos • Postre entre 35 y 70 gr • Servido en loza Incluye transporte (distribución en sitio de realización del evento o actividad) y empaque biodegradable | E6: UNIDAD | F6: 0.19 | G6: 23125 | H6: 27519 | K6: 13558 | L6: 13558 | M6: 0
A7: 5 | B7: ALIMENTACIÓN | C7: Refrigerio Para Protocolo | D7: El Refrigerio esta compuesto: • Producto de sal o de dulce: muffins / sándwich gourmet (pan tipo árabe o baguette o aliñado especial, 2 rodajas de jamón de (cordero o pierna) de 70 g, 2 rodajas de queso (doble crema o mozzarella) 60 gr de lechuga rizada y tomate). ** Sandwich o producto sustituto. • Bebida: Jugo natural de frutas, brocheta de frutas. • Acompañamiento: pasteles, postres, dulces. • Empacado o servido en menaje de loza nacional o importada según corresponda y decorado para ocasiones especiales. Incluye transporte (distribución en sitio de realización del evento o actividad) y empaque biodegradable | E7: UNIDAD | F7: 0.19 | G7: 30837 | H7: 36696 | K7: 18079 | L7: 18080 | M7: -1
A8: 6 | B8: ALIMENTACIÓN | C8: Desayuno Americano | D8: El Desayuno Continental estar compuesto: • Carbohidrato de 150 gramos • Bebida caliente de 12 onzas • Proteína 200 gramos • mantequilla 10 gramos • mermelada 15 gramos • Fruta de 150 gramos Incluye transporte, menaje (servido en plato o mesa según corresponda) y empaque biodegradable (Puesto Por Persona Que Incluye, Plato Base, Plato Fuerte, Plato Sopa, Vaso Largo O De Jugo, Copa De Agua, Tenedor Fuerte, Cuchillo Fuerte, Tenedor O Cuchara De Entrada, Plato Postre Cuchara O Tenedor Para Postre, Cuchillo De Untar, Según Corresponda) | E8: UNIDAD | F8: 0.19 | G8: 30074 | H8: 35788 | K8: 17632 | L8: 17632 | M8: 0
A9: 7 | B9: ALIMENTACIÓN | C9: Desayuno Continental | D9: El Desayuno Continental estar compuesto: • Carbohidrato de 120 gramos • Bebida caliente de 12 onzas • Proteína 200 gramos • Mantequilla 10 gramos • Mermelada 15 gramos • Fruta de 150 gramos Incluye transporte, menaje (servido en plato o mesa según corresponda) y empaque biodegradable (Puesto Por Persona Que Incluye, Plato Base, Plato Fuerte, Plato Sopa, Vaso Largo O De Jugo, Copa De Agua, Tenedor Fuerte, Cuchillo Fuerte, Tenedor O Cuchara De Entrada, Plato Postre Cuchara O Tenedor Para Postre, Cuchillo De Untar, Según Corresponda) | E9: UNIDAD | F9: 0.19 | G9: 29093 | H9: 34621 | K9: 17057 | L9: 17057 | M9: 0
A10: 8 | B10: ALIMENTACIÓN | C10: Desayuno Buffet | D10: El Desayuno Buffet debe estar compuesto: • Carbohidrato de 120 gramos • Cereales • Variedad de quesos y jamones • Panes • Huevos al gusto • Proteína 200 gramos • Bebida caliente de 20 onzas • Mantequilla 10 gramos • Mermelada 15 gramos • Variedad de frutas (150 gramos porción) Incluye transporte, menaje (servido en plato o mesa según corresponda) (Puesto Por Persona Que Incluye, Plato Base, Plato Fuerte, Plato Sopa, Vaso Largo O De Jugo, Copa De Agua, Tenedor Fuerte, Cuchillo Fuerte, Tenedor O Cuchara De Entrada, Plato Postre Cuchara O Tenedor Para Postre, Cuchillo De Untar, Según Corresponda) | E10: UNIDAD | F10: 0.19 | G10: 37681 | H10: 44840 | K10: 22092 | L10: 22092 | M10: 0
A11: 9 | B11: ALIMENTACIÓN | C11: Desayuno Light | D11: El Desayuno Light debe estar compuesto: • Bebida caliente de 20 onzas • Porciones de fruta de 150 gramos cada una Incluye transporte, menaje (servido en plato o mesa según corresponda) y empaque biodegradable (Puesto Por Persona Que Incluye, Plato Base, Plato Fuerte, Plato Sopa, Vaso Largo O De Jugo, Copa De Agua, Tenedor Fuerte, Cuchillo Fuerte, Tenedor O Cuchara De Entrada, Plato Postre Cuchara O Tenedor Para Postre, Cuchillo De Untar, Según Corresponda) | E11: UNIDAD | F11: 0.19 | G11: 27249 | H11: 32426 | K11: 15976 | L11: 15976 | M11: 0
A12: 10 | B12: ALIMENTACIÓN | C12: Desayuno Típico | D12: El Desayuno Típico debe estar compuesto: • Caldo de costilla (res) / tamal / changua • Carbohidrato de 120 gramos • Bebida caliente de 20 onzas Incluye transporte, menaje (servido en plato o mesa según corresponda) y empaque biodegradable (Puesto Por Persona Que Incluye, Plato Base, Plato Fuerte, Plato Sopa, Vaso Largo O De Jugo, Copa De Agua, Tenedor Fuerte, Cuchillo Fuerte, Tenedor O Cuchara De Entrada, Plato Postre Cuchara O Tenedor Para Postre, Cuchillo De Untar, Según Corresponda) | E12: UNIDAD | F12: 0.19 | G12: 30577 | H12: 36387 | K12: 17927 | L12: 17927 | M12: 0
A13: 11 | B13: ALIMENTACIÓN | C13: Almuerzo o Cena Ejecutivo (a) | D13: El Almuerzo o Cena Ejecutivo (a) debe estar compuesto: • Proteína de 250 gr • Carbohidratos de 150 gr • Reguladores de 150 gr • Bebida de 250 ml • Postre entre 70 gr El operador debe presentar (3) opciones de Proteína / Vegetariano, Carbohidratos, Reguladores, Bebida y Postre. Incluye transporte, menaje (servido en plato o mesa según corresponda) y empaque biodegradable (Puesto Por Persona Que Incluye, Plato Base, Plato Fuerte, Plato Sopa, Vaso Largo O De Jugo, Copa De Agua, Tenedor Fuerte, Cuchillo Fuerte, Tenedor O Cuchara De Entrada, Plato Postre Cuchara O Tenedor Para Postre, Cuchillo De Untar, Según Corresponda) | E13: UNIDAD | F13: 0.19 | G13: 38955 | H13: 46356 | K13: 22839 | L13: 22839 | M13: 0
A14: 12 | B14: ALIMENTACIÓN | C14: Almuerzo o Cena (Servido a la Mesa o Buffet ) | D14: El Almuerzo o Cena (servido a la Mesa o Buffet ) debe estar compuesto: • Proteína de 250 gr • Carbohidratos de 150 gr • Reguladores de 150 gr • Bebida de 250 ml • Postre entre 70 gr El operador debe presentar (3) opciones de Proteína / Vegetariano, Carbohidratos, Reguladores, Bebida y Postre. Incluye transporte, menaje (servido en plato o mesa según corresponda) (Puesto Por Persona Que Incluye, Plato Base, Plato Fuerte, Plato Sopa, Vaso Largo O De Jugo, Copa De Agua, Tenedor Fuerte, Cuchillo Fuerte, Tenedor O Cuchara De Entrada, Plato Postre Cuchara O Tenedor Para Postre, Cuchillo De Untar, Según Corresponda) | E14: UNIDAD | F14: 0.19 | G14: 48314 | H14: 57494 | K14: 28326 | L14: 28326 | M14: 0
A15: 13 | B15: ALIMENTACIÓN | C15: Almuerzo o Cena Protocolo | D15: El mismo puede contener cualquiera de las siguientes solicitudes: • Entrada: sopa, crema, consomé, fruta • Corte de carnes, aves, pescados • 2 porciones de carbohidrato • Regulador • Bebida • Postre Incluye transporte, menaje (servido en plato o mesa según corresponda) (Puesto Por Persona Que Incluye, Plato Base, Plato Fuerte, Plato Sopa, Vaso Largo O De Jugo, Copa De Agua, Tenedor Fuerte, Cuchillo Fuerte, Tenedor O Cuchara De Entrada, Plato Postre Cuchara O Tenedor Para Postre, Cuchillo De Untar, Según Corresponda) | E15: UNIDAD | F15: 0.19 | G15: 61332 | H15: 72985 | K15: 35958 | L15: 35959 | M15: -1
A16: 14 | B16: ALIMENTACIÓN | C16: Almuerzo (empacado) | D16: Sopa o fruta, proteína 250 gr, carbohidrato, cereal, ensalada o verdura y jugo Néctar y postre. Incluye transporte distribución en sitio de realización del evento o actividad y empaque biodegradable | E16: UNIDAD | F16: 0.19 | G16: 36916 | H16: 43930 | K16: 21643 | L16: 21644 | M16: -1
A17: 15 | B17: ALIMENTACIÓN | C17: Estación De Café Tipo A | D17: El mismo puede contener cualquiera de las siguientes solicitudes: • Debe llevar tabla de queso importados • Galletas saltinas Noel individuales • Galletas danesas • Almojábanas frescas • mañanitas • De todito • Achiras de ramo • Platanitos de frito lay • Nueces por separado: marañón, almendra, maní, pistacho. • Jugo natural de mandarina en vaso de vidrio o cristal • Pan baguete • Pan arándanos • Corazones y tortas • Café, capuchino, chocolate, aguas aromáticas y agua servido en pocillo de porcelana o vaso de cristal o vidrio según corresponda. • Se debe servir en menaje de loza NOTA: Debe contener 4 productos a elección de la lista más las bebidas de la lista contando siempre con el café, te, aromática y como bebida adicional chocolate o capuchino Para estas opciones las estaciones de café deberán venir servido en menaje de porcelana Debe incluir mesa o tablón con spandex. • Incluye el transporte, distribución en sitio de realización del evento o actividad o servido en plato o mesa según corresponda. Para estas opciones las estaciones de café deberán venir servido en menaje de porcelana. | E17: UNIDAD / POR PERSONA | F17: 0.19 | G17: 25971 | H17: 30905 | K17: 15226 | L17: 15227 | M17: -1
A18: 16 | B18: ALIMENTACIÓN | C18: Estación de café (Simple) Tipo B | D18: • Café, tinto, aromática, té servido en vaso biodegradable de 4 onzas (servido en plato o mesa según corresponda e impuesto al consumo si aplica) • Agua servida en vaso material biodegradable de 10 onzas. Para estas opciones las estaciones de café deberán venir servido en menaje de porcelana Debe incluir mesa o tablón con mantel. • Incluye el transporte, distribución en sitio de realización del evento o actividad o servido en plato o mesa según corresponda. | E18: UNIDAD / POR PERSONA | F18: 0.19 | G18: 15166 | H18: 18048 | K18: 8891 | L18: 8892 | M18: -1
A19: 17 | B19: ALIMENTACIÓN | C19: Estación de café (Break) Tipo C | D19: • Café, tinto, aromática, té servido en vaso en material biodegradable de 4 onzas • Agua servida en vaso en material biodegradable de 10 onzas. • Acompañados de galletas y colaciones. Para estas opciones las estaciones de café deberán venir servido en menaje de porcelana Debe incluir mesa o tablón con mantel. • Incluye el transporte, distribución en sitio de realización del evento o actividad o servido en plato o mesa según corresponda. | E19: UNIDAD / POR PERSONA | F19: 0.19 | G19: 17037 | H19: 20274 | K19: 9988 | L19: 9989 | M19: -1
A20: 18 | B20: ALIMENTACIÓN | C20: Estación de café Protocolo | D20: • Cappuccino, mocaccino, chocolate, café, tinto de 6 onzas, • Agua y jugos naturales de 10 onzas • Botella de gaseosa de 400 ml, • muffins, colaciones. Para estas opciones las estaciones de café deberán venir servido en menaje de porcelana Debe incluir mesa o tablón con spandex. • Incluye el transporte, distribución en sitio de realización del evento o actividad o servido en plato o mesa según corresponda e impuesto al consumo si aplica. Para estas opciones las estaciones de café deberán venir servido en menaje de porcelana. | E20: UNIDAD / POR PERSONA | F20: 0.19 | G20: 27480 | H20: 32701 | K20: 16111 | L20: 16112 | M20: -1
A21: 19 | B21: ALIMENTACIÓN | C21: Hidratación Agua Bolsa | D21: Hidratación: bolsa por 250 ml Incluye transporte (distribución en sitio de realización del evento o actividad) | E21: UNIDAD | F21: 0.19 | G21: 1277 | H21: 1520 | K21: 748 | L21: 749 | M21: -1
A22: 20 | B22: ALIMENTACIÓN | C22: Hidratación Botella de Agua pequeña | D22: Botella de agua de 300 ml Incluye transporte (distribución en sitio de realización del evento o actividad) | E22: UNIDAD | F22: 0.19 | G22: 2055 | H22: 2445 | K22: 1204 | L22: 1205 | M22: -1
A23: 21 | B23: ALIMENTACIÓN | C23: Hidratación Botella de Agua mediana | D23: Botella de agua de 600 ml Incluye transporte (distribución en sitio de realización del evento o actividad) | E23: UNIDAD | F23: 0.19 | G23: 4008 | H23: 4770 | K23: 2349 | L23: 2350 | M23: -1
A24: 22 | B24: ALIMENTACIÓN | C24: Hidratación Botellón | D24: botellón de agua 20 litros con soporte en plástico Incluye transporte (distribución en sitio de realización del evento o actividad) | E24: UNIDAD | F24: 0.19 | G24: 29271 | H24: 34832 | K24: 17161 | L24: 17162 | M24: -1
A25: 23 | B25: ALIMENTACIÓN | C25: Nevera de icopor tipo cava para hidratación pequeña | D25: Nevera de icopor 10 Litros. Incluye hielo seco - Alquiler por día.Incluye: transporte. | E25: Día | F25: 0.19 | G25: 32694 | H25: 38906 | K25: 19168 | L25: 19168 | M25: 0
A26: 24 | B26: ALIMENTACIÓN | C26: Nevera de icopor tipo cava para hidratación mediana | D26: Nevera de icopor 40 Litros. Incluye hielo seco - Alquiler por día. Incluye: transporte. | E26: Día | F26: 0.19 | G26: 47377 | H26: 56379 | K26: 27777 | L26: 27777 | M26: 0
A27: 25 | B27: ALIMENTACIÓN | C27: Nevera de icopor tipo cava para hidratación grande | D27: Nevera de icopor 80 Litros. Incluye hielo seco - Alquiler por día. Incluye: transporte. | E27: Día | F27: 0.19 | G27: 60671 | H27: 72198 | K27: 35571 | L27: 35571 | M27: 0
A28: 26 | B28: ALIMENTACIÓN | C28: Nevera tipo cava industrial | D28: Nevera tipo cava industrial con puerta de vidrio y piso blanco de pie (instalada, funcional y desinstalada), vertical u horizontal según solicitud 50 litros - Alquiler por día. Incluye: transporte. | E28: Día | F28: 0.19 | G28: 219415 | H28: 261104 | K28: 128642 | L28: 128643 | M28: -1
A29: 27 | B29: ALIMENTACIÓN | C29: Nevera tipo cava industrial | D29: Nevera tipo cava industrial con puerta de vidrio y piso blanco de pie (instalada, funcional y desinstalada), vertical u horizontal según solicitud 100 litros - Alquiler por día. Incluye: transporte. | E29: Día | F29: 0.19 | G29: 287672 | H29: 342330 | K29: 168662 | L29: 168662 | M29: 0
A30: 28 | B30: ALQUILER TÉCNICA / OTROS | C30: Computador De Escritorio | D30: Alquiler Computador de escritorio. CPU Procesador min. Intel Core i5 U o AMD PRO, MRAM min. 4GB DDR2, Disco Duro 250 GB (7200 rpm) SATA, Mouse, Monitor panel plano 14” - 15”, Unidad DVD+/-RW integrada, Puertos mínimo 3 USB 2.0, puerto de video 1 VGA y 1 puerto HDMI integrado. Conectividad integrada tarjeta de red 1000/100/10 y conexión inalámbrica 802.11 a/b/g/n, punto de red Gigabit Ethernet (RJ-45), Audio interno, Teclado en español, Sistema operativo Microsoft® Windows® 7 Professional o superior, Office 2010 o superior, Antivirus y Anti spam instalados y actualizado a última versión, Compresor de archivos WinZip versión 12 o superior, Acrobat Reader. Todo lo anterior con su respectiva licencia y medios de instalación y configuración que permitan la lectura de archivos y la proyección de los mismos. Incluye: transporte. | E30: Día | F30: 0.19 | G30: 156718 | H30: 186494 | K30: 91883 | L30: 91884 | M30: -1
A31: 29 | B31: ALQUILER TÉCNICA / OTROS | C31: Computador Portátil | D31: Alquiler Computador Portátil. CPU Procesador min. Intel Core i5 U o AMD PRO, MRAM min. 4GB DDR2, Disco Duro 250 GB (7200 rpm) SATA, Batería duración 3 hrs min, cargador, Mouse, Monitor panel plano 14” - 15”, Unidad DVD+/-RW integrada, Puertos mínimo 3 USB 2.0, puerto de video 1 VGA y 1 puerto HDMI integrado. Conectividad integrada tarjeta de red 1000/100/10 y conexión inalámbrica 802.11 a/b/g/n, punto de red Gigabit Ethernet (RJ-45), Audio interno, Teclado en español, Sistema operativo Microsoft® Windows® 7 Professional o superior, Office 2010 o superior, Antivirus y Anti spam instalados y actualizado a última versión, Compresor de archivos WinZip versión 12 o superior, Acrobat Reader. Todo lo anterior con su respectiva licencia y medios de instalación y configuración que permitan la lectura de archivos y la proyección de los mismos. Incluye: transporte. | E31: Día | F31: 0.19 | G31: 191446 | H31: 227821 | K31: 112244 | L31: 112245 | M31: -1
A32: 30 | B32: ALQUILER TÉCNICA / OTROS | C32: Tablet 10" | D32: Alquiler de Tablet de 10". Memoria Interna 64 GB, Memoria Ram 4 GB, Núcleos del Procesador (8) Velocidad del procesador (8), Marca del Procesador QUALCOMM SNAPDRAGON 8-CORE 439, Sistema Operativo Android, Duración de la Batería (10 Horas Aproximadas) Incluye: audífonos. Todo lo anterior con su respectiva licencia y medios de instalación y configuración que permitan la lectura de archivos y la proyección de los mismos. Incluye: transporte. | E32: Día | F32: 0.19 | G32: 112243 | H32: 133569 | K32: 65807 | L32: 65808 | M32: -1
A33: 31 | B33: ALQUILER TÉCNICA / OTROS | C33: Cable HDMI | D33: Cable HDMI de 15 MTS a 40 MTS para señal de video (SOLO SE COBRA UN DIA) independiente del la duración del evento. Incluye: transporte | E33: Día | F33: 0.19 | G33: 23933 | H33: 28480 | K33: 14031 | L33: 14032 | M33: -1
A34: 32 | B34: ALQUILER TÉCNICA / OTROS | C34: Cable VGA | D34: Cable VGA de 15 MTS a 40 MTS para señal de video (SOLO SE COBRA UN DIA) independiente del la duración del evento. Incluye: transporte | E34: Día | F34: 0.19 | G34: 26665 | H34: 31731 | K34: 15633 | L34: 15634 | M34: -1
A35: 33 | B35: ALQUILER TÉCNICA / OTROS | C35: impresora láser multifuncional | D35: A color y blanco u negro con escáner y copiadora / una resma tamaño carta, tóner nuevo y dejarlo en estado de funcionamiento (Con capacidad para 500 copias o impresiones) Incluye: transporte | E35: Día | F35: 0.19 | G35: 254117 | H35: 302399 | K35: 148988 | L35: 148989 | M35: -1
A36: 34 | B36: ALQUILER TÉCNICA / OTROS | C36: Pointer | D36: Presentador Inalámbrico control remoto (SOLO SE COBRA UN DIA) Incluye: transporte | E36: Día | F36: 0.19 | G36: 70733 | H36: 84172 | K36: 41470 | L36: 41471 | M36: -1
A37: 35 | B37: ALQUILER TÉCNICA / OTROS | C37: Pointer Perfect Cute | D37: Presentador profesional inalámbrico control remoto. Incluye: transporte | E37: Día | F37: 0.19 | G37: 91218 | H37: 108549 | K37: 53481 | L37: 53481 | M37: 0
A38: 36 | B38: ALQUILER TÉCNICA / OTROS | C38: Base de TV | D38: Base alta o de pared para Tv de 32" a 75". Incluye: transporte | E38: Día | F38: 0.19 | G38: 68535 | H38: 81557 | K38: 40181 | L38: 40182 | M38: -1
A39: 37 | B39: ALQUILER TÉCNICA / OTROS | C39: Ventilador tipo Industrial | D39: Ventilador para evento tipo industrial con base de 1 m de diámetro. Incluye: transporte | E39: Día | F39: 0.19 | G39: 120677 | H39: 143606 | K39: 70752 | L39: 70753 | M39: -1
A40: 38 | B40: ALQUILER TÉCNICA / OTROS | C40: Ventilador de piso | D40: Ventilador de piso para tarima. Incluye: transporte | E40: Día | F40: 0.19 | G40: 74625 | H40: 88804 | K40: 43752 | L40: 43753 | M40: -1
A41: 39 | B41: ALQUILER TÉCNICA / OTROS | C41: Aire Acondicionado de 5 Toneladas | D41: Alquiler e instalación de Aire Acondicionado de 5 Toneladas y conexión a punto de energía. Incluye: transporte | E41: Día | F41: 0.19 | G41: 535455 | H41: 637191 | K41: 313937 | L41: 313937 | M41: 0
A42: 40 | B42: ALQUILER TÉCNICA / OTROS | C42: Extensión eléctrica 3 mts | D42: Extensión eléctrica de 3 mts (SOLO SE COBRA UNA VEZ POR EVENTO INDEPENDIENTE DEL NÚMERO DE DÍAS DE USO). Incluye: transporte | E42: Día | F42: 0.19 | G42: 39838 | H42: 47407 | K42: 23356 | L42: 23357 | M42: -1
A43: 41 | B43: ALQUILER TÉCNICA / OTROS | C43: Extensiones Cable Encauchetado 3x14 o 3x12 | D43: Suministrar y montar extensiones en Cable Encauchetado 3X14 o 3X12 para los diferentes Puntos, con 1 Toma Doble de 110 Wt, mínimo de 20 mts (SOLO SE COBRA UNA VEZ POR EVENTO INDEPENDIENTE DEL NÚMERO DE DÍAS DE USO). Incluye: transporte | E43: Día | F43: 0.19 | G43: 44621 | H43: 53099 | K43: 26161 | L43: 26161 | M43: 0
A44: 42 | B44: ALQUILER TÉCNICA / OTROS | C44: Extensiones Cable encauchetado para puntos de comida | D44: Suministrar y montar extensiones en Cable Encauchetado y tomas 3 x 50 para los diferentes Puntos con 1 Toma Doble de 220 Wt, mínimo de 20 MTS (SOLO SE COBRA UNA VEZ POR EVENTO INDEPENDIENTE DEL NÚMERO DE DÍAS DE USO). Incluye: transporte | E44: Día | F44: 0.19 | G44: 51992 | H44: 61870 | K44: 30482 | L44: 30483 | M44: -1
A45: 43 | B45: ALQUILER TÉCNICA / OTROS | C45: Extensión eléctrica encauchetada 3 mts | D45: Extensión eléctrica encauchetada de 3 mts (SOLO SE COBRA UNA VEZ POR EVENTO INDEPENDIENTE DEL NÚMERO DE DÍAS DE USO). Incluye: transporte | E45: Día | F45: 0.19 | G45: 69797 | H45: 83058 | K45: 40921 | L45: 40922 | M45: -1
A46: 44 | B46: ALQUILER TÉCNICA / OTROS | C46: Extensión eléctrica encauchetada 15 mts | D46: Extensión eléctrica encauchetada de 15 mts (SOLO SE COBRA UNA VEZ POR EVENTO INDEPENDIENTE DEL NÚMERO DE DÍAS DE USO). Incluye: transporte | E46: Día | F46: 0.19 | G46: 99391 | H46: 118275 | K46: 58272 | L46: 58273 | M46: -1
A47: 45 | B47: ALQUILER TÉCNICA / OTROS | C47: Extensión eléctrica encauchetada 30 mts | D47: Extensión eléctrica encauchetada de 30 mts (SOLO SE COBRA UNA VEZ POR EVENTO INDEPENDIENTE DEL NÚMERO DE DÍAS DE USO). Incluye: transporte | E47: Día | F47: 0.19 | G47: 110561 | H47: 131568 | K47: 64821 | L47: 64822 | M47: -1
A48: 46 | B48: ALQUILER TÉCNICA / OTROS | C48: Regletas de 6 tomas | D48: Regleta de 6 Puestos con Switch De Reposición - Extención De 3 Mts De Largo. SOLO SE COBRA UNA VEZ POR EVENTO INDEPENDIENTE DEL NÚMERO DE DÍAS DE USO). Incluye: transporte | E48: Día | F48: 0.19 | G48: 47254 | H48: 56232 | K48: 27704 | L48: 27705 | M48: -1
A49: 47 | B49: ALQUILER TÉCNICA / OTROS | C49: Regletas de 8 tomas | D49: Regleta de 8 Puestos con cable de alimentación eléctrica de 1.5 mts en cable encauchetado. SOLO SE COBRA UNA VEZ POR EVENTO INDEPENDIENTE DEL NÚMERO DE DÍAS DE USO). Incluye: transporte | E49: Día | F49: 0.19 | G49: 97179 | H49: 115643 | K49: 56975 | L49: 56976 | M49: -1
A50: 48 | B50: ALQUILER TÉCNICA / OTROS | C50: Yellow Jacket / Tapacables con 3 canales | D50: Pasacalles Yellow Jackets con 3 canales, para los cables y mangueras de potencia, audio y vídeo. Incluye: transporte | E50: Día | F50: 0.19 | G50: 48638 | H50: 57879 | K50: 28516 | L50: 28516 | M50: 0
A51: 49 | B51: ALQUILER TÉCNICA / OTROS | C51: Yellow Jacket / Tapacables con 5 canales | D51: Pasacalles Yellow Jackets con 5 canales, para los cables y mangueras de potencia, audio y vídeo. Incluye: transporte | E51: Día | F51: 0.19 | G51: 63171 | H51: 75173 | K51: 37037 | L51: 37037 | M51: 0
A52: 50 | B52: ALQUILER TÉCNICA / OTROS | C52: trípodes | D52: trípode base stand metálico, con las siguientes características: Capacidad máxima de carga 40 Kgs. Materiales de construcción hierro y Nylon. Altura Máxima 170 cms. Dimensiones (cm) 170 x 80 x 80. Peso (Neto / Bruto) 3 / 5 Kgs. Incluye: transporte | E52: Día | F52: 0.19 | G52: 72717 | H52: 86533 | K52: 42633 | L52: 42634 | M52: -1
A53: 51 | B53: ALQUILER TÉCNICA / OTROS | C53: Video Beam 3000 Lumens | D53: Video Proyector de 3.000 Lumens con su respectiva base para piso o ser colgado, para proyectar imágenes de calidad superior o vídeos, debe incluir DVD. Incluye: transporte | E53: Día | F53: 0.19 | G53: 456330 | H53: 543033 | K53: 267546 | L53: 267546 | M53: 0
A54: 52 | B54: ALQUILER TÉCNICA / OTROS | C54: Video Beam 5000 Lumens | D54: Video Proyector de 5.000 Lumens con su respectiva base para piso o ser colgado, para proyectar imágenes de calidad superior o vídeos, debe incluir DVD. Incluye: transporte | E54: Día | F54: 0.19 | G54: 681775 | H54: 811312 | K54: 399724 | L54: 399725 | M54: -1
A55: 53 | B55: ALQUILER TÉCNICA / OTROS | C55: Video Beam 7000 Lumens | D55: Video Proyector de 7.000 Lumens con su respectiva base para piso o ser colgado, para proyectar imágenes de calidad superior o vídeos, debe incluir DVD. Incluye: transporte | E55: Día | F55: 0.19 | G55: 911363 | H55: 1084522 | K55: 534332 | L55: 534332 | M55: 0
A56: 54 | B56: ALQUILER TÉCNICA / OTROS | C56: Video Beam 10000 Lumens | D56: Video Proyector de 10.000 Lumens con su respectiva base para piso o ser colgado, para proyectar imágenes de calidad superior o vídeos, debe incluir DVD. Incluye: transporte | E56: Día | F56: 0.19 | G56: 1099607 | H56: 1308532 | K56: 644699 | L56: 644700 | M56: -1
A57: 55 | B57: ALQUILER TÉCNICA / OTROS | C57: Audífonos de diadema | D57: Audífonos de Diadema estereofónicos de alta fidelidad, dinámicos, supra-aurales, tipo cerrado, gama alta. Incluye: transporte | E57: Día | F57: 0.19 | G57: 57571 | H57: 68509 | K57: 33753 | L57: 33754 | M57: -1
A58: 56 | B58: ALQUILER TÉCNICA / OTROS | C58: Audífonos Portables | D58: Audífonos tipo diademas de un solo uso. Incluye: transporte | E58: Unidad | F58: 0.19 | G58: 61758 | H58: 73492 | K58: 36208 | L58: 36209 | M58: -1
A59: 57 | B59: ALQUILER TÉCNICA / OTROS | C59: In ear | D59: Audífonos de In ear de alto rendimiento - gama alta. Incluye: transporte | E59: Día | F59: 0.19 | G59: 66107 | H59: 78667 | K59: 38758 | L59: 38759 | M59: -1
A60: 58 | B60: ALQUILER TÉCNICA / OTROS | C60: Radio de 2 vías | D60: Punto a punto, de largo alcance. Incluye: transporte | E60: Día | F60: 0.19 | G60: 64963 | H60: 77306 | K60: 38087 | L60: 38088 | M60: -1
A61: 59 | B61: ALQUILER TÉCNICA / OTROS | C61: Radiocomunicación en sistema Avantel | D61: Sin llamadas, para cobertura entre localidades de Bogotá. Incluye: transporte | E61: Día | F61: 0.19 | G61: 82421 | H61: 98081 | K61: 48323 | L61: 48323 | M61: 0
A62: 60 | B62: ALQUILER TÉCNICA / OTROS | C62: Hazer con ventilador | D62: Generador de la niebla de la máquina de Hazer, Máquina de humo, con ventilador industrial. Incluye cableado y conexión a energía. . Incluye: transporte | E62: Día | F62: 0.19 | G62: 278641 | H62: 331583 | K62: 163367 | L62: 163367 | M62: 0
A63: 61 | B63: ALQUILER TÉCNICA / OTROS | C63: Sistema croma con iluminación | D63: Sistema croma con iluminación para lenguaje de señas (cámara de video, inter, monitor de retorno de video y luz frontal). Incluye: transporte | E63: Día | F63: 0.19 | G63: 520659 | H63: 619584 | K63: 305262 | L63: 305262 | M63: 0
A64: 62 | B64: ALQUILER TÉCNICA / OTROS | C64: Bandera de Colombia con asta | D64: Bandera de 2,0 x 1,5 MTS en satín, con base, asta y puntera en madera y Base. Incluye: transporte | E64: Día | F64: 0.19 | G64: 182308 | H64: 216947 | K64: 106887 | L64: 106887 | M64: 0
A65: 63 | B65: ALQUILER TÉCNICA / OTROS | C65: Rollo de Cinta de Seguridad | D65: Cinta para señalizar cerramientos Tipo: Señales de seguridad vial - Ancho: 20cm - Largo: 500 metros - Material: Plástico. Incluye: transporte | E65: unidad | F65: 0.19 | G65: 33525 | H65: 39895 | K65: 19655 | L65: 19656 | M65: -1
A66: 64 | B66: ALQUILER TÉCNICA / OTROS | C66: Señalización de emergencia | D66: Por 1m2, tela reflectiva ignifuga poliéster.elástico, a 2 x 1 tinta. Incluye: transporte | E66: unidad | F66: 0.19 | G66: 34247 | H66: 40754 | K66: 20078 | L66: 20079 | M66: -1
A67: 65 | B67: CONECTIVIDAD | C67: Alquiler de módem internet inalámbrico 10 gigas | D67: 10 gigas diarias 4G , (incluye personal técnico necesario), se debe entregar instalado y probado. Nota: El transporte esta implícito para la prestación del servicio. | E67: Día | F67: 0.19 | G67: 129047 | H67: 153566 | K67: 75660 | L67: 75660 | M67: 0
A68: 66 | B68: CONECTIVIDAD | C68: Alquiler de módem internet inalámbrico 20 gigas | D68: 20 gigas diarias 4G , (incluye personal técnico necesario), se debe entregar instalado y probado .Nota: El transporte esta implícito para la prestación del servicio. | E68: Día | F68: 0.19 | G68: 158317 | H68: =+ROUND(G68*(1+F68),0) -> 188397 | K68: 92821 | L68: =+ROUND((G68*(1-$K$2)),0) -> 92821 | M68: =+K68-L68 -> 0
A69: 67 | B69: CONECTIVIDAD | C69: Canal dedicado 10MB | D69: Canal dedicado para video, voz y datos con conexión 10 MB de subida y de descarga, 99% de disponibilidad y ruta alterna con mínimo de 10 MB, tráfico ilimitado, monitoreo y router que permita garantizar un throughput de acuerdo al ancho de banda solicitado. Incluye: instalación, desinstalación, personal técnico, configuración de equipos. Se debe entregar funcional y probado. Se debe realizar una prueba FTP para garantizar la tasa de transferencia de 8,75 MB/s y el ancho de banda contratado. Nota: El transporte esta implícito para la prestación del servicio. | E69: Día | F69: 0.19 | G69: 531921 | H69: 632986 | K69: 311865 | L69: 311865 | M69: 0
A70: 68 | B70: CONECTIVIDAD | C70: Canal dedicado 20MB | D70: Canal dedicado para video, voz y datos con conexión 20 MB de subida y de descarga, 99% de disponibilidad y ruta alterna con mínimo de 20 MB, tráfico ilimitado, monitoreo y router que permita garantizar un throughput de acuerdo al ancho de banda solicitado. Incluye: instalación, desinstalación, personal técnico, configuración de equipos. Se debe entregar funcional y probado. Se debe realizar una prueba FTP para garantizar la tasa de transferencia de 8,75 MB/s y el ancho de banda contratado. Nota: El transporte esta implícito para la prestación del servicio. | E70: Día | F70: 0.19 | G70: 867767 | H70: 1032643 | K70: 508771 | L70: 508772 | M70: -1
A71: 69 | B71: CONECTIVIDAD | C71: Canal dedicado 50MB | D71: Canal dedicado para video, voz y datos con conexión 50 MB de subida y de descarga, 99% de disponibilidad y ruta alterna con mínimo de 50 MB, tráfico ilimitado, monitoreo y router que permita garantizar un throughput de acuerdo al ancho de banda solicitado. Incluye: instalación, desinstalación, personal técnico, configuración de equipos. Se debe entregar funcional y probado. Se debe realizar una prueba FTP para garantizar la tasa de transferencia de 8,75 MB/s y el ancho de banda contratado. Nota: El transporte esta implícito para la prestación del servicio. | E71: Día | F71: 0.19 | G71: 1143586 | H71: 1360867 | K71: 670484 | L71: 670484 | M71: 0
A72: 70 | B72: CONECTIVIDAD | C72: Canal dedicado 100MB | D72: Canal dedicado para video, voz y datos con conexión 100 MB de subida y de descarga, 99% de disponibilidad y ruta alterna con mínimo de 100 MB, tráfico ilimitado, monitoreo y router que permita garantizar un throughput de acuerdo al ancho de banda solicitado. Incluye: instalación, desinstalación, personal técnico, configuración de equipos. Se debe entregar funcional y probado. Se debe realizar una prueba FTP para garantizar la tasa de transferencia de 8,75 MB/s y el ancho de banda contratado. Nota: El transporte esta implícito para la prestación del servicio. | E72: Día | F72: 0.19 | G72: 1627037 | H72: 1936174 | K72: 953931 | L72: 953932 | M72: -1
A73: 71 | B73: CONECTIVIDAD | C73: Canal dedicado 200MB | D73: Canal dedicado para video, voz y datos con conexión 200 MB de subida y de descarga, 99% de disponibilidad y ruta alterna con mínimo de 200 MB, tráfico ilimitado, monitoreo y router que permita garantizar un throughput de acuerdo al ancho de banda solicitado. Incluye: instalación, desinstalación, personal técnico, configuración de equipos. Se debe entregar funcional y probado. Se debe realizar una prueba FTP para garantizar la tasa de transferencia de 8,75 MB/s y el ancho de banda contratado. Nota: El transporte esta implícito para la prestación del servicio. | E73: Día | F73: 0.19 | G73: 1915388 | H73: 2279312 | K73: 1122991 | L73: 1122992 | M73: -1
A74: 72 | B74: EMERGENCIA Y CONTINGENCIA | C74: Plan de Emergencia y contingencia (complejidad media) | D74: Diseño, formulación, presentación, radicación y aprobación de Plan de Emergencia y contingencia y, gestión de permisos para eventos de complejidad MEDIA | E74: unidad | F74: 0.19 | G74: 2265968 | H74: 2696502 | K74: 1328536 | L74: 1328537 | M74: -1
A75: 73 | B75: EMERGENCIA Y CONTINGENCIA | C75: Plan de Emergencia y contingencia (complejidad alta) | D75: Diseño, formulación, presentación, radicación y aprobación de Plan de Emergencia y contingencia y, gestión de permisos para eventos de complejidad ALTA | E75: unidad | F75: 0.19 | G75: 2978327 | H75: 3544209 | K75: 1746193 | L75: 1746193 | M75: 0
A76: 74 | B76: EMERGENCIA Y CONTINGENCIA | C76: Puesto de Salud | D76: * Cada puesto debe tener un Área de hasta 16 metros cuadrados, debe contar con Iluminación, suministro de Agua y equipo médico y de primeros auxilios necesario. | E76: TURNO 8 HORAS | F76: 0.19 | G76: 2740198 | H76: 3260836 | K76: 1606578 | L76: 1606578 | M76: 0
A77: 75 | B77: EMERGENCIA Y CONTINGENCIA | C77: Servicio De Primeros Auxilios (MEC) | D77: * Cada Brigada es de 3 o 4 personas y pueden ser Brigadas Móviles o Fijas * Cada Brigada Móvil debe llevar 1 Camilla Plegable, 1 Botiquín Portátil, Equipo de Protección y Linterna para cada integrante. | E77: TURNO 8 HORAS | F77: 0.19 | G77: 2154103 | H77: 2563383 | K77: 1262950 | L77: 1262951 | M77: -1
A78: 76 | B78: EMERGENCIA Y CONTINGENCIA | C78: Equipos de Intervención | D78: Equipos de Intervención: 1APH, 3 socorristas. | E78: TURNO 8 HORAS | F78: 0.19 | G78: 1256256 | H78: 1494945 | K78: 736542 | L78: 736543 | M78: -1
A79: 77 | B79: EMERGENCIA Y CONTINGENCIA | C79: Servicio Ambulancia Básica (1 - 4 Horas) | D79: Valor TOTAL del servicio, prestado por grupo de socorro para atención prehospitalaria básica establecido por horas de servicio de acuerdo con el parámetro de aforo establecido para eventos masivos. Incluye 1 conductor, 1 APH tecnólogo atención prehospitalaria y 1 médico. | E79: 4 horas | F79: 0.19 | G79: 1153091 | H79: 1372178 | K79: 676057 | L79: 676057 | M79: 0
A80: 78 | B80: EMERGENCIA Y CONTINGENCIA | C80: Servicio Ambulancia Básica (5 - 8 Horas) | D80: Valor TOTAL del servicio, prestado por grupo de socorro para atención prehospitalaria básica establecido por horas de servicio de acuerdo con el parámetro de aforo establecido para eventos masivos. Incluye 1 conductor, 1 APH tecnólogo atención prehospitalaria y 1 médico. | E80: 8 horas | F80: 0.19 | G80: 1804166 | H80: 2146958 | K80: 1057782 | L80: 1057783 | M80: -1
A81: 79 | B81: EMERGENCIA Y CONTINGENCIA | C81: Ambulancia Básica (Hora Adicional) | D81: 1 hora adicional del servicio prestado por grupo de socorro para atención prehospitalaria básica establecido por horas de servicio de acuerdo con el parámetro de aforo establecido para eventos masivos. Incluye 1 conductor, 1 APH tecnólogo atención prehospitalaria y 1 médico. | E81: 1 hora | F81: 0.19 | G81: 376467 | H81: 447996 | K81: 220722 | L81: 220723 | M81: -1
A82: 80 | B82: EMERGENCIA Y CONTINGENCIA | C82: Servicio Ambulancia Medicalizada (5 - 8 Horas) | D82: Valor TOTAL del servicio, prestado por grupo de socorro para atención prehospitalaria establecido por horas de servicio de acuerdo con el parámetro de aforo establecido para eventos masivos . Incluye 1 conductor, 1 APH tecnólogo atención prehospitalaria y 1 médico. Deberán cumplir con lo exigido en la Resolución 1043 de 2006 Anexo Técnico N° 1, expedida por el Ministerio de la Protección Social y las demás normas que lo modifiquen, adicionen o sustituyan, en cuanto a condiciones técnico mecánicas, dotación y recurso humano. | E82: 8 horas | F82: 0.19 | G82: 2427716 | H82: 2888982 | K82: 1423369 | L82: 1423370 | M82: -1
A83: 81 | B83: EMERGENCIA Y CONTINGENCIA | C83: Ambulancia Medicalizada (Hora Adicional) | D83: 1 hora adicional del servicio prestado por grupo de socorro para atención prehospitalaria establecido por horas de servicio de acuerdo con el parámetro de aforo establecido para eventos masivos . Incluye 1 conductor, 1 APH tecnólogo atención prehospitalaria y 1 médico. Deberán cumplir con lo exigido en la Resolución 1043 de 2006 Anexo Técnico N° 1, expedida por el Ministerio de la Protección Social y las demás normas que lo modifiquen, adicionen o sustituyan, en cuanto a condiciones técnico mecánicas, dotación y recurso humano. | E83: 1 hora | F83: 0.19 | G83: 377116 | H83: 448768 | K83: 221103 | L83: 221103 | M83: 0
A84: 82 | B84: EMERGENCIA Y CONTINGENCIA | C84: Extintores Multipropósito | D84: Extintores Multipropósitos capacidad 10 Libras Incluye transporte (distribución en sitio de realización del evento o actividad) | E84: Día | F84: 0.19 | G84: 73041 | H84: 86919 | K84: 42823 | L84: 42824 | M84: -1
A85: 83 | B85: EMERGENCIA Y CONTINGENCIA | C85: Extintores Solkaflam | D85: Extintores Solkaflam para equipos eléctricos de 3700 gramos; Incluye transporte (distribución en sitio de realización del evento o actividad) | E85: Día | F85: 0.19 | G85: 153391 | H85: 182535 | K85: 89933 | L85: 89933 | M85: 0
A86: 84 | B86: EMERGENCIA Y CONTINGENCIA | C86: Extintores de Agua | D86: Extintores de Agua de 9 Litros para papel; Incluye transporte (distribución en sitio de realización del evento o actividad) | E86: Día | F86: 0.19 | G86: 91464 | H86: 108842 | K86: 53625 | L86: 53625 | M86: 0
A87: 85 | B87: EMERGENCIA Y CONTINGENCIA | C87: Señalización | D87: (Entrada, salida de emergencia, PMU, Punto de Encuentro, Punto de Información, Punto de personas desaparecidas, zona de bienestar, baños, camerinos, sala juntas, señales de tránsito, PARE, DESVIO, MALETINES, CONOS DE 50 CMS, COLOMBINAS, PASACALLES.) (por día) | E87: Día | F87: 0.19 | G87: 74226 | H87: 88329 | K87: 43518 | L87: 43519 | M87: -1
A88: 86 | B88: EMERGENCIA Y CONTINGENCIA | C88: Alquiler Baño portátil (con operario) | D88: Alquiler de baños móviles estándar que incluyan jabón, papel y operario. Incluye: Transporte, Montaje, atención, mantenimiento y desmontaje. | E88: Día | F88: 0.19 | G88: 476326 | H88: 566828 | K88: 279269 | L88: 279270 | M88: -1
A89: 87 | B89: EMERGENCIA Y CONTINGENCIA | C89: Alquiler Baño portátil (sin operario) | D89: Alquiler de baños móviles estándar que incluyan jabón, y papel Incluye: Transporte, Montaje, atención, mantenimiento y desmontaje. | E89: Día | F89: 0.19 | G89: 371115 | H89: 441627 | K89: 217584 | L89: 217585 | M89: -1
A90: 88 | B90: EMERGENCIA Y CONTINGENCIA | C90: Alquiler Baño portátil (Personal en condición de discapacidad) | D90: Alquiler de baños móviles para personas en condición de discapacidad que incluyan jabón, papel y operario. Incluye: Transporte, Montaje, atención, mantenimiento y desmontaje. | E90: Día | F90: 0.19 | G90: 575570 | H90: 684928 | K90: 337456 | L90: 337457 | M90: -1
A91: 89 | B91: EMERGENCIA Y CONTINGENCIA | C91: Camilla | D91: Camilla Emergencia Plástica Inmovilizador Cabeza Kit Férulas | E91: Día | F91: 0.19 | G91: 226409 | H91: 269427 | K91: 132743 | L91: 132744 | M91: -1
A92: 90 | B92: ENERGÌA | C92: Generador Eléctrico Insonorizado de 10 KVA | D92: Generador Eléctrico Insonorizado de 10 KVA, con parciales de energía necesarias para suministrar energía a los equipos solicitados para los eventos. Turno de 12 horas. Incluye extintores, parcial hasta 150 mts, yelow yackets, combustible, operario y cerramientos con vallas según las normatividad vigente y la matriz de Riesgo de la RETIE. Nota: El transporte esta implícito para la prestación del servicio. | E92: Día | F92: 0.19 | G92: 702367 | H92: 835817 | K92: 411797 | L92: 411798 | M92: -1
A93: 91 | B93: ENERGÌA | C93: Generador Eléctrico Insonorizado de 20 KVA | D93: Generador Eléctrico Insonorizado de 20 KVA, con parciales de energía necesarias para suministrar energía a los equipos solicitados para los eventos. Turno de 12 horas. Incluye extintores, parcial hasta 150 mts, yelow yackets, combustible, operario y cerramientos con vallas según las normatividad vigente y la matriz de Riesgo de la RETIE. Nota: El transporte esta implícito para la prestación del servicio. | E93: Día | F93: 0.19 | G93: 940115 | H93: 1118737 | K93: 551189 | L93: 551189 | M93: 0
A94: 92 | B94: ENERGÌA | C94: Generador Eléctrico Insonorizado de 40 KVA | D94: Generador Eléctrico Insonorizado de 40 KVA, con parciales de energía necesarias para suministrar energía a los equipos solicitados para los eventos. Turno de 12 horas. Incluye extintores, parcial hasta 150 mts, yelow yackets, combustible, operario y cerramientos con vallas según las normatividad vigente y la matriz de Riesgo de la RETIE. Nota: El transporte esta implícito para la prestación del servicio. | E94: Día | F94: 0.19 | G94: 1284265 | H94: 1528275 | K94: 752964 | L94: 752965 | M94: -1
A95: 93 | B95: ENERGÌA | C95: Generador Eléctrico Insonorizado de 60 KVA | D95: Generador Eléctrico Insonorizado de 60 KVA, con parciales de energía necesarias para suministrar energía a los equipos solicitados para los eventos. Turno de 12 horas. Incluye extintores, parcial hasta 150 mts, yelow yackets, combustible, operario y cerramientos con vallas según las normatividad vigente y la matriz de Riesgo de la RETIE. Nota: El transporte esta implícito para la prestación del servicio. | E95: Día | F95: 0.19 | G95: 1460630 | H95: 1738150 | K95: 856367 | L95: 856367 | M95: 0
A96: 94 | B96: ENERGÌA | C96: Generador Eléctrico Insonorizado de 80 KVA | D96: Generador Eléctrico Insonorizado de 80 KVA, con parciales de energía necesarias para suministrar energía a los equipos solicitados para los eventos. Turno de 12 horas. Incluye extintores, parcial hasta 150 mts, yelow yackets, combustible, operario y cerramientos con vallas según las normatividad vigente y la matriz de Riesgo de la RETIE. Nota: El transporte esta implícito para la prestación del servicio. | E96: Día | F96: 0.19 | G96: 1881400 | H96: 2238866 | K96: 1103064 | L96: 1103065 | M96: -1
A97: 95 | B97: ENERGÌA | C97: Generador Eléctrico Insonorizado de 125 KVA | D97: Generador Eléctrico Insonorizado de 125 KVA, con parciales de energía necesarias para suministrar energía a los equipos solicitados para los eventos. Turno de 12 horas. Incluye extintores, parcial hasta 150 mts, yelow yackets, combustible, operario y cerramientos con vallas según las normatividad vigente y la matriz de Riesgo de la RETIE. Nota: El transporte esta implícito para la prestación del servicio. | E97: Día | F97: 0.19 | G97: 2724646 | H97: 3242329 | K97: 1597459 | L97: 1597460 | M97: -1
A98: 96 | B98: ENERGÌA | C98: Generador Eléctrico Insonorizado de 200 KVA | D98: Generador Eléctrico Insonorizado de 200 KVA, con parciales de energía necesarias para suministrar energía a los equipos solicitados para los eventos. Turno de 12 horas. Incluye extintores, parcial hasta 150 mts, yelow yackets, combustible, operario y cerramientos con vallas según las normatividad vigente y la matriz de Riesgo de la RETIE. Nota: El transporte esta implícito para la prestación del servicio. | E98: Día | F98: 0.19 | G98: 3392175 | H98: 4036688 | K98: 1988832 | L98: 1988832 | M98: 0
A99: 97 | B99: ENERGÌA | C99: Generador Eléctrico Insonorizado de 250 KVA | D99: Generador Eléctrico Insonorizado de 250 KVA, con parciales de energía necesarias para suministrar energía a los equipos solicitados para los eventos. Incluye extintores, parcial hasta 150 mts, yelow yackets, combustible, operario y cerramientos con vallas según las normatividad vigente y la matriz de Riesgo de la RETIE. Nota: El transporte esta implícito para la prestación del servicio. | E99: Día | F99: 0.19 | G99: 3851320 | H99: 4583071 | K99: 2258028 | L99: 2258029 | M99: -1
A100: 98 | B100: ENERGÌA | C100: Parcial 20 mts | D100: Acometida eléctrica (Parcial con totalizador) de 20mts y todos los elementos requeridos para su operación. Nota: El transporte esta implícito para la prestación del servicio. | E100: Día | F100: 0.19 | G100: 170850 | H100: 203312 | K100: 100169 | L100: 100169 | M100: 0
A101: 99 | B101: ENERGÌA | C101: Parcial 50 mts | D101: Acometida eléctrica (Parcial con totalizador) de 50mts y todos los elementos requeridos para su operación. Nota: El transporte esta implícito para la prestación del servicio. | E101: Día | F101: 0.19 | G101: 303988 | H101: 361746 | K101: 178228 | L101: 178228 | M101: 0
A102: 100 | B102: ENERGÌA | C102: Parcial 100 mts | D102: Acometida eléctrica (Parcial con totalizador) de 100mts y todos los elementos requeridos para su operación. Nota: El transporte esta implícito para la prestación del servicio. | E102: Día | F102: 0.19 | G102: 484612 | H102: 576688 | K102: 284127 | L102: 284128 | M102: -1
A103: 101 | B103: ILUMINACIÓN | C103: Par 64 #1 - #2 -#3 - #4 -#5 - #6 | D103: Lámpara Halógena par 64 de 1000 W, con portagelatinas, y filtros de colores de acuerdo a lo solicitado por el equipo de producción. Las luces deben ir con su cableado, Dimmer y respectiva consola de iluminación. Soporte para piso, estructura, trípode o tubo de cuelgue. Nota: El transporte esta implícito para la prestación del servicio. | E103: Día | F103: 0.19 | G103: 59803 | H103: 71166 | K103: 35062 | L103: 35062 | M103: 0
A104: 102 | B104: ILUMINACIÓN | C104: Filtros Par 64 | D104: Filtros de colores o correctores para Par 64, según solicitud del equipo de producción con el color o corrector. Nota: El transporte esta implícito para la prestación del servicio. | E104: Día | F104: 0.19 | G104: 25263 | H104: 30063 | K104: 14811 | L104: 14812 | M104: -1
A105: 103 | B105: ILUMINACIÓN | C105: Par Led 64 1wt | D105: Par de Leds RGBW de 1 Wt outdoor, soporte para piso, estructura, trípode o tubo de cuelgue, Las luces deben ir con su cableado y respectiva consola de iluminación. Nota: El transporte esta implícito para la prestación del servicio. | E105: Día | F105: 0.19 | G105: 50933 | H105: 60610 | K105: 29861 | L105: 29862 | M105: -1
A106: 104 | B106: ILUMINACIÓN | C106: Par Led 64 3wt | D106: Par de Leds RGBW de 3 Wt outdoor, soporte para piso, estructura, trípode o tubo de cuelgue, Las luces deben ir con su cableado y respectiva consola de iluminación. Nota: El transporte esta implícito para la prestación del servicio. | E106: Día | F106: 0.19 | G106: 76394 | H106: 90909 | K106: 44789 | L106: 44790 | M106: -1
A107: 105 | B107: ILUMINACIÓN | C107: Par Led 64 15wt | D107: Par de Leds RGBW de 15 Wt outdoor, soporte para piso, estructura, trípode o tubo de cuelgue, Las luces deben ir con su cableado y respectiva consola de iluminación. Nota: El transporte esta implícito para la prestación del servicio. | E107: Día | F107: 0.19 | G107: 107347 | H107: 127743 | K107: 62937 | L107: 62938 | M107: -1
A108: 106 | B108: ILUMINACIÓN | C108: Pares de Leds Inalámbricas | D108: Inalámbrico con un batería recargable y un transmisor-receptor de D-Fi incorporado. Canales de DMX: 3, 4, 5 o 9 conectores DMX: 3-pin XLR fuente de luz: 6 LEDs (tri-color RGB) 3 W (600 mA), velocidad de Strobe: 0 a 17 Hz frecuencia PWM: 1.200 Hz ángulo de haz: 15° ángulo de campo: 29° Voltaje de entrada: 100 a 240 VCA, soporte para piso, estructura, trípode o tubo de cuelgue Las luces deben ir con su cableado y respectiva consola de iluminación. Nota: El transporte esta implícito para la prestación del servicio. | E108: Día | F108: 0.19 | G108: 128890 | H108: 153379 | K108: 75568 | L108: 75568 | M108: 0
A109: 107 | B109: ILUMINACIÓN | C109: Elipsoidales o Leekos de 750 Wt o 1000 Wt | D109: Proyector de luz con capacidad de enfocar imágenes en el que el reflector tiene forma elíptica y puede concentrar la luz en puntos específicos. Para ángulos de 19º-26º-30º-50º.lampara alógena de 750 W o 1000 W, Las luces deben ir con su cableado y respectiva consola de iluminación. Nota: El transporte esta implícito para la prestación del servicio. | E109: Día | F109: 0.19 | G109: 279938 | H109: 333126 | K109: 164127 | L109: 164128 | M109: -1
A110: 108 | B110: ILUMINACIÓN | C110: Leckos de Leds | D110: Proyector de luz con capacidad de enfocar imágenes en el que el reflector tiene forma elíptica y puede concentrar la luz en puntos específicos. Para ángulos de 19º-26º-30º-50º. Lampara Leds Blanca o RGBW de 50W o superiores para manejo de temperaturas de 3200º a 5800 K. Las luces deben ir con su cableado y respectiva consola de iluminación. Nota: El transporte esta implícito para la prestación del servicio. | E110: Día | F110: 0.19 | G110: 248973 | H110: 296278 | K110: 145972 | L110: 145973 | M110: -1
A111: 109 | B111: ILUMINACIÓN | C111: Minibrutos o Molefay de 4 bombillas | D111: Lámparas Halógenas compuesta de 4 Bombillas DW 650 Wt. Las luces deben ir con su cableado, Dimmer y respectiva consola de iluminación. Nota: El transporte esta implícito para la prestación del servicio. | E111: Día | F111: 0.19 | G111: 122222 | H111: 145444 | K111: 71658 | L111: 71659 | M111: -1
A112: 110 | B112: ILUMINACIÓN | C112: Minibrutos o Molefay de 6 bombillas | D112: Lámparas Halógenas compuesta de 6 Bombillas DW 650 Wt. Las luces deben ir con su cableado, Dimmer y respectiva consola de iluminación. Nota: El transporte esta implícito para la prestación del servicio. | E112: Día | F112: 0.19 | G112: 191790 | H112: 228230 | K112: 112446 | L112: 112446 | M112: 0
A113: 111 | B113: ILUMINACIÓN | C113: Minibrutos o Molefay de 8 bombillas | D113: Lámparas Halógenas compuesta de 8 Bombillas DW de 650 Wt. Las luces deben ir con su cableado, Dimmer y respectiva consola de iluminación. Nota: El transporte esta implícito para la prestación del servicio. | E113: Día | F113: 0.19 | G113: 254197 | H113: 302494 | K113: 149035 | L113: 149036 | M113: -1
A114: 112 | B114: ILUMINACIÓN | C114: Blinder de 2 bombillas | D114: Blinder de 2 de Alta Potencia de 175 W Leds - efecto estroboscópico, conexión DMX. Las luces deben ir con su cableado y respectiva consola de iluminación. Nota: El transporte esta implícito para la prestación del servicio. | E114: Día | F114: 0.19 | G114: 239537 | H114: 285049 | K114: 140440 | L114: 140441 | M114: -1
A115: 113 | B115: ILUMINACIÓN | C115: Blinder de 4 bombillas | D115: Cegadoras de leds de 4 bombillas de 50 Wt cada una, con control DMX. Las luces deben ir con su cableado y respectiva consola de iluminación. Nota: El transporte esta implícito para la prestación del servicio. | E115: Día | F115: 0.19 | G115: 375120 | H115: 446393 | K115: 219932 | L115: 219933 | M115: -1
A116: 114 | B116: ILUMINACIÓN | C116: Blinder de 6 bombillas | D116: Cegadoras de leds de 6 bombillas de 50 Wt cada una, con control DMX. Las luces deben ir con su cableado y respectiva consola de iluminación. Nota: El transporte esta implícito para la prestación del servicio. | E116: Día | F116: 0.19 | G116: 508444 | H116: 605048 | K116: 298100 | L116: 298101 | M116: -1
A117: 115 | B117: ILUMINACIÓN | C117: Cabezas móviles 575 wt | D117: Cabeza Móvil Spot con lámpara de descarga 575 Wt, globos rotativos. Las luces deben ir con su cableado y respectivo consola de iluminación. Nota: El transporte esta implícito para la prestación del servicio. | E117: Día | F117: 0.19 | G117: 452763 | H117: 538788 | K117: 265454 | L117: 265455 | M117: -1
A118: 116 | B118: ILUMINACIÓN | C118: Cabezas móviles leds Spot | D118: Cabeza Móvil Profile de Leds, rueda de globos rotativos, rueda de globos fijos. Las luces deben ir con su cableado y respectiva consola de iluminación. Nota: El transporte esta implícito para la prestación del servicio. | E118: Día | F118: 0.19 | G118: 506987 | H118: 603315 | K118: 297246 | L118: 297246 | M118: 0
A119: 117 | B119: ILUMINACIÓN | C119: Cabezas móviles leds wash | D119: Cabeza Móvil Wash de Leds RGB. Las luces deben ir con su cableado y respectiva consola de iluminación. Nota: El transporte esta implícito para la prestación del servicio. | E119: Día | F119: 0.19 | G119: 386348 | H119: 459754 | K119: 226515 | L119: 226516 | M119: -1
A120: 118 | B120: ILUMINACIÓN | C120: Cabezas móviles beam | D120: Cabeza Móvil Beam de lampara de descarga de Platinum 5R, disco de colores. Las luces deben ir con su cableado y respectiva consola de iluminación. Nota: El transporte esta implícito para la prestación del servicio. | E120: Día | F120: 0.19 | G120: 499008 | H120: 593820 | K120: 292568 | L120: 292568 | M120: 0
A121: 119 | B121: ILUMINACIÓN | C121: Atomick 3000 Wt DMX | D121: Efectos dinámicos estroboscópicas. Strobe de 0-25 destellos/segundo de 50 Hz, 0-30 destellos segundo suministro de 60 hz. Lámpara de descarga de 3000 WT. Las luces deben ir con su cableado y respectiva consola de iluminación. Nota: El transporte esta implícito para la prestación del servicio. | E121: Día | F121: 0.19 | G121: 364955 | H121: 434296 | K121: 213973 | L121: 213973 | M121: 0
A122: 120 | B122: ILUMINACIÓN | C122: Atomick o Strober de Leds | D122: Luz Estroboscópica de auto voltaje de 110 -220 V, con una salida de luz superior a los 50.000 lumens en la suma de sus leds, DMX o RDM para su manejo y configuración. Las luces deben ir con su cableado de energía, señal y respectiva consola de iluminación. Nota: El transporte esta implícito para la prestación del servicio. | E122: Día | F122: 0.19 | G122: 383946 | H122: 456896 | K122: 225107 | L122: 225108 | M122: -1
A123: 121 | B123: ILUMINACIÓN | C123: Seguidor para escenario 1200 wt | D123: Proyector de seguimiento con lámpara de descarga de 1200 wt. Incluye trípode, operador de seguidor, su cableado de energía y señal. Nota: El transporte esta implícito para la prestación del servicio. | E123: Día | F123: 0.19 | G123: 514623 | H123: 612401 | K123: 301723 | L123: 301723 | M123: 0
A124: 122 | B124: ILUMINACIÓN | C124: Seguidor para escenario Led | D124: Proyector de seguimiento con leds. Incluye trípode, operador de seguidor su cableado de energía y señal.. Nota: El transporte esta implícito para la prestación del servicio. | E124: Día | F124: 0.19 | G124: 368706 | H124: 438760 | K124: 216172 | L124: 216172 | M124: 0
A125: 123 | B125: ILUMINACIÓN | C125: Barras de Leds 1 mt | D125: Barras de Iluminación de Leds de 1 mts de longitud de 18 de leds de RGB de 3 w ( IP ). Las luces deben ir con su cableado y respectiva consola.. Nota: El transporte esta implícito para la prestación del servicio. | E125: Día | F125: 0.19 | G125: 155525 | H125: 185075 | K125: 91184 | L125: 91184 | M125: 0
A126: 124 | B126: ILUMINACIÓN | C126: Barras de Leds haz de 82º | D126: 30W 3 en 1 RGB COB LED, haz de 82 ° y ángulos de campo de 106 °, control individual de cada módulo COB, modos de curva de atenuación variable, estroboscopio y persecución efectos, ArtNet ™, KlingNet ™ y RDM (gestión de dispositivos remotos), 3pin y 5pin DMX, power Con y RJ45 conexiones de entrada / salida, pantalla de menú LCD con panel de control de 4 botones, soporte de aparejo integrado, enlace de alimentación de unidades múltiples, resistente exterior de aluminio fundido a presión, funcionamiento sin parpadeo para TV y PELÍCULA, consumo máximo de energía de 312 W y una fuente de alimentación de conmutación automática universal de varias tensiones (110-240 V). Las luces deben ir con su cableado y respectiva consola. Nota: El transporte esta implícito para la prestación del servicio. | E126: Día | F126: 0.19 | G126: 215109 | H126: 255980 | K126: 126118 | L126: 126118 | M126: 0
A127: 125 | B127: ILUMINACIÓN | C127: Luces LED frías o cálidas | D127: Alquiler de luces LED frías o cálidas (según solicitud) graduables en intensidad de iluminación y temperatura.. Nota: El transporte esta implícito para la prestación del servicio. | E127: Día | F127: 0.19 | G127: 137187 | H127: 163253 | K127: 80432 | L127: 80433 | M127: -1
A128: 126 | B128: ILUMINACIÓN | C128: Reflectores de 1000 wt (EXTERIORES) | D128: Reflectores de 1000 wt para exteriores, y todos los elementos requeridos para su operación. Nota: El transporte esta implícito para la prestación del servicio. | E128: Día | F128: 0.19 | G128: 118541 | H128: 141064 | K128: 69500 | L128: 69501 | M128: -1
A129: 127 | B129: ILUMINACIÓN | C129: Alquiler e instalación de metro de bombilla luz fría o cálida | D129: Alquiler de metro de bombilla de luz fría o cálida, por metro dos bombillas de luz cálida de 1 wt, en cable encauchetado calibre 14. Incluye instalación, desinstalación y conexión de energía.. Nota: El transporte esta implícito para la prestación del servicio. Nota: El transporte esta implícito para la prestación del servicio. | E129: Día | F129: 0.19 | G129: 36228 | H129: 43111 | K129: 21240 | L129: 21240 | M129: 0
A130: 128 | B130: ILUMINACIÓN | C130: Consola de Iluminación profesional 12 Canales | D130: Consola de Iluminación profesional con 4 monitores táctiles y 30 faders motorizados, conexión vía arnet de dispositivos varios de dmx y consolas a través de switch de arnet, cableado rj 45 para dichas conexiones con líneas de back up desde el stage hasta el front house. Nota: El transporte esta implícito para la prestación del servicio. | E130: Día | F130: 0.19 | G130: 455579 | H130: 542139 | K130: 267105 | L130: 267106 | M130: -1
A131: 129 | B131: ILUMINACIÓN | C131: Fresneles de Leds | D131: Fresneles desde 65 W hasta 250 W con diferente alternativas de temperatura de color en 3200 Kº y 5600 Kº o también dual color, lente fresnel de cristal para asegurar una máxima emisión de luz del chip led, control DMX, auto voltaje 110 V/240 V - 50/60 Hz. Las luces deben ir con su cableado y respectiva consola de iluminación; Incluye transporte (distribución en sitio de realización del evento o actividad) | E131: Día | F131: 0.19 | G131: 197215 | H131: 234686 | K131: 115627 | L131: 115627 | M131: 0
A132: 130 | B132: ILUMINACIÓN | C132: Arri Fresnel de 650 wt | D132: Reflector luminoso, uso de un lente ondulatorio en la boquilla de salida, lampara halógena de 650 Wt. Las luces deben ir con su cableado, Dimmer y respectiva consola de iluminación; Incluye transporte (distribución en sitio de realización del evento o actividad) | E132: Día | F132: 0.19 | G132: 109069 | H132: =+ROUND(G132*(1+F132),0) -> 129792 | K132: 63947 | L132: =+ROUND((G132*(1-$K$2)),0) -> 63947 | M132: =+K132-L132 -> 0
A133: 131 | B133: ILUMINACIÓN | C133: Arri Fresnel de 1000 wt | D133: Reflector luminoso, uso de un lente ondulatorio en la boquilla de salida, lampara halógena de 1000 Wt. Las luces deben ir con su cableado, Dimmer y respectiva consola de iluminación; Incluye transporte (distribución en sitio de realización del evento o actividad) | E133: Día | F133: 0.19 | G133: 150220 | H133: 178762 | K133: 88073 | L133: 88074 | M133: -1
A134: 132 | B134: ILUMINACIÓN | C134: Arri Fresnel de 1200 wt | D134: Reflector luminoso, uso de un lente ondulatorio en la boquilla de salida, lampara halógena de 1200 Wt. Las luces deben ir con su cableado, Dimmer y respectiva consola de iluminación; Incluye transporte (distribución en sitio de realización del evento o actividad) | E134: Día | F134: 0.19 | G134: 194517 | H134: 231475 | K134: 114045 | L134: 114045 | M134: 0
A135: 133 | B135: MATERIALES Y OTROS | C135: Resma Oficio (75 g/m2 resma 500 hojas) | D135: Resma de papel bond de 75 g/m2. tamaño oficio. resma 500 hojas; Incluye transporte (distribución en sitio de realización del evento o actividad) | E135: unidad | F135: 0.19 | G135: 26192 | H135: 31168 | K135: 15356 | L135: 15356 | M135: 0
A136: 134 | B136: MATERIALES Y OTROS | C136: Resma carta (500 hojas) | D136: Resma de papel bond. tamaño carta. resma 500 hojas; Incluye transporte (distribución en sitio de realización del evento o actividad) | E136: unidad | F136: 0.19 | G136: 37907 | H136: 45109 | K136: 22224 | L136: 22225 | M136: -1
A137: 135 | B137: MATERIALES Y OTROS | C137: Remas de Opalina (250gr resma 100 hojas) | D137: Resma de Opalina Blanca 250 Grs Carta De 21.6x27.9 x 100 Unidades; Incluye transporte (distribución en sitio de realización del evento o actividad) | E137: unidad | F137: 0.19 | G137: 26702 | H137: 31775 | K137: 15655 | L137: 15655 | M137: 0
A138: 136 | B138: MATERIALES Y OTROS | C138: Cuaderno | D138: Cuaderno cuadriculado de 50 hojas sin diseño en la portada Paquete x 12 Unidades; Incluye transporte (distribución en sitio de realización del evento o actividad) | E138: 1 Paquete x 12 unidades | F138: 0.19 | G138: 38136 | H138: 45382 | K138: 22359 | L138: 22359 | M138: 0
A139: 137 | B139: MATERIALES Y OTROS | C139: Esferos (negro o azul) x 12 Unidades | D139: Tinta negra o azul, resistente, buena calidad Paquete x 12 Unidades; Incluye transporte (distribución en sitio de realización del evento o actividad) | E139: 1 Paquete x 12 unidades | F139: 0.19 | G139: 14904 | H139: 17736 | K139: 8738 | L139: 8738 | M139: 0
A140: 138 | B140: MATERIALES Y OTROS | C140: Lápiz No. 2 Caja x 12 Unidades | D140: Lápiz No. 2 punta fina con borrador Caja x 12 unidades; Incluye transporte (distribución en sitio de realización del evento o actividad) | E140: 1 Caja x 12 unidades | F140: 0.19 | G140: 12047 | H140: 14336 | K140: 7063 | L140: 7063 | M140: 0
A141: 139 | B141: MATERIALES Y OTROS | C141: Cinta Gafer | D141: Cinta Gaffer Mate Negra 50M x 50mm; Incluye transporte (distribución en sitio de realización del evento o actividad) | E141: Unidad | F141: 0.19 | G141: 108729 | H141: 129388 | K141: 63747 | L141: 63748 | M141: -1
A142: 140 | B142: MATERIALES Y OTROS | C142: Cinta Gafer Naranja | D142: Cinta Gaffer Naranja Fluorescente 25M x 25mm; Incluye transporte (distribución en sitio de realización del evento o actividad) | E142: Unidad | F142: 0.19 | G142: 105973 | H142: 126108 | K142: 62131 | L142: 62132 | M142: -1
A143: 141 | B143: MATERIALES Y OTROS | C143: Carpeta de pasta dura Oficio 100 Und | D143: Carpeta de pasta dura imitación cuero con logo ICBF repujado tamaño Oficio 50-100 unidades; Incluye transporte (distribución en sitio de realización del evento o actividad) | E143: 1 Paquete x (50-100 unidades) | F143: 0.19 | G143: 69975 | H143: 83270 | K143: 41026 | L143: 41026 | M143: 0
A144: 142 | B144: MATERIALES Y OTROS | C144: Carpeta de pasta dura Carta 50 Und | D144: Carpeta de pasta dura imitación cuero con logo ICBF repujado tamaño carta 1- 50 unidades; Incluye transporte (distribución en sitio de realización del evento o actividad) | E144: 1 Paquete x (1-50 unidades) | F144: 0.19 | G144: 57651 | H144: 68605 | K144: 33800 | L144: 33801 | M144: -1
A145: 143 | B145: MATERIALES Y OTROS | C145: Papel Periódico (Pliego 100 cm *70 cm) | D145: Pliego 100 cm *70 cm Docena ; Incluye transporte (distribución en sitio de realización del evento o actividad) | E145: Unidad | F145: 0.19 | G145: 12606 | H145: 15001 | K145: 7390 | L145: 7391 | M145: -1
A146: 144 | B146: MATERIALES Y OTROS | C146: Impresión (Color en papel carta estándar) | D146: Color - papel carta estándar, Incluye transporte (distribución en sitio de realización del evento o actividad) | E146: Unidad | F146: 0.19 | G146: 760 | H146: 904 | K146: 445 | L146: 446 | M146: -1
A147: 145 | B147: MATERIALES Y OTROS | C147: Impresión de Habladores | D147: Impresión de habladores en propalcote y/o Opalina de 250gr (según requerimiento) / Impresión 4x4 tintas / Dimensiones: 28 *5cm / Entrega del hablador incluye con grafas y/o pliegues según diseño entregado por el ICBF.; Incluye transporte (distribución en sitio de realización del evento o actividad) | E147: Unidad | F147: 0.19 | G147: 9868 | H147: 11743 | K147: 5785 | L147: 5786 | M147: -1
A148: 146 | B148: MATERIALES Y OTROS | C148: Impresión de pendón | D148: Tamaño: 1.50 mts de ancho x 2 mts de alto, Material: lona banner, con barrilla arriba y abajo y tira de nylon, Tintas: full color. Incluye la instalación en estructura del pendón.; Incluye transporte (distribución en sitio de realización del evento o actividad) | E148: Unidad | F148: 0.19 | G148: 103367 | H148: 123007 | K148: 60603 | L148: 60604 | M148: -1
A149: 147 | B149: MATERIALES Y OTROS | C149: Impresión de Lona Banner m2 | D149: Impresión en lona banner 720 DPI, Tintas: full color para las diferentes piezas que conforman el vestido de los eventos, señalización y marcación, Terminado: con ojaletes metálico reforzados, termosellado cada 50cm y a 3cm del borde, Condiciones: medidas y diseños exactas serán entregadas por el ICBF.; Incluye transporte (distribución en sitio de realización del evento o actividad) | E149: Unidad | F149: 0.19 | G149: 75890 | H149: 90309 | K149: 44494 | L149: 44494 | M149: 0
A150: 148 | B150: MATERIALES Y OTROS | C150: Impresión de Lona Microperforada m2 | D150: Impresión en lona micro perforada o mesh, Tintas: full color, Terminado: con ojaletes reforzados metálico, termosellado cada 50cm y a 3cm del borde, Condiciones: medidas y diseños exactas serán entregadas por el ICBF.; Incluye transporte (distribución en sitio de realización del evento o actividad) | E150: Unidad | F150: 0.19 | G150: 100056 | H150: 119067 | K150: 58662 | L150: 58663 | M150: -1
A151: 149 | B151: MATERIALES Y OTROS | C151: Pendón roll up de 1 x 2 m | D151: Producción Pendón roll up de 1 x 2 m, Incluye impresión en banner 4x0 tintas, transporte y entrega. | E151: Unidad | F151: 0.19 | G151: 180470 | H151: 214759 | K151: 105809 | L151: 105810 | M151: -1
A152: 150 | B152: MATERIALES Y OTROS | C152: Pendón de 1 x 2 m tipo araña | D152: Producción de Pendón de 1 x 2 m con araña, Incluye impresión en banner 4x0 tintas, transporte y entrega. | E152: Unidad | F152: 0.19 | G152: 271356 | H152: 322914 | K152: 159095 | L152: 159096 | M152: -1
A153: 151 | B153: MATERIALES Y OTROS | C153: Marcador borrable (individual) | D153: Marcador individual, colores surtidos (Negro,Rojo,Azul,entre otros) Las tintas a base agua o alcohol puro (etanol ), sin componentes tóxicos (disolventes orgánicos, Xileno o Metales pesados).; Incluye transporte (distribución en sitio de realización del evento o actividad) | E153: Unidad | F153: 0.19 | G153: 5008 | H153: 5960 | K153: 2936 | L153: 2936 | M153: 0
A154: 152 | B154: MATERIALES Y OTROS | C154: Impresión de Vinilo adhesivo full color m2 | D154: Impresión en vinilo adhesivo, full color, Condiciones: medidas y diseños exactas serán entregadas por el ICBF; Incluye transporte (distribución en sitio de realización del evento o actividad) | E154: Unidad | F154: 0.19 | G154: 18362 | H154: 21851 | K154: 10765 | L154: 10766 | M154: -1
A155: 153 | B155: MATERIALES Y OTROS | C155: Impresión de Vinilo adhesivo full color + laminado mate m2 | D155: Impresión en vinilo adhesivo, full color, laminado mate. Condiciones: medidas y diseños exactas serán entregadas por el ICBF. Incluye transporte (distribución en sitio de realización del evento o actividad) | E155: Unidad | F155: 0.19 | G155: 20365 | H155: 24234 | K155: 11939 | L155: 11940 | M155: -1
A156: 154 | B156: MATERIALES Y OTROS | C156: Impresión de Vinilo adhesivo + laminado floorgrafic m2 | D156: Impresión en vinilo adhesivo de alto tráfico para instalar sobre tarimas y pisos + laminado floorgrafic Acabado troquelado, full color., Condiciones: medidas y diseños exactas serán entregadas por el ICBF. Incluye transporte (distribución en sitio de realización del evento o actividad) | E156: Unidad | F156: 0.19 | G156: 50688 | H156: 60319 | K156: 29718 | L156: 29718 | M156: 0
A157: 155 | B157: MATERIALES Y OTROS | C157: Chaleco: Familia y Comunidades | D157: Chaleco verde: color #184834, tela anti-ﬂuido, 100% poliéster, forro interno Michigan color blanco #110601. Adelante, logo ICBF: 6 cm. ancho X 7,4 cm. Alto Atrás, logo ICBF: 7,8 cm. ancho X 9,7 cm. Alto Atrás, texto: Familias y Comunidades: 25 cm. ancho X 4,5 cm. alto Con logos y textos bordados en hilo blanco. Se complementa con diseños e información del manual de identidad Visual del ICBF (Ver anexo) Incluye transporte (distribución en sitio de realización del evento o actividad) | E157: Unidad | F157: 0.19 | G157: 123984 | H157: 147541 | K157: 72691 | L157: 72692 | M157: -1
A158: 156 | B158: MATERIALES Y OTROS | C158: Chaleco: Adolescencia y Juventud | D158: Logos Bordados en color blanco: * Logo ICBF Delantero: Dimensión 6 cm ancho x 7,4 cm alto. * Logo ICBF Trasero: Dimensión 7,8 cm ancho x 9,7 cm alto. * Logo Modalidad/Servicio: Dimensiones 25 cm ancho x 13,6 cm de alto. Materiales: * Tela Externa: Base 2564 Orión, Referencia Orión, Color 184834, Ancho 148+/- 1cm, Peso: 115+/- 5 g/m2, Composición: 100% POL * Características tela interna o forro: Tejido: punto, color blanco. Composición en poliéster: 100%. Peso en gr/m2 120 +/-7 Resistencia al estallido mínimo 385. Resistencia al enganche (transversal y longitudinal) mínimo 4. Solidez del color al lavado: cambio de color mínimo 4; manchado mínimo 3. Formación de motas (pilling) 7.000 ciclos: mínimo 4. El chaleco es talla única pero debe tener cordón parte inferior en caucho con broche para graduar. Incluye transporte (distribución en sitio de realización del evento o actividad) Se complementa con diseños e información del manual de identidad Visual Atrapasueños | E158: Unidad | F158: 0.19 | G158: 139803 | H158: 166366 | K158: 81966 | L158: 81966 | M158: 0
A159: 157 | B159: MATERIALES Y OTROS | C159: Chaleco | D159: Parte delantera o frontal. Logo operador contratista. El texto operador contratista debe ir acompañado del logo del operador, el tamaño debe ser del 80 % en proporción a al logo del ICBF. Logo ICBF. Dimensión 7 cm ancho x 6 cm alto. Parte posterior. Logo ICBF. Dimensión 14 cm ancho x 12 cm alto. Texto operador contratista y nombre de la modalidad. El texto operador contratista debe ir siempre. En este espacio, no debe ir el nombre ni el logo del operador contratista. Materiales: Tela externa Base: 2564 Orión Referencia Orión Color: 184834 tela verde Características tela interna Tejido: punto, color negro Composición en poliéster: 100% Se complementa con diseños e información del manual de identidad Visual del ICBF (Ver anexo) Incluye transporte (distribución en sitio de realización del evento o actividad) | E159: Unidad | F159: 0.19 | G159: 78695 | H159: 93647 | K159: 46138 | L159: 46139 | M159: -1
A160: 158 | B160: MATERIALES Y OTROS | C160: Gorra: Adolescencia y juventud | D160: Logos Bordados en color blanco: * Logo ICBF Frente: Dimensión 3 cm ancho x 3,7 cm alto. * Logo Modalidad/Servicio Lateralx: Dimensiones 9 cm ancho x 5 cm de alto. Materiales: *Tela externa: Base 2564 Orión, Referencia Orión, Color: 184834, tela verde, Ancho 148+/- 1cm, • Peso: 115+/- 5 g/m2, Composición: 100% POL Incluye transporte (distribución en sitio de realización del evento o actividad) Se complementa con diseños e información del manual de identidad Visual Atrapasueños. | E160: Unidad | F160: 0.19 | G160: 51116 | H160: 60828 | K160: 29969 | L160: 29969 | M160: 0
A161: 159 | B161: MATERIALES Y OTROS | C161: Gorra: Familias y comunidades | D161: Tela externa. Base: 2564 Orión. Referencia Orión. Color:184834 tela verde. Ancho 148+/- 1cm Peso: 115+/- 5 g/m2. Composición: 100% poliéster Al costado derecho, logo ICBF: 3 cm. ancho X 3,7 cm. Alto Al frente, texto: Familias y Comunidades: 10 ,5 cm. ancho X 1,9 cm. Alto. Incluye transporte (distribución en sitio de realización del evento o actividad) Se complementa con diseños e información del manual de identidad Visual del ICBF | E161: Unidad | F161: 0.19 | G161: 52747 | H161: 62769 | K161: 30925 | L161: 30926 | M161: -1
A162: 160 | B162: MATERIALES Y OTROS | C162: Carné: | D162: Dimensiones: 5.5cm x 8.5cm. Fuente: verdana. Área de marca: área destinada a la aplicación de la marca del ICBF, logo de modalidad o programa en caso de tenerlo. Área de canal de contacto ICBF: Área destinada a la línea gratuita nacional del ICBF. Área texto legal de portabilidad: Área destinada a recomendaciones y el buen uso del carné. Material PVC calibre 30. Incluye transporte (distribución en sitio de realización del evento o actividad) | E162: Unidad | F162: 0.19 | G162: 17718 | H162: 21084 | K162: 10387 | L162: 10388 | M162: -1
A163: 161 | B163: MATERIALES Y OTROS | C163: Camiseta: | D163: Materiales: 70% Algodón - 30% Poliester, acabados de las camisetas tipo polo de manga corta, color blanca. Estampados a full color Logos: * Logotipo del ICBF al frente lado izquierdo de 6cm de ancho x 7,4cm de alto. * Logotipo del ICBF atrás centrado (ligeramenta arriba) de 7,8cm de ancho x 9,7cm de alto * Logo Modalidad/Servicio atrás centrado (ligeramente abajo) de 25cm de ancho x 13,6cm de alto. Incluye transporte (distribución en sitio de realización del evento o actividad) Se complementa con diseños e información del manual de identidad Visual del ICBF (Ver anexo) Incluye transporte (distribución en sitio de realización del evento o actividad) | E163: Unidad | F163: 0.19 | G163: 42141 | H163: 50148 | K163: 24707 | L163: 24707 | M163: 0
A164: 162 | B164: MATERIALES Y OTROS | C164: Camiseta: | D164: Materiales: 70% Algodón - 30% Poliester, acabados de las camisetas cuello redondo de manga corta, color blanca. Estampados a full color Logos: * Logotipo del ICBF al frente lado izquierdo de 6cm de ancho x 8cm de alto. * Logotipo del ICBF atrás centrado (ligeramenta arriba) de 17cm de ancho x 20cm de alto * Logo Modalidad/Servicio atrás centrado (ligeramente abajo) de 25cm de ancho x 13,6cm de alto. Incluye transporte (distribución en sitio de realización del evento o actividad) Se complementa con diseños e información del manual de identidad Visual del ICBF (Ver anexo) Incluye transporte (distribución en sitio de realización del evento o actividad) | E164: Unidad | F164: 0.19 | G164: 65333 | H164: 77746 | K164: 38304 | L164: 38305 | M164: -1
A165: 163 | B165: MATERIALES Y OTROS | C165: Balones de fútbol | D165: Balón de fútbol #5 Clasificación UNSPSC: 49161504 Peso: 410 a 450 gr. Circunferencia: 68 a 70 cms Rebote: 125 a 155 cms. Color: sin especificar Incluye transporte (distribución en sitio de realización del evento o actividad) | E165: Unidad | F165: 0.19 | G165: 90264 | H165: 107414 | K165: 52921 | L165: 52922 | M165: -1
A166: 164 | B166: MATERIALES Y OTROS | C166: Balones de baloncesto | D166: Balón de baloncesto Clasificación UNSPSC: 49161516 Tamaño 7 Peso: 580 a 650 grs. Color: naraja Circunferencia: 75 a 78 cms Rebote: 120 a 140 cms Incluye transporte (distribución en sitio de realización del evento o actividad) | E166: Unidad | F166: 0.19 | G166: 73265 | H166: 87185 | K166: 42955 | L166: 42955 | M166: 0
A167: 165 | B167: MATERIALES Y OTROS | C167: Lazos | D167: Lazos de deporte Clasificación UNSPSC: 49201512 Lazos para ejercicios Color: variado Longitud máxima del cable con asas: Aprox. 253 cm Longitud del mango: Aprox. 12.3cm Manijas: plástico Incluye transporte (distribución en sitio de realización del evento o actividad) | E167: Unidad | F167: 0.19 | G167: 20865 | H167: 24829 | K167: 12233 | L167: 12233 | M167: 0
A168: 166 | B168: MATERIALES Y OTROS | C168: Balón de voleibol | D168: Código UNSPSC 49161608 Material: Cubierta de material de PVC plástico o cuero sintético Peso aprox. 260 a 280 gr Balón #5 Color: variado Incluye transporte (distribución en sitio de realización del evento o actividad) | E168: Unidad | F168: 0.19 | G168: 78090 | H168: 92927 | K168: 45784 | L168: 45784 | M168: 0
A169: 167 | B169: MATERIALES Y OTROS | C169: Cuadernillo Plan Familiar | D169: Hojas: 30 a doble cara (60 páginas). Tamaño: Tabloide horizontal (cerrado). Tintas: 1x1 (carátula y páginas interiores). Papel carátula: Propalcote C2S 240 g Mate. Papel páginas internas: Papel Bond 115 gramos Encuadernación: Argollado Doble o metálico. Incluye transporte (distribución en sitio de realización del evento o actividad) | E169: Unidad | F169: 0.19 | G169: 20602 | H169: 24516 | K169: 12078 | L169: 12079 | M169: -1
A170: 168 | B170: MATERIALES Y OTROS | C170: Pendón: | D170: Tamaño: Pliego Tintas: 4x0 Material: Banner para exteriores Resolución: 1440 pi Terminado: En tubo y cordón, previstos de sus respectivos protectores para que puedan ser transportados sin sufrir ningún deterioro. Incluye transporte (distribución en sitio de realización del evento o actividad) | E170: Unidad | F170: 0.19 | G170: 76584 | H170: 91135 | K170: 44901 | L170: 44901 | M170: 0
A171: 169 | B171: MATERIALES Y OTROS | C171: Pendón: Familias y Comunidades | D171: · 1.50 mts de ancho x 2 mts de alto · Material: lona banner, con barrilla arriba y abajo y tira de nylon · Tintas: 4 x 0. Incluye la instalación en estructura del pendón. Incluye transporte (distribución en sitio de realización del evento o actividad) | E171: Unidad | F171: 0.19 | G171: 300732 | H171: 357871 | K171: 176319 | L171: 176319 | M171: 0
A172: 170 | B172: MATERIALES Y OTROS | C172: Pendón modalidades programas o proyectos | D172: Dimensiones. 100cm ancho x 150cm de alto Área logo ICBF: Espacio exclusivo para el logo del ICBF. Área de contenido: En el área del contenido designado puede ir la imagen o nombre del programa o logo si tiene, estrategia o proyecto ICBF si está creado, de lo contrario el diseño se puede realizar utilizando ilustraciones, elementos de apoyo gráfico o fotografías (siempre y cuando esté debidamente autorizado su uso y publicación). El título del pendón debe llevar el nombre exacto del programa, proyecto o estrategia ICBF. El logo del ICBF se puede aplicar de acuerdo al color de fondo que tenga el pendon: policromia sobre fondo blanco y con la reserva blanca o solido (blanco) sobre fondos de color. Área de marca. Este espacio se reserva para los logos e información institucional. El tamaño de logo del operador contratista debe ser hasta de un 80 % en proporción a la marca ICBF y debe ser ubicado siempre al lado izquierdo acompañado con el texto en la parte superior: Operador contratista. Se complementa con diseños e información del manual de identidad Visual del ICBF (Ver anexo) Incluye transporte (distribución en sitio de realización del evento o actividad) | E172: Unidad | F172: 0.19 | G172: 220982 | H172: 262969 | K172: 129561 | L172: 129562 | M172: -1
A173: 171 | B173: MATERIALES Y OTROS | C173: Cinta métrica | D173: Para medir la longitud del perímetro braquial. ✓Unidad de marcación: cm ✓Replegable, con espacio en blanco anterior al cero, mínimo entre 4 cm y 6 cm ✓Alcance de medición 15 cm - 200 cm ✓Longitud mínima 1.5 m ✓Ancho: máximo 0.7 cm ✓Resolución o división de escala: 1 mm ✓Error permitido: 2 mm. Incluye transporte (distribución en sitio de realización del evento o actividad) | E173: Unidad | F173: 0.19 | G173: 27754 | H173: 33027 | K173: 16272 | L173: 16272 | M173: 0
A174: 172 | B174: MATERIALES Y OTROS | C174: Letrero metálico: | D174: Estructura metálica en tubo hueco de una pulgada de 3 Metros de ancho por 1 Metro de alto, con impresión en banner de 13 onzas Full color 1440 DPI. Incluye transporte (distribución en sitio de realización del evento o actividad) e instalación. | E174: Unidad | F174: 0.19 | G174: 156748 | H174: 186530 | K174: 91901 | L174: 91901 | M174: 0
A175: 173 | B175: MATERIALES Y OTROS | C175: Impresiones | D175: Impresión a una cara, papel bond, tamaño carta, en dos tintas. Presentación: paginas. Incluye transporte (distribución en sitio de realización del evento o actividad) | E175: Unidad | F175: 0.19 | G175: 2823 | H175: 3359 | K175: 1655 | L175: 1655 | M175: 0
A176: 174 | B176: MATERIALES Y OTROS | C176: Toallas de papel | D176: Peso base: 42,0 g/m2 Calibre: 12,5 mil pulg Ancho de hoja: 247 mm Longitud Total /Longitud de la hoja: 241 mm Resistencia en seco Longitudinal: 8342, 0 gf/3” Paquete por 150 unidades Incluye transporte (distribución en sitio de realización del evento o actividad) | E176: Unidad | F176: 0.19 | G176: 14400 | H176: 17136 | K176: 8442 | L176: 8443 | M176: -1
A177: 175 | B177: MATERIALES Y OTROS | C177: Papel Higiénico | D177: Peso Base: gr/m2 29,6 Resistencia MD: gf/3" 1650 Resistencia CD: gf/3" 700 Blancura ISO: % 86 Calibre: 0,001” 10,5 Largo de la Hoja: cm 11,2 Ancho de la hoja: cm 96,0 Paquete por 24 unidades Incluye transporte (distribución en sitio de realización del evento o actividad) | E177: Unidad | F177: 0.19 | G177: 19484 | H177: 23186 | K177: 11423 | L177: 11423 | M177: 0
A178: 176 | B178: MATERIALES Y OTROS | C178: Jabón para manos | D178: En dispensador Con agente limpiador en una concentración mínima del 6%. Con agente humectante en una concentración mínima del 3%. pH entre 5,5 a 7. Un litro| Incluye transporte (distribución en sitio de realización del evento o actividad) | E178: Unidad | F178: 0.19 | G178: 18595 | H178: 22128 | K178: 10902 | L178: 10902 | M178: 0
A179: 177 | B179: MATERIALES Y OTROS | C179: Acuarelas | D179: Paleta de acuarelas x 12 colores Características físicas: 12 colores, no toxica Peso: 0,1 kg Dimensiones: 1x1x1 Incluye transporte (distribución en sitio de realización del evento o actividad) | E179: 1 Paleta x 12 colores | F179: 0.19 | G179: 26952 | H179: 32073 | K179: 15801 | L179: 15802 | M179: -1
A180: 178 | B180: MATERIALES Y OTROS | C180: Agujas para bordar | D180: Agujas para bordar Características físicas: #1 a 5 punta afilada, paño x12 agujas Incluye transporte (distribución en sitio de realización del evento o actividad) | E180: 1 Paño x 12 agujas | F180: 0.19 | G180: 17109 | H180: 20360 | K180: 10030 | L180: 10031 | M180: -1
A181: 179 | B181: MATERIALES Y OTROS | C181: Arcilla | D181: Arcilla Moldeable de 1 kilo cada unidad (paquete), Características físicas: no tóxica Incluye transporte (distribución en sitio de realización del evento o actividad) | E181: Unidad | F181: 0.19 | G181: 7491 | H181: 8914 | K181: 4391 | L181: 4392 | M181: -1
A182: 180 | B182: MATERIALES Y OTROS | C182: Bandas elásticas | D182: Clasificación UNSPSC: 44122101 Bandas elásticas ref. 22 x kilo (bolsa) Características físicas: caucho natural o sintético no toxico Incluye transporte (distribución en sitio de realización del evento o actividad) | E182: Unidad | F182: 0.19 | G182: 16081 | H182: 19136 | K182: 9428 | L182: 9428 | M182: 0
A183: 181 | B183: MATERIALES Y OTROS | C183: Barniz Super Brillante | D183: Barniz Super Brillante, 1 frasco de 60cc Incluye transporte (distribución en sitio de realización del evento o actividad) | E183: Unidad | F183: 0.19 | G183: 11211 | H183: 13341 | K183: 6572 | L183: 6573 | M183: -1
A184: 182 | B184: MATERIALES Y OTROS | C184: Block de dibujo | D184: Características físicas: Sketch Book tipo de hoja lisa. Block x 80 hojas. Medidas: 30 cm x 22 cm Incluye transporte (distribución en sitio de realización del evento o actividad) | E184: Unidad | F184: 0.19 | G184: 11632 | H184: 13842 | K184: 6819 | L184: 6820 | M184: -1
A185: 183 | B185: MATERIALES Y OTROS | C185: Bolígrafos mina negra | D185: Bolígrafos mina negra. Clasificación UNSPSC: 44121701 Características físicas: Cuerpo plástico o polietileno translucido o color negro; punta metálica, con tapa, redondo, rectangular o hexagonal. Caja x 12 unidades Incluye transporte (distribución en sitio de realización del evento o actividad) | E185: 1 Caja x 12 unidades | F185: 0.19 | G185: 15153 | H185: 18032 | K185: 8884 | L185: 8884 | M185: 0
A186: 184 | B186: MATERIALES Y OTROS | C186: Borradores | D186: Clasificación UNSPSC: 44121800 Dimensión: Medidas aproximadas 5.5 a 6.3 cm * 0.8 a 1 en el espesor * 1.9 a 2.3 cm. largo 5.5. Características físicas: goma, no toxico, sin PVC. Caja x 24 unidades Incluye transporte (distribución en sitio de realización del evento o actividad) | E186: 1 Caja x 24 unidades | F186: 0.19 | G186: 15632 | H186: 18602 | K186: 9164 | L186: 9165 | M186: -1
A187: 185 | B187: MATERIALES Y OTROS | C187: Cartón paja | D187: Cartón paja 1/8 de 370 gr. Paquete x 25 unidades Incluye transporte (distribución en sitio de realización del evento o actividad) | E187: Unidad | F187: 0.19 | G187: 19867 | H187: 23642 | K187: 11647 | L187: 11648 | M187: -1
A188: 186 | B188: MATERIALES Y OTROS | C188: Cartulina | D188: Clasificación UNSPSC: 14111519 Tamaño: Carta Color: Colores surtidos Características físicas: Cartulina de 150 a 165 g/m2 Paquete x 25 unidades Incluye transporte (distribución en sitio de realización del evento o actividad) | E188: Unidad | F188: 0.19 | G188: 14099 | H188: 16778 | K188: 8266 | L188: 8266 | M188: 0
A189: 187 | B189: MATERIALES Y OTROS | C189: Cartulina (SFSC) | D189: Colores surtidos. Cartulina de 150 a 165 g/m2. 70 x 100cm. 1 Pliego Incluye transporte (distribución en sitio de realización del evento o actividad) | E189: Unidad | F189: 0.19 | G189: 3314 | H189: 3944 | K189: 1942 | L189: 1943 | M189: -1
A190: 188 | B190: MATERIALES Y OTROS | C190: Cinta Transparente | D190: 1 Cinta transparente Características físicas: 12mmx40 mts Incluye transporte (distribución en sitio de realización del evento o actividad) | E190: Unidad | F190: 0.19 | G190: 11604 | H190: 13809 | K190: 6803 | L190: 6803 | M190: 0
A191: 189 | B191: MATERIALES Y OTROS | C191: Cinta Transparente | D191: 1 Cinta transparente empaque Características físicas: Dimensión 48mm x 40 m Incluye transporte (distribución en sitio de realización del evento o actividad) | E191: Unidad | F191: 0.19 | G191: 17120 | H191: 20373 | K191: 10037 | L191: 10037 | M191: 0
A192: 190 | B192: MATERIALES Y OTROS | C192: Cinta de enmascarar | D192: 1 Cinta de enmascarar. Características físicas: Dimensión 24mm x 40 m Incluye transporte (distribución en sitio de realización del evento o actividad) | E192: Unidad | F192: 0.19 | G192: 12793 | H192: 15224 | K192: 7500 | L192: 7501 | M192: -1
A193: 191 | B193: MATERIALES Y OTROS | C193: Cinta de enmascarar (SFSC) | D193: 1 Cinta adhesiva para enmascarar 12mm x 40m. Incluye transporte (distribución en sitio de realización del evento o actividad) | E193: Unidad | F193: 0.19 | G193: 7144 | H193: 8501 | K193: 4188 | L193: 4189 | M193: -1
A194: 192 | B194: MATERIALES Y OTROS | C194: Clips estándar | D194: Clasificación UNSPSC: 44122100 Dimensión: entre 28 mm hasta 32 mm Características físicas: Alambre metálico plastificado en polipropileno, alambre metálico galvanizado u otro material plástico Caja x 100 Incluye transporte (distribución en sitio de realización del evento o actividad) | E194: 1 Caja x 100 clips | F194: 0.19 | G194: 15692 | H194: 18673 | K194: 9200 | L194: 9200 | M194: 0
A195: 193 | B195: MATERIALES Y OTROS | C195: Cuaderno de dibujo | D195: Características físicas: Argollado, 1 cuaderno de 18 hojas de cartulina gruesa 150 g/m2 intercalados con papel copia de 50g/m2. Total 36 páginas Incluye transporte (distribución en sitio de realización del evento o actividad) | E195: Unidad | F195: 0.19 | G195: 17657 | H195: 21012 | K195: 10352 | L195: 10352 | M195: 0
A196: 194 | B196: MATERIALES Y OTROS | C196: Disolvente Oleo | D196: Características físicas: 1 Disolvente Oleo Frasco 250cc, no toxico Incluye transporte (distribución en sitio de realización del evento o actividad) | E196: Unidad | F196: 0.19 | G196: 19406 | H196: =+ROUND(G196*(1+F196),0) -> 23093 | K196: 11377 | L196: =+ROUND((G196*(1-$K$2)),0) -> 11378 | M196: =+K196-L196 -> -1
A197: 195 | B197: MATERIALES Y OTROS | C197: Estuche acrílico | D197: Características físicas: 1 Estuche acrílico fino x 12, coloresvariados, tarros de 12ml und Incluye transporte (distribución en sitio de realización del evento o actividad) | E197: Unidad | F197: 0.19 | G197: 43518 | H197: 51786 | K197: 25514 | L197: 25515 | M197: -1
A198: 196 | B198: MATERIALES Y OTROS | C198: Fichas bibliográficas | D198: Características Físicas: Cartulina multicolor Dimensión Mayor o igual 12. 5 y menor o igual 13 x 7.5 a 8.5 cm Paquete x 100 unidades Incluye transporte (distribución en sitio de realización del evento o actividad) | E198: Unidad | F198: 0.19 | G198: 12706 | H198: 15120 | K198: 7449 | L198: 7450 | M198: -1
A199: 197 | B199: MATERIALES Y OTROS | C199: Formato DIN A3 | D199: Block x 20 hojas Características físicas: hojas de papel de medidas 29,7 x 42 cm; Peso 10 gr, Formato sin rotular Incluye transporte (distribución en sitio de realización del evento o actividad) | E199: Unidad | F199: 0.19 | G199: 7866 | H199: 9361 | K199: 4611 | L199: 4612 | M199: -1
A200: 198 | B200: MATERIALES Y OTROS | C200: Kit de Bisuteria | D200: 1 Kit de bisuteria - Kit de piedras cuentas de piedras preciosas cuentas chips para hacer joyas Características físicas: 24 cuentas de astillas de piedra de colores (350 g), 20 cierres de pinza de langosta, 20 ganchos para pendientes, 50 anillos de salto abiertos, 2 cuerdas elásticas, 1 pinza, 1 tijera pequeña. Incluye transporte (distribución en sitio de realización del evento o actividad) | E200: Unidad | F200: 0.19 | G200: 72704 | H200: 86518 | K200: 42626 | L200: 42626 | M200: 0
... 415 more rows

Sheet Instructivo
C2: PROCESO ADQUISICIÓN DE BIENES Y SERVICIOS Instructivo para el uso de la herramienta para generar Formato Solicitud de Servicio | H2: F2.P4.ABS | I2: =+Registro!AA3 -> 2026-05-13
H3: =+Registro!X5 -> Versión 13
H4: Clasificación de la Información: CLASIFICADA
C7: Para generar de forma correcta la solicitud de servicios se deben seguir las siguientes recomendaciones:
C9: * Favor descargue el documento y guardelo en un lugar seguro, cuya configuración del centro de confianza tenga habilitada la ejecución de macros.
C11: * Todos los campos resaltados en verde: | F11: deben ser diligenciados completamente en la ventana "DATOS INICIALES SOLICITUD DE SERVICIO"
C12: y en las ventanas para el registro de datos especificos de los anexos: "RESERVA DE TIQUETES", "DETALLE ALOJAMIENTO", "AUTORIZACIÓN DE PAGO DE
C13: REEMBOLSOS" Y "AUTORIZACIÓN DE PAGO A TERCEROS". Al ubicarse en cada uno de estos campos se mostrara una ayuda sobre el dato a diligenciar.
C15: * Las plantillas para cargue masivo de datos de "RESERVA DE TIQUETES", "DETALLE ALOJAMIENTO", "AUTORIZACIÓN DE PAGO DE REEMBOLSOS", se
C16: ecuentran alojadas en el siguiente link: | E16: https://icbfgob-my.sharepoint.com/:f:/g/personal/hector_alba_icbf_gov_co/EgQMBAbFGnBChH0hwpT5r0YB5pxvuH1u325rgJhW_Rn9kw?e=8ZnUvI
C18: * En la sección "REQUERIMIENTOS TARIFARIO" de la ventana "DATOS INICIALES SOLICITUD DE SERVICIO" se debe dar click en los botones ubicados al lado
C19: de cada concepto de los bienes y servicios incluidos en el tarifario de la actual vigencia:
C21: * En la ventana "DETALLE SOLICITUD DE SERVICIO", se debe agregar cada ítem requerido dando especial atención a la cantidad necesaria de cada uno de ellos
C22: y a las observaciones a que haya lugar.
C24: * Luego de registrar todos los datos conforme a lo requerido, en la ventana "DATOS INICIALES SOLICITUD DE SERVICIO", se debe dar click en el botón "GENERAR
C25: SOLICITUD PDF", lo que generara el respectivo documento de solicitud para su firma y los anexos correspondientes.
C27: * Dichos documentos con la firma correspondiente, deben ser remitidos a la Dirección de Abastecimineto adjuntando el presente documento en formato excel con el
C28: fin de formalizar la solicitud.

Sheet Registro (hidden)
F3: PROCESO DE ADQUISICION DE BIENES Y SERVICIO DATOS INCIALES SOLICITUD DE SERVICIO | X3: F2.P4.ABS | AA3: 2026-05-13
X5: Versión 13
D8: Tipo de solicitud: | P8: Nombre del evento:
D10: Fecha de solicitud:
D12: Dependencia / Regional: | P12: Fecha inicio: | V12: Hora inicio:
D14: Nombres enlace del evento: | P14: Fecha fin: | V14: Hora fin:
D16: Teléfono de Contacto: | P16: Ciudad del Evento : | V16: # de Participantes:
D18: Correo Institucional de Contacto: | P18: Lugar de Realización:
D20: Jefe o Director Area / Regional: | P20: Objetivo del Evento:
D22: Cargo: | P22: Macroregión: | S22: UNICA
D24: REQUERIMIENTOS TARIFARIO
I25: Items Agregados | Q25: Items Agregados | X25: Items Agregados
E26: ALIMENTACIÓN | J26: =+COUNTIF(pdf!$D$18:$D$518,Registro!E26) -> 0 | M26: MATERIALES Y OTROS | Q26: =+COUNTIF(pdf!$D$18:$D$518,Registro!M26) -> 0 | U26: SONIDO | X26: =+COUNTIF(pdf!$D$18:$D$518,Registro!U26) -> 0
E27: ALQUILER TÉCNICA / OTROS | J27: =+COUNTIF(pdf!$D$18:$D$518,Registro!E27) -> 0 | M27: MENAJE | Q27: =+COUNTIF(pdf!$D$18:$D$518,Registro!M27) -> 0 | U27: TRADUCCIÓN | X27: =+COUNTIF(pdf!$D$18:$D$518,Registro!U27) -> 0
E28: CONECTIVIDAD | J28: =+COUNTIF(pdf!$D$18:$D$518,Registro!E28) -> 0 | M28: MOBILIARIO | Q28: =+COUNTIF(pdf!$D$18:$D$518,Registro!M28) -> 0 | U28: TRANSPORTE | X28: =+COUNTIF(pdf!$D$18:$D$518,Registro!U28) -> 0
E29: EMERGENCIA Y CONTINGENCIA | J29: =+COUNTIF(pdf!$D$18:$D$518,Registro!E29) -> 0 | M29: PERSONAL | Q29: =+COUNTIF(pdf!$D$18:$D$518,Registro!M29) -> 0 | U29: VIDEO | X29: =+COUNTIF(pdf!$D$18:$D$518,Registro!U29) -> 0
E30: ENERGÌA | J30: =+COUNTIF(pdf!$D$18:$D$518,Registro!E30) -> 0 | M30: REGISTRO | Q30: =+COUNTIF(pdf!$D$18:$D$518,Registro!M30) -> 0 | U30: VIRTUAL / HIBRIDO | X30: =+COUNTIF(pdf!$D$18:$D$518,Registro!U30) -> 0 | AA30: =+J26+J27+J28+J29+J30+J31+Q26+Q27+Q28+Q29+Q30+Q31+X26+X27+X28+X29+X30 -> 0
E31: ILUMINACIÓN | J31: =+COUNTIF(pdf!$D$18:$D$518,Registro!E31) -> 0 | M31: SALONES Y ALOJAMIENTO | Q31: =+COUNTIF(pdf!$D$18:$D$518,Registro!M31) -> 0 | U31: NO PREVISTOS | X31: =+COUNTIF(pdf!$D$18:$D$518,Registro!U31) -> 0
D33: OTROS
E37: =1000-COUNTIF(pdf!AA1553:AA2552,"") -> 0 | H37: =1000-COUNTIF(pdf!K539:K1538,"") -> 0 | M37: =1000-COUNTIF(pdf!AM2560:AM3559,"") -> 0 | Q37: =50-COUNTIF(pdf!AY3571:AY3620,"") -> 0
D39: GESTIÓN DIRECCIÓN DE ABASTECIMIENTO

Sheet 1. Detalle (hidden)
C2: PROCESO DE ADQUISICION DE BIENES Y SERVICIOS DETALLE SOLICITUD DE SERVICIO
C8: CONCEPTO: | D8: EMERGENCIA Y CONTINGENCIA
C9: BIEN O SERVICIO REQUERIDO:
C10: DESCRIPCIÓN:
C12: ITEM: | D12: 78 | E12: OBSERVACIONES:
C13: CANTIDAD:
C14: ITEMS: AGREGADOS: | D14: =+COUNT(pdf!C18:C518) -> 0 | E14: EMERGENCIA Y CONTINGENCIA | F14: Servicio Ambulancia Básica (5 - 8 Horas)
C15: ELIMINAR ITEM: | E15: 8 horas | F15: =+IF(E13="","",E13) -> 
B17: ITEM | C17: CONCEPTO | D17: BIEN O SERVICIO REQUERIDO | E17: DESCRIPCIÓN | F17: UNIDAD DE MEDIDA
B18: 72 | C18: EMERGENCIA Y CONTINGENCIA | D18: Plan de Emergencia y contingencia (complejidad media) | E18: Diseño, formulación, presentación, radicación y aprobación de Plan de Emergencia y contingencia y, gestión de permisos para eventos de complejidad MEDIA | F18: unidad
B19: 73 | C19: EMERGENCIA Y CONTINGENCIA | D19: Plan de Emergencia y contingencia (complejidad alta) | E19: Diseño, formulación, presentación, radicación y aprobación de Plan de Emergencia y contingencia y, gestión de permisos para eventos de complejidad ALTA | F19: unidad
B20: 74 | C20: EMERGENCIA Y CONTINGENCIA | D20: Puesto de Salud | E20: * Cada puesto debe tener un Área de hasta 16 metros cuadrados, debe contar con Iluminación, suministro de Agua y equipo médico y de primeros auxilios necesario. | F20: TURNO 8 HORAS
B21: 75 | C21: EMERGENCIA Y CONTINGENCIA | D21: Servicio De Primeros Auxilios (MEC) | E21: * Cada Brigada es de 3 o 4 personas y pueden ser Brigadas Móviles o Fijas * Cada Brigada Móvil debe llevar 1 Camilla Plegable, 1 Botiquín Portátil, Equipo de Protección y Linterna para cada integrante. | F21: TURNO 8 HORAS
B22: 76 | C22: EMERGENCIA Y CONTINGENCIA | D22: Equipos de Intervención | E22: Equipos de Intervención: 1APH, 3 socorristas. | F22: TURNO 8 HORAS
B23: 77 | C23: EMERGENCIA Y CONTINGENCIA | D23: Servicio Ambulancia Básica (1 - 4 Horas) | E23: Valor TOTAL del servicio, prestado por grupo de socorro para atención prehospitalaria básica establecido por horas de servicio de acuerdo con el parámetro de aforo establecido para eventos masivos. Incluye 1 conductor, 1 APH tecnólogo atención prehospitalaria y 1 médico. | F23: 4 horas
B24: 78 | C24: EMERGENCIA Y CONTINGENCIA | D24: Servicio Ambulancia Básica (5 - 8 Horas) | E24: Valor TOTAL del servicio, prestado por grupo de socorro para atención prehospitalaria básica establecido por horas de servicio de acuerdo con el parámetro de aforo establecido para eventos masivos. Incluye 1 conductor, 1 APH tecnólogo atención prehospitalaria y 1 médico. | F24: 8 horas
B25: 79 | C25: EMERGENCIA Y CONTINGENCIA | D25: Ambulancia Básica (Hora Adicional) | E25: 1 hora adicional del servicio prestado por grupo de socorro para atención prehospitalaria básica establecido por horas de servicio de acuerdo con el parámetro de aforo establecido para eventos masivos. Incluye 1 conductor, 1 APH tecnólogo atención prehospitalaria y 1 médico. | F25: 1 hora
B26: 80 | C26: EMERGENCIA Y CONTINGENCIA | D26: Servicio Ambulancia Medicalizada (5 - 8 Horas) | E26: Valor TOTAL del servicio, prestado por grupo de socorro para atención prehospitalaria establecido por horas de servicio de acuerdo con el parámetro de aforo establecido para eventos masivos . Incluye 1 conductor, 1 APH tecnólogo atención prehospitalaria y 1 médico. Deberán cumplir con lo exigido en la Resolución 1043 de 2006 Anexo Técnico N° 1, expedida por el Ministerio de la Protección Social y las demás normas que lo modifiquen, adicionen o sustituyan, en cuanto a condiciones técnico mecánicas, dotación y recurso humano. | F26: 8 horas
B27: 81 | C27: EMERGENCIA Y CONTINGENCIA | D27: Ambulancia Medicalizada (Hora Adicional) | E27: 1 hora adicional del servicio prestado por grupo de socorro para atención prehospitalaria establecido por horas de servicio de acuerdo con el parámetro de aforo establecido para eventos masivos . Incluye 1 conductor, 1 APH tecnólogo atención prehospitalaria y 1 médico. Deberán cumplir con lo exigido en la Resolución 1043 de 2006 Anexo Técnico N° 1, expedida por el Ministerio de la Protección Social y las demás normas que lo modifiquen, adicionen o sustituyan, en cuanto a condiciones técnico mecánicas, dotación y recurso humano. | F27: 1 hora
B28: 82 | C28: EMERGENCIA Y CONTINGENCIA | D28: Extintores Multipropósito | E28: Extintores Multipropósitos capacidad 10 Libras Incluye transporte (distribución en sitio de realización del evento o actividad) | F28: Día
B29: 83 | C29: EMERGENCIA Y CONTINGENCIA | D29: Extintores Solkaflam | E29: Extintores Solkaflam para equipos eléctricos de 3700 gramos; Incluye transporte (distribución en sitio de realización del evento o actividad) | F29: Día
B30: 84 | C30: EMERGENCIA Y CONTINGENCIA | D30: Extintores de Agua | E30: Extintores de Agua de 9 Litros para papel; Incluye transporte (distribución en sitio de realización del evento o actividad) | F30: Día
B31: 85 | C31: EMERGENCIA Y CONTINGENCIA | D31: Señalización | E31: (Entrada, salida de emergencia, PMU, Punto de Encuentro, Punto de Información, Punto de personas desaparecidas, zona de bienestar, baños, camerinos, sala juntas, señales de tránsito, PARE, DESVIO, MALETINES, CONOS DE 50 CMS, COLOMBINAS, PASACALLES.) (por día) | F31: Día
B32: 86 | C32: EMERGENCIA Y CONTINGENCIA | D32: Alquiler Baño portátil (con operario) | E32: Alquiler de baños móviles estándar que incluyan jabón, papel y operario. Incluye: Transporte, Montaje, atención, mantenimiento y desmontaje. | F32: Día
B33: 87 | C33: EMERGENCIA Y CONTINGENCIA | D33: Alquiler Baño portátil (sin operario) | E33: Alquiler de baños móviles estándar que incluyan jabón, y papel Incluye: Transporte, Montaje, atención, mantenimiento y desmontaje. | F33: Día
B34: 88 | C34: EMERGENCIA Y CONTINGENCIA | D34: Alquiler Baño portátil (Personal en condición de discapacidad) | E34: Alquiler de baños móviles para personas en condición de discapacidad que incluyan jabón, papel y operario. Incluye: Transporte, Montaje, atención, mantenimiento y desmontaje. | F34: Día
B35: 89 | C35: EMERGENCIA Y CONTINGENCIA | D35: Camilla | E35: Camilla Emergencia Plástica Inmovilizador Cabeza Kit Férulas | F35: Día
B36: 609 | C36: EMERGENCIA Y CONTINGENCIA | D36: Botiquín tipo A dotado con gabinete | E36: Botiquín tipo A dotado. Alto del gabinete mínimo 40 cm, ancho del gabinete mínimo 27 cm, profundidad del gabinete mínima 10 cm. Material gabinete: lámina cold roll cal 24. Color: blanco. Vida útil mínima 10 años. Unidad de medida: unidad. | F36: Unidad

Sheet pdf (hidden)
B1: 1
B2: 1 | D2: PROCESO DE ADQUISICION DE BIENES Y SERVICIO SOLICITUD DE SERVICIO
B3: 1
B4: 1
B5: 1 | C5: # De solicitud | D5: Nombre del evento: | E5: =+Registro!S8 -> 0 | G5: # de Participantes: | H5: =+Registro!Y16 -> 0
B6: 1
B7: 1 | D7: Tipo de solicitud: | E7: =+Registro!I8 -> 0 | F7: =+" "&TEXT(Registro!S12,"dd/mm/yyyy") -> 00/01/1900
B8: 1 | D8: Fecha de solicitud: | E8: =+Registro!I10 -> 00:00:00 | F8: =+" "&TEXT(Registro!S14,"dd/mm/yyyy") -> 00/01/1900
B9: 1 | D9: Dependencia / Regional: | E9: =+Registro!I12 -> 0 | F9: =+" "&TEXT(Registro!X12,"hh:mm AM/PM") -> 12:00 a. m.
B10: 1 | D10: Nombres enlace del evento: | E10: =+Registro!I14 -> 0 | F10: =+" "&TEXT(Registro!X14,"hh:mm AM/PM") -> 12:00 a. m.
B11: 1 | D11: Teléfono de Contacto: | E11: =+Registro!I16 -> 0 | F11: =+" "&Registro!S16 -> 
B12: 1 | D12: Correo Institucional: | E12: =+Registro!I18 -> 0 | F12: =+" "&Registro!S18 -> 
B13: 1 | D13: Jefe o Director Area / Regional: | E13: =+Registro!I20 -> 0
B14: 1 | D14: Cargo: | E14: =+Registro!I22 -> 0 | F14: =+""&Registro!S20 -> 
B15: 1 | D15: Macroregión: | E15: =+Registro!S22 -> UNICA
B16: 1 | C16: DETALLE DE REQUERIMIENTO
B17: 1 | C17: ITEM | D17: CONCEPTO | E17: BIEN O SERVICIO REQUERIDO | F17: OBSERVACIONES | G17: UNIDAD DE MEDIDA | H17: CANTIDAD
A18: =+LEFT(C18,3) ->  | B18: =+IF(C18="",0,1) -> 0
A19: =+LEFT(C19,3) ->  | B19: 0
B20: 0
B21: 0
B22: 0
B23: 0
B24: 0
B25: 0
B26: 0
B27: 0
B28: 0
B29: 0
B30: 0
B31: 0
B32: 0
B33: 0
B34: 0
B35: 0
B36: 0
B37: 0
B38: 0
B39: 0
B40: 0
B41: 0
B42: 0
B43: 0
B44: 0
B45: 0
B46: 0
B47: 0
B48: 0
B49: 0
B50: 0
B51: 0
B52: 0
B53: 0
B54: 0
B55: 0
B56: 0
B57: 0
B58: 0
B59: 0
B60: 0
B61: 0
B62: 0
B63: 0
B64: 0
B65: 0
B66: 0
B67: 0
B68: 0
B69: 0
B70: 0
B71: 0
B72: 0
B73: 0
B74: 0
B75: 0
B76: 0
B77: 0
B78: 0
B79: 0
B80: 0
B81: 0
B82: 0
A83: =+LEFT(C83,3) ->  | B83: =+IF(C83="",0,1) -> 0
B84: 0
B85: 0
B86: 0
B87: 0
B88: 0
B89: 0
B90: 0
B91: 0
B92: 0
B93: 0
B94: 0
B95: 0
B96: 0
B97: 0
B98: 0
B99: 0
B100: 0
B101: 0
B102: 0
B103: 0
B104: 0
B105: 0
B106: 0
B107: 0
B108: 0
B109: 0
B110: 0
B111: 0
B112: 0
B113: 0
B114: 0
B115: 0
B116: 0
B117: 0
B118: 0
B119: 0
B120: 0
B121: 0
B122: 0
B123: 0
B124: 0
B125: 0
B126: 0
B127: 0
B128: 0
B129: 0
B130: 0
B131: 0
B132: 0
B133: 0
B134: 0
B135: 0
B136: 0
B137: 0
B138: 0
B139: 0
B140: 0
B141: 0
B142: 0
B143: 0
B144: 0
B145: 0
B146: 0
A147: =+LEFT(C147,3) ->  | B147: =+IF(C147="",0,1) -> 0
B148: 0
B149: 0
B150: 0
B151: 0
B152: 0
B153: 0
B154: 0
B155: 0
B156: 0
B157: 0
B158: 0
B159: 0
B160: 0
B161: 0
B162: 0
B163: 0
B164: 0
B165: 0
B166: 0
B167: 0
B168: 0
B169: 0
B170: 0
B171: 0
B172: 0
B173: 0
B174: 0
B175: 0
B176: 0
B177: 0
B178: 0
B179: 0
B180: 0
B181: 0
B182: 0
B183: 0
B184: 0
B185: 0
B186: 0
B187: 0
B188: 0
B189: 0
B190: 0
B191: 0
B192: 0
B193: 0
B194: 0
B195: 0
B196: 0
B197: 0
B198: 0
B199: 0
B200: 0
... 3424 more rows

Sheet TIQ (hidden)
B2: PROCESO DE ADQUISICION DE BIENES Y SERVICIOS ANEXO: RESERVA DE TIQUETES | G2: F2.P4.ABS | H2: =+Registro!AA3 -> 2026-05-13
G3: =+Registro!X5 -> Versión 13
C7: Nombre Completo: | F7: AGREGAR REGISTRO
C9: No. de identificación:
C11: Género (M/F):
C13: Teléfono Móvil: | F13: ELIMNAR REGISTRO
C15: Correo Electrónico: | F15: No. de identificación:
C17: Fecha de Nacimiento:
C19: Origen del vuelo: | F19: TOTAL DE REGISTROS AGREGADOS: | H19: =1000-COUNTIF(pdf!K539:K1538,"") -> 0
C21: Destino del vuelo:
C23: Fecha de Salida del origen:
C25: Hora de salida del origen:
C27: Fecha de Regreso al origen:
C29: Hora de salida hacia el origen:
C31: Observaciones:

Sheet ALO (hidden)
B2: PROCESO DE ADQUISICION DE BIENES Y SERVICIOS ANEXO: DETALLE ALOJAMIENTO | G2: F2.P4.ABS | H2: =+Registro!AA3 -> 2026-05-13
G3: =+Registro!X5 -> Versión 13
C7: ROL: | F7: AGREGAR REGISTRO
C9: Nombre Completo:
C11: No. de identificación:
C13: Género (M/F): | F13: ELIMNAR REGISTRO
C15: Teléfono Móvil: | F15: No. de identificación:
C17: Correo Electrónico:
C19: Fecha de Nacimiento: | F19: TOTAL DE REGISTROS AGREGADOS: | H19: =1000-COUNTIF(pdf!AA1553:AA2552,"") -> 0
C21: Fecha de Llegada:
C23: Fecha de Salida:
D24: I
C25: Noches de hosepedaje:
C27: Observaciones:

Sheet REE (hidden)
B2: PROCESO DE ADQUISICION DE BIENES Y SERVICIOS ANEXO: AUTORIZACIÓN DE PAGO DE REEMBOLSOS | G2: F2.P4.ABS | H2: =+Registro!AA3 -> 2026-05-13
G3: =+Registro!X5 -> Versión 13
C7: Nombre Completo: | F7: AGREGAR REGISTRO
C9: No. de identificación:
C11: Teléfono Móvil:
C13: Valor estimado a reembolsar: | F13: ELIMNAR REGISTRO
C15: Concepto / Observaciones: | F15: No. de identificación:
F19: TOTAL DE REGISTROS AGREGADOS: | H19: =1000-COUNTIF(pdf!AM2560:AM3559,"") -> 0

Sheet PTE (hidden)
B2: PROCESO DE ADQUISICION DE BIENES Y SERVICIOS ANEXO: AUTORIZACIÓN DE PAGO A TERCEROS | G2: F2.P4.ABS | H2: =+Registro!AA3 -> 2026-05-13
G3: =+Registro!X5 -> Versión 13
C7: Nacional / extranjero: | F7: AGREGAR REGISTRO
C9: Retención:
C11: Concepto de pago:
C13: Nombre / razon social: | F13: ELIMNAR REGISTRO
C15: CC / NIT: | F15: CC / NIT:
C17: Responsable de IVA:
C19: ¿Declara renta?: | F19: TOTAL DE REGISTROS AGREGADOS: | H19: =50-COUNTIF(pdf!AY3571:AY3620,"") -> 0
C21: % Retención en la fuente:
C23: Telefono:
C25: Dirección:
C27: País de residencia:
C29: Correo electrónico:
C31: Tipo de cuenta bancaria:
C33: # Cuenta:
C35: Entidad bancaria:
C37: Valor:
C39: IVA: | D39: =+ROUND((IF(E39="N/A",0,D37*19%)),0) -> 0
C41: Total: | D41: =+D37+D39 -> 0
C43: Comision % + IVA: | D43: =+ROUND(((D37*IFERROR(VLOOKUP(D47,Parametros!I1:K6,3,FALSE),0))*1.19),0) -> 0
C45: Valor autorizado: | D45: =+D41+D43 -> 0
C47: Macroregión | D47: UNICA

Sheet PPTO (hidden)
A1: 1
A2: 1
A3: 1 | E3: PROCESO DE ADQUISICION DE BIENES Y SERVICIO SOLICITUD DE SERVICIO - PRESUPUESTO
A4: 1
A5: 1 | D5: Nombre del Evento: | F5: =+pdf!E5 -> 0 | J5: Fecha inicio: | K5: =+pdf!F7 -> 00/01/1900 | M5: Fecha fin: | N5: =+pdf!F8 -> 00/01/1900
A6: 1 | D6: # Solicitud de Servicio
A7: 1 | D7: Dependencia / Regional: | F7: =+pdf!E9 -> 0 | I7: RESUMEN PRESUPUESTO | K7: ANTES DE IVA | M7: IVA | N7: TOTAL
A8: 1 | D8: Ciudad del Evento : | F8: =+Registro!S16 -> 0 | I8: ITEMS TARIFARIO | K8: =+SUM(K15:K514) -> 0 | M8: =+SUM(M15:M514) -> 0 | N8: =+M8+K8 -> 0
A9: 1 | D9: # de Participantes: | F9: =+pdf!H5 -> 0 | I9: ITEMS NO PREVISTOS EN TARIFARIO | K9: =+SUM(K519:K568) -> 0 | M9: =+SUM(M519:M568) -> 0 | N9: =+K9+M9 -> 0
A10: 1 | D10: Macroregión: | F10: =+Registro!S22 -> UNICA | I10: =+"Comisión de Admon. ( "&TEXT(IFERROR(VLOOKUP(F11,Parametros!J2:K7,2,FALSE),0),"0,00%")&" ):" -> Comisión de Admon. ( 6,34% ): | K10: =+ROUND((K9*IFERROR(VLOOKUP(F10,Parametros!I1:K6,3,FALSE),0)),0) -> 0 | M10: =+ROUND((K10*0.19),0) -> 0 | N10: =+K10+M10 -> 0
A11: 1 | D11: Operador: | F11: =+IFERROR((VLOOKUP(F10,Parametros!I2:J6,2,FALSE)),"") -> PUBBLICA S.A.S | I11: Valor Total Presupuesto Evento | K11: =+SUM(K8:L10) -> 0 | M11: =+SUM(M8:M10) -> 0 | N11: =+SUM(N8:N10) -> 0
A12: 1
A13: 1 | D13: SERVICIOS REQUERIDOS - ITEMS INCLUIDOS EN TARIFARIO
A14: 1 | D14: ÍTEM | E14: CONCEPTO | F14: BIEN O SERVICIO REQUERIDO | G14: OBSERVACIONES | H14: UNIDAD DE MEDIDA | I14: CANTIDAD TOTAL | J14: Vr. Unitario | K14: SUB TOTAL | L14: IVA? | M14: VALOR IVA | N14: VR. TOTAL | S14: BIEN O SERVICIO REQUERIDO | T14: OBSERVACIONES | U14: UNIDAD DE MEDIDA | V14: CANTIDAD
A15: =+IF(D15="",0,1) -> 0 | C15: 0 | J15: =+IF($F$10="",0,IF($F$10="UNICA",IFERROR((VLOOKUP(D15,'Tarifario '!A:O,11,FALSE)),0),IF($F$10="M2: Cau,VdC, Nar, Tol, Hui, Caq, Put, Vau",IFERROR((VLOOKUP(D15,'Tarifario '!A:O,12,FALSE)),0),IF($F$10="M3: Ant, Cal, Qui, Ris, Cho, Cór, Guai",IFERROR((VLOOKUP(D15,'Tarifario '!A:O,13,FALSE)),0),IF($F$10="M4: Atl, Bol, Guaj, Mag, Suc, SAnd",IFERROR((VLOOKUP(D15,'Tarifario '!A:O,14,FALSE)),0),IF($F$10="M5: Cés, Ara, Vic, Ama, NdS, San",IFERROR((VLOOKUP(D15,'Tarifario '!A:O,15,FALSE)),0),0)))))) -> 0 | K15: =+J15*I15 -> 0 | L15: SI | M15: =+ROUND((IF(L15="SI",(K15*0.19),0)),0) -> 0 | N15: =+K15+M15 -> 0
A16: =+IF(D16="",0,1) -> 0 | C16: 0 | J16: =+IF($F$10="",0,IF($F$10="UNICA",IFERROR((VLOOKUP(D16,'Tarifario '!A:O,11,FALSE)),0),IF($F$10="M2: Cau,VdC, Nar, Tol, Hui, Caq, Put, Vau",IFERROR((VLOOKUP(D16,'Tarifario '!A:O,12,FALSE)),0),IF($F$10="M3: Ant, Cal, Qui, Ris, Cho, Cór, Guai",IFERROR((VLOOKUP(D16,'Tarifario '!A:O,13,FALSE)),0),IF($F$10="M4: Atl, Bol, Guaj, Mag, Suc, SAnd",IFERROR((VLOOKUP(D16,'Tarifario '!A:O,14,FALSE)),0),IF($F$10="M5: Cés, Ara, Vic, Ama, NdS, San",IFERROR((VLOOKUP(D16,'Tarifario '!A:O,15,FALSE)),0),0)))))) -> 0 | K16: =+J16*I16 -> 0 | L16: SI | M16: =+ROUND((IF(L16="SI",(K16*0.19),0)),0) -> 0 | N16: =+K16+M16 -> 0
A17: 0 | C17: 0 | J17: =+IF($F$10="",0,IF($F$10="UNICA",IFERROR((VLOOKUP(D17,'Tarifario '!A:O,11,FALSE)),0),IF($F$10="M2: Cau,VdC, Nar, Tol, Hui, Caq, Put, Vau",IFERROR((VLOOKUP(D17,'Tarifario '!A:O,12,FALSE)),0),IF($F$10="M3: Ant, Cal, Qui, Ris, Cho, Cór, Guai",IFERROR((VLOOKUP(D17,'Tarifario '!A:O,13,FALSE)),0),IF($F$10="M4: Atl, Bol, Guaj, Mag, Suc, SAnd",IFERROR((VLOOKUP(D17,'Tarifario '!A:O,14,FALSE)),0),IF($F$10="M5: Cés, Ara, Vic, Ama, NdS, San",IFERROR((VLOOKUP(D17,'Tarifario '!A:O,15,FALSE)),0),0)))))) -> 0 | K17: 0 | L17: SI | M17: 0 | N17: 0
A18: 0 | C18: 0 | J18: =+IF($F$10="",0,IF($F$10="UNICA",IFERROR((VLOOKUP(D18,'Tarifario '!A:O,11,FALSE)),0),IF($F$10="M2: Cau,VdC, Nar, Tol, Hui, Caq, Put, Vau",IFERROR((VLOOKUP(D18,'Tarifario '!A:O,12,FALSE)),0),IF($F$10="M3: Ant, Cal, Qui, Ris, Cho, Cór, Guai",IFERROR((VLOOKUP(D18,'Tarifario '!A:O,13,FALSE)),0),IF($F$10="M4: Atl, Bol, Guaj, Mag, Suc, SAnd",IFERROR((VLOOKUP(D18,'Tarifario '!A:O,14,FALSE)),0),IF($F$10="M5: Cés, Ara, Vic, Ama, NdS, San",IFERROR((VLOOKUP(D18,'Tarifario '!A:O,15,FALSE)),0),0)))))) -> 0 | K18: 0 | L18: SI | M18: 0 | N18: 0
A19: 0 | C19: 0 | J19: =+IF($F$10="",0,IF($F$10="UNICA",IFERROR((VLOOKUP(D19,'Tarifario '!A:O,11,FALSE)),0),IF($F$10="M2: Cau,VdC, Nar, Tol, Hui, Caq, Put, Vau",IFERROR((VLOOKUP(D19,'Tarifario '!A:O,12,FALSE)),0),IF($F$10="M3: Ant, Cal, Qui, Ris, Cho, Cór, Guai",IFERROR((VLOOKUP(D19,'Tarifario '!A:O,13,FALSE)),0),IF($F$10="M4: Atl, Bol, Guaj, Mag, Suc, SAnd",IFERROR((VLOOKUP(D19,'Tarifario '!A:O,14,FALSE)),0),IF($F$10="M5: Cés, Ara, Vic, Ama, NdS, San",IFERROR((VLOOKUP(D19,'Tarifario '!A:O,15,FALSE)),0),0)))))) -> 0 | K19: 0 | L19: SI | M19: 0 | N19: 0
A20: 0 | C20: 0 | J20: =+IF($F$10="",0,IF($F$10="UNICA",IFERROR((VLOOKUP(D20,'Tarifario '!A:O,11,FALSE)),0),IF($F$10="M2: Cau,VdC, Nar, Tol, Hui, Caq, Put, Vau",IFERROR((VLOOKUP(D20,'Tarifario '!A:O,12,FALSE)),0),IF($F$10="M3: Ant, Cal, Qui, Ris, Cho, Cór, Guai",IFERROR((VLOOKUP(D20,'Tarifario '!A:O,13,FALSE)),0),IF($F$10="M4: Atl, Bol, Guaj, Mag, Suc, SAnd",IFERROR((VLOOKUP(D20,'Tarifario '!A:O,14,FALSE)),0),IF($F$10="M5: Cés, Ara, Vic, Ama, NdS, San",IFERROR((VLOOKUP(D20,'Tarifario '!A:O,15,FALSE)),0),0)))))) -> 0 | K20: 0 | L20: SI | M20: 0 | N20: 0
A21: 0 | C21: 0 | J21: =+IF($F$10="",0,IF($F$10="UNICA",IFERROR((VLOOKUP(D21,'Tarifario '!A:O,11,FALSE)),0),IF($F$10="M2: Cau,VdC, Nar, Tol, Hui, Caq, Put, Vau",IFERROR((VLOOKUP(D21,'Tarifario '!A:O,12,FALSE)),0),IF($F$10="M3: Ant, Cal, Qui, Ris, Cho, Cór, Guai",IFERROR((VLOOKUP(D21,'Tarifario '!A:O,13,FALSE)),0),IF($F$10="M4: Atl, Bol, Guaj, Mag, Suc, SAnd",IFERROR((VLOOKUP(D21,'Tarifario '!A:O,14,FALSE)),0),IF($F$10="M5: Cés, Ara, Vic, Ama, NdS, San",IFERROR((VLOOKUP(D21,'Tarifario '!A:O,15,FALSE)),0),0)))))) -> 0 | K21: 0 | L21: SI | M21: 0 | N21: 0
A22: 0 | C22: 0 | J22: =+IF($F$10="",0,IF($F$10="UNICA",IFERROR((VLOOKUP(D22,'Tarifario '!A:O,11,FALSE)),0),IF($F$10="M2: Cau,VdC, Nar, Tol, Hui, Caq, Put, Vau",IFERROR((VLOOKUP(D22,'Tarifario '!A:O,12,FALSE)),0),IF($F$10="M3: Ant, Cal, Qui, Ris, Cho, Cór, Guai",IFERROR((VLOOKUP(D22,'Tarifario '!A:O,13,FALSE)),0),IF($F$10="M4: Atl, Bol, Guaj, Mag, Suc, SAnd",IFERROR((VLOOKUP(D22,'Tarifario '!A:O,14,FALSE)),0),IF($F$10="M5: Cés, Ara, Vic, Ama, NdS, San",IFERROR((VLOOKUP(D22,'Tarifario '!A:O,15,FALSE)),0),0)))))) -> 0 | K22: 0 | L22: SI | M22: 0 | N22: 0
A23: 0 | C23: 0 | J23: =+IF($F$10="",0,IF($F$10="UNICA",IFERROR((VLOOKUP(D23,'Tarifario '!A:O,11,FALSE)),0),IF($F$10="M2: Cau,VdC, Nar, Tol, Hui, Caq, Put, Vau",IFERROR((VLOOKUP(D23,'Tarifario '!A:O,12,FALSE)),0),IF($F$10="M3: Ant, Cal, Qui, Ris, Cho, Cór, Guai",IFERROR((VLOOKUP(D23,'Tarifario '!A:O,13,FALSE)),0),IF($F$10="M4: Atl, Bol, Guaj, Mag, Suc, SAnd",IFERROR((VLOOKUP(D23,'Tarifario '!A:O,14,FALSE)),0),IF($F$10="M5: Cés, Ara, Vic, Ama, NdS, San",IFERROR((VLOOKUP(D23,'Tarifario '!A:O,15,FALSE)),0),0)))))) -> 0 | K23: 0 | L23: SI | M23: 0 | N23: 0
A24: 0 | C24: 0 | J24: =+IF($F$10="",0,IF($F$10="UNICA",IFERROR((VLOOKUP(D24,'Tarifario '!A:O,11,FALSE)),0),IF($F$10="M2: Cau,VdC, Nar, Tol, Hui, Caq, Put, Vau",IFERROR((VLOOKUP(D24,'Tarifario '!A:O,12,FALSE)),0),IF($F$10="M3: Ant, Cal, Qui, Ris, Cho, Cór, Guai",IFERROR((VLOOKUP(D24,'Tarifario '!A:O,13,FALSE)),0),IF($F$10="M4: Atl, Bol, Guaj, Mag, Suc, SAnd",IFERROR((VLOOKUP(D24,'Tarifario '!A:O,14,FALSE)),0),IF($F$10="M5: Cés, Ara, Vic, Ama, NdS, San",IFERROR((VLOOKUP(D24,'Tarifario '!A:O,15,FALSE)),0),0)))))) -> 0 | K24: 0 | L24: SI | M24: 0 | N24: 0
A25: 0 | C25: 0 | J25: =+IF($F$10="",0,IF($F$10="UNICA",IFERROR((VLOOKUP(D25,'Tarifario '!A:O,11,FALSE)),0),IF($F$10="M2: Cau,VdC, Nar, Tol, Hui, Caq, Put, Vau",IFERROR((VLOOKUP(D25,'Tarifario '!A:O,12,FALSE)),0),IF($F$10="M3: Ant, Cal, Qui, Ris, Cho, Cór, Guai",IFERROR((VLOOKUP(D25,'Tarifario '!A:O,13,FALSE)),0),IF($F$10="M4: Atl, Bol, Guaj, Mag, Suc, SAnd",IFERROR((VLOOKUP(D25,'Tarifario '!A:O,14,FALSE)),0),IF($F$10="M5: Cés, Ara, Vic, Ama, NdS, San",IFERROR((VLOOKUP(D25,'Tarifario '!A:O,15,FALSE)),0),0)))))) -> 0 | K25: 0 | L25: SI | M25: 0 | N25: 0
A26: 0 | C26: 0 | J26: =+IF($F$10="",0,IF($F$10="UNICA",IFERROR((VLOOKUP(D26,'Tarifario '!A:O,11,FALSE)),0),IF($F$10="M2: Cau,VdC, Nar, Tol, Hui, Caq, Put, Vau",IFERROR((VLOOKUP(D26,'Tarifario '!A:O,12,FALSE)),0),IF($F$10="M3: Ant, Cal, Qui, Ris, Cho, Cór, Guai",IFERROR((VLOOKUP(D26,'Tarifario '!A:O,13,FALSE)),0),IF($F$10="M4: Atl, Bol, Guaj, Mag, Suc, SAnd",IFERROR((VLOOKUP(D26,'Tarifario '!A:O,14,FALSE)),0),IF($F$10="M5: Cés, Ara, Vic, Ama, NdS, San",IFERROR((VLOOKUP(D26,'Tarifario '!A:O,15,FALSE)),0),0)))))) -> 0 | K26: 0 | L26: SI | M26: 0 | N26: 0
A27: 0 | C27: 0 | J27: =+IF($F$10="",0,IF($F$10="UNICA",IFERROR((VLOOKUP(D27,'Tarifario '!A:O,11,FALSE)),0),IF($F$10="M2: Cau,VdC, Nar, Tol, Hui, Caq, Put, Vau",IFERROR((VLOOKUP(D27,'Tarifario '!A:O,12,FALSE)),0),IF($F$10="M3: Ant, Cal, Qui, Ris, Cho, Cór, Guai",IFERROR((VLOOKUP(D27,'Tarifario '!A:O,13,FALSE)),0),IF($F$10="M4: Atl, Bol, Guaj, Mag, Suc, SAnd",IFERROR((VLOOKUP(D27,'Tarifario '!A:O,14,FALSE)),0),IF($F$10="M5: Cés, Ara, Vic, Ama, NdS, San",IFERROR((VLOOKUP(D27,'Tarifario '!A:O,15,FALSE)),0),0)))))) -> 0 | K27: 0 | L27: SI | M27: 0 | N27: 0
A28: 0 | C28: 0 | J28: =+IF($F$10="",0,IF($F$10="UNICA",IFERROR((VLOOKUP(D28,'Tarifario '!A:O,11,FALSE)),0),IF($F$10="M2: Cau,VdC, Nar, Tol, Hui, Caq, Put, Vau",IFERROR((VLOOKUP(D28,'Tarifario '!A:O,12,FALSE)),0),IF($F$10="M3: Ant, Cal, Qui, Ris, Cho, Cór, Guai",IFERROR((VLOOKUP(D28,'Tarifario '!A:O,13,FALSE)),0),IF($F$10="M4: Atl, Bol, Guaj, Mag, Suc, SAnd",IFERROR((VLOOKUP(D28,'Tarifario '!A:O,14,FALSE)),0),IF($F$10="M5: Cés, Ara, Vic, Ama, NdS, San",IFERROR((VLOOKUP(D28,'Tarifario '!A:O,15,FALSE)),0),0)))))) -> 0 | K28: 0 | L28: SI | M28: 0 | N28: 0
A29: 0 | C29: 0 | J29: =+IF($F$10="",0,IF($F$10="UNICA",IFERROR((VLOOKUP(D29,'Tarifario '!A:O,11,FALSE)),0),IF($F$10="M2: Cau,VdC, Nar, Tol, Hui, Caq, Put, Vau",IFERROR((VLOOKUP(D29,'Tarifario '!A:O,12,FALSE)),0),IF($F$10="M3: Ant, Cal, Qui, Ris, Cho, Cór, Guai",IFERROR((VLOOKUP(D29,'Tarifario '!A:O,13,FALSE)),0),IF($F$10="M4: Atl, Bol, Guaj, Mag, Suc, SAnd",IFERROR((VLOOKUP(D29,'Tarifario '!A:O,14,FALSE)),0),IF($F$10="M5: Cés, Ara, Vic, Ama, NdS, San",IFERROR((VLOOKUP(D29,'Tarifario '!A:O,15,FALSE)),0),0)))))) -> 0 | K29: 0 | L29: SI | M29: 0 | N29: 0
A30: 0 | C30: 0 | J30: =+IF($F$10="",0,IF($F$10="UNICA",IFERROR((VLOOKUP(D30,'Tarifario '!A:O,11,FALSE)),0),IF($F$10="M2: Cau,VdC, Nar, Tol, Hui, Caq, Put, Vau",IFERROR((VLOOKUP(D30,'Tarifario '!A:O,12,FALSE)),0),IF($F$10="M3: Ant, Cal, Qui, Ris, Cho, Cór, Guai",IFERROR((VLOOKUP(D30,'Tarifario '!A:O,13,FALSE)),0),IF($F$10="M4: Atl, Bol, Guaj, Mag, Suc, SAnd",IFERROR((VLOOKUP(D30,'Tarifario '!A:O,14,FALSE)),0),IF($F$10="M5: Cés, Ara, Vic, Ama, NdS, San",IFERROR((VLOOKUP(D30,'Tarifario '!A:O,15,FALSE)),0),0)))))) -> 0 | K30: 0 | L30: SI | M30: 0 | N30: 0
A31: 0 | C31: 0 | J31: =+IF($F$10="",0,IF($F$10="UNICA",IFERROR((VLOOKUP(D31,'Tarifario '!A:O,11,FALSE)),0),IF($F$10="M2: Cau,VdC, Nar, Tol, Hui, Caq, Put, Vau",IFERROR((VLOOKUP(D31,'Tarifario '!A:O,12,FALSE)),0),IF($F$10="M3: Ant, Cal, Qui, Ris, Cho, Cór, Guai",IFERROR((VLOOKUP(D31,'Tarifario '!A:O,13,FALSE)),0),IF($F$10="M4: Atl, Bol, Guaj, Mag, Suc, SAnd",IFERROR((VLOOKUP(D31,'Tarifario '!A:O,14,FALSE)),0),IF($F$10="M5: Cés, Ara, Vic, Ama, NdS, San",IFERROR((VLOOKUP(D31,'Tarifario '!A:O,15,FALSE)),0),0)))))) -> 0 | K31: 0 | L31: SI | M31: 0 | N31: 0
A32: 0 | C32: 0 | J32: =+IF($F$10="",0,IF($F$10="UNICA",IFERROR((VLOOKUP(D32,'Tarifario '!A:O,11,FALSE)),0),IF($F$10="M2: Cau,VdC, Nar, Tol, Hui, Caq, Put, Vau",IFERROR((VLOOKUP(D32,'Tarifario '!A:O,12,FALSE)),0),IF($F$10="M3: Ant, Cal, Qui, Ris, Cho, Cór, Guai",IFERROR((VLOOKUP(D32,'Tarifario '!A:O,13,FALSE)),0),IF($F$10="M4: Atl, Bol, Guaj, Mag, Suc, SAnd",IFERROR((VLOOKUP(D32,'Tarifario '!A:O,14,FALSE)),0),IF($F$10="M5: Cés, Ara, Vic, Ama, NdS, San",IFERROR((VLOOKUP(D32,'Tarifario '!A:O,15,FALSE)),0),0)))))) -> 0 | K32: 0 | L32: SI | M32: 0 | N32: 0
A33: 0 | C33: 0 | J33: =+IF($F$10="",0,IF($F$10="UNICA",IFERROR((VLOOKUP(D33,'Tarifario '!A:O,11,FALSE)),0),IF($F$10="M2: Cau,VdC, Nar, Tol, Hui, Caq, Put, Vau",IFERROR((VLOOKUP(D33,'Tarifario '!A:O,12,FALSE)),0),IF($F$10="M3: Ant, Cal, Qui, Ris, Cho, Cór, Guai",IFERROR((VLOOKUP(D33,'Tarifario '!A:O,13,FALSE)),0),IF($F$10="M4: Atl, Bol, Guaj, Mag, Suc, SAnd",IFERROR((VLOOKUP(D33,'Tarifario '!A:O,14,FALSE)),0),IF($F$10="M5: Cés, Ara, Vic, Ama, NdS, San",IFERROR((VLOOKUP(D33,'Tarifario '!A:O,15,FALSE)),0),0)))))) -> 0 | K33: 0 | L33: SI | M33: 0 | N33: 0
A34: 0 | C34: 0 | J34: =+IF($F$10="",0,IF($F$10="UNICA",IFERROR((VLOOKUP(D34,'Tarifario '!A:O,11,FALSE)),0),IF($F$10="M2: Cau,VdC, Nar, Tol, Hui, Caq, Put, Vau",IFERROR((VLOOKUP(D34,'Tarifario '!A:O,12,FALSE)),0),IF($F$10="M3: Ant, Cal, Qui, Ris, Cho, Cór, Guai",IFERROR((VLOOKUP(D34,'Tarifario '!A:O,13,FALSE)),0),IF($F$10="M4: Atl, Bol, Guaj, Mag, Suc, SAnd",IFERROR((VLOOKUP(D34,'Tarifario '!A:O,14,FALSE)),0),IF($F$10="M5: Cés, Ara, Vic, Ama, NdS, San",IFERROR((VLOOKUP(D34,'Tarifario '!A:O,15,FALSE)),0),0)))))) -> 0 | K34: 0 | L34: SI | M34: 0 | N34: 0
A35: 0 | C35: 0 | J35: =+IF($F$10="",0,IF($F$10="UNICA",IFERROR((VLOOKUP(D35,'Tarifario '!A:O,11,FALSE)),0),IF($F$10="M2: Cau,VdC, Nar, Tol, Hui, Caq, Put, Vau",IFERROR((VLOOKUP(D35,'Tarifario '!A:O,12,FALSE)),0),IF($F$10="M3: Ant, Cal, Qui, Ris, Cho, Cór, Guai",IFERROR((VLOOKUP(D35,'Tarifario '!A:O,13,FALSE)),0),IF($F$10="M4: Atl, Bol, Guaj, Mag, Suc, SAnd",IFERROR((VLOOKUP(D35,'Tarifario '!A:O,14,FALSE)),0),IF($F$10="M5: Cés, Ara, Vic, Ama, NdS, San",IFERROR((VLOOKUP(D35,'Tarifario '!A:O,15,FALSE)),0),0)))))) -> 0 | K35: 0 | L35: SI | M35: 0 | N35: 0
A36: 0 | C36: 0 | J36: =+IF($F$10="",0,IF($F$10="UNICA",IFERROR((VLOOKUP(D36,'Tarifario '!A:O,11,FALSE)),0),IF($F$10="M2: Cau,VdC, Nar, Tol, Hui, Caq, Put, Vau",IFERROR((VLOOKUP(D36,'Tarifario '!A:O,12,FALSE)),0),IF($F$10="M3: Ant, Cal, Qui, Ris, Cho, Cór, Guai",IFERROR((VLOOKUP(D36,'Tarifario '!A:O,13,FALSE)),0),IF($F$10="M4: Atl, Bol, Guaj, Mag, Suc, SAnd",IFERROR((VLOOKUP(D36,'Tarifario '!A:O,14,FALSE)),0),IF($F$10="M5: Cés, Ara, Vic, Ama, NdS, San",IFERROR((VLOOKUP(D36,'Tarifario '!A:O,15,FALSE)),0),0)))))) -> 0 | K36: 0 | L36: SI | M36: 0 | N36: 0
A37: 0 | C37: 0 | J37: =+IF($F$10="",0,IF($F$10="UNICA",IFERROR((VLOOKUP(D37,'Tarifario '!A:O,11,FALSE)),0),IF($F$10="M2: Cau,VdC, Nar, Tol, Hui, Caq, Put, Vau",IFERROR((VLOOKUP(D37,'Tarifario '!A:O,12,FALSE)),0),IF($F$10="M3: Ant, Cal, Qui, Ris, Cho, Cór, Guai",IFERROR((VLOOKUP(D37,'Tarifario '!A:O,13,FALSE)),0),IF($F$10="M4: Atl, Bol, Guaj, Mag, Suc, SAnd",IFERROR((VLOOKUP(D37,'Tarifario '!A:O,14,FALSE)),0),IF($F$10="M5: Cés, Ara, Vic, Ama, NdS, San",IFERROR((VLOOKUP(D37,'Tarifario '!A:O,15,FALSE)),0),0)))))) -> 0 | K37: 0 | L37: SI | M37: 0 | N37: 0
A38: 0 | C38: 0 | J38: =+IF($F$10="",0,IF($F$10="UNICA",IFERROR((VLOOKUP(D38,'Tarifario '!A:O,11,FALSE)),0),IF($F$10="M2: Cau,VdC, Nar, Tol, Hui, Caq, Put, Vau",IFERROR((VLOOKUP(D38,'Tarifario '!A:O,12,FALSE)),0),IF($F$10="M3: Ant, Cal, Qui, Ris, Cho, Cór, Guai",IFERROR((VLOOKUP(D38,'Tarifario '!A:O,13,FALSE)),0),IF($F$10="M4: Atl, Bol, Guaj, Mag, Suc, SAnd",IFERROR((VLOOKUP(D38,'Tarifario '!A:O,14,FALSE)),0),IF($F$10="M5: Cés, Ara, Vic, Ama, NdS, San",IFERROR((VLOOKUP(D38,'Tarifario '!A:O,15,FALSE)),0),0)))))) -> 0 | K38: 0 | L38: SI | M38: 0 | N38: 0
A39: 0 | C39: 0 | J39: =+IF($F$10="",0,IF($F$10="UNICA",IFERROR((VLOOKUP(D39,'Tarifario '!A:O,11,FALSE)),0),IF($F$10="M2: Cau,VdC, Nar, Tol, Hui, Caq, Put, Vau",IFERROR((VLOOKUP(D39,'Tarifario '!A:O,12,FALSE)),0),IF($F$10="M3: Ant, Cal, Qui, Ris, Cho, Cór, Guai",IFERROR((VLOOKUP(D39,'Tarifario '!A:O,13,FALSE)),0),IF($F$10="M4: Atl, Bol, Guaj, Mag, Suc, SAnd",IFERROR((VLOOKUP(D39,'Tarifario '!A:O,14,FALSE)),0),IF($F$10="M5: Cés, Ara, Vic, Ama, NdS, San",IFERROR((VLOOKUP(D39,'Tarifario '!A:O,15,FALSE)),0),0)))))) -> 0 | K39: 0 | L39: SI | M39: 0 | N39: 0
A40: 0 | C40: 0 | J40: =+IF($F$10="",0,IF($F$10="UNICA",IFERROR((VLOOKUP(D40,'Tarifario '!A:O,11,FALSE)),0),IF($F$10="M2: Cau,VdC, Nar, Tol, Hui, Caq, Put, Vau",IFERROR((VLOOKUP(D40,'Tarifario '!A:O,12,FALSE)),0),IF($F$10="M3: Ant, Cal, Qui, Ris, Cho, Cór, Guai",IFERROR((VLOOKUP(D40,'Tarifario '!A:O,13,FALSE)),0),IF($F$10="M4: Atl, Bol, Guaj, Mag, Suc, SAnd",IFERROR((VLOOKUP(D40,'Tarifario '!A:O,14,FALSE)),0),IF($F$10="M5: Cés, Ara, Vic, Ama, NdS, San",IFERROR((VLOOKUP(D40,'Tarifario '!A:O,15,FALSE)),0),0)))))) -> 0 | K40: 0 | L40: SI | M40: 0 | N40: 0
A41: 0 | C41: 0 | J41: =+IF($F$10="",0,IF($F$10="UNICA",IFERROR((VLOOKUP(D41,'Tarifario '!A:O,11,FALSE)),0),IF($F$10="M2: Cau,VdC, Nar, Tol, Hui, Caq, Put, Vau",IFERROR((VLOOKUP(D41,'Tarifario '!A:O,12,FALSE)),0),IF($F$10="M3: Ant, Cal, Qui, Ris, Cho, Cór, Guai",IFERROR((VLOOKUP(D41,'Tarifario '!A:O,13,FALSE)),0),IF($F$10="M4: Atl, Bol, Guaj, Mag, Suc, SAnd",IFERROR((VLOOKUP(D41,'Tarifario '!A:O,14,FALSE)),0),IF($F$10="M5: Cés, Ara, Vic, Ama, NdS, San",IFERROR((VLOOKUP(D41,'Tarifario '!A:O,15,FALSE)),0),0)))))) -> 0 | K41: 0 | L41: SI | M41: 0 | N41: 0
A42: 0 | C42: 0 | J42: =+IF($F$10="",0,IF($F$10="UNICA",IFERROR((VLOOKUP(D42,'Tarifario '!A:O,11,FALSE)),0),IF($F$10="M2: Cau,VdC, Nar, Tol, Hui, Caq, Put, Vau",IFERROR((VLOOKUP(D42,'Tarifario '!A:O,12,FALSE)),0),IF($F$10="M3: Ant, Cal, Qui, Ris, Cho, Cór, Guai",IFERROR((VLOOKUP(D42,'Tarifario '!A:O,13,FALSE)),0),IF($F$10="M4: Atl, Bol, Guaj, Mag, Suc, SAnd",IFERROR((VLOOKUP(D42,'Tarifario '!A:O,14,FALSE)),0),IF($F$10="M5: Cés, Ara, Vic, Ama, NdS, San",IFERROR((VLOOKUP(D42,'Tarifario '!A:O,15,FALSE)),0),0)))))) -> 0 | K42: 0 | L42: SI | M42: 0 | N42: 0
A43: 0 | C43: 0 | J43: =+IF($F$10="",0,IF($F$10="UNICA",IFERROR((VLOOKUP(D43,'Tarifario '!A:O,11,FALSE)),0),IF($F$10="M2: Cau,VdC, Nar, Tol, Hui, Caq, Put, Vau",IFERROR((VLOOKUP(D43,'Tarifario '!A:O,12,FALSE)),0),IF($F$10="M3: Ant, Cal, Qui, Ris, Cho, Cór, Guai",IFERROR((VLOOKUP(D43,'Tarifario '!A:O,13,FALSE)),0),IF($F$10="M4: Atl, Bol, Guaj, Mag, Suc, SAnd",IFERROR((VLOOKUP(D43,'Tarifario '!A:O,14,FALSE)),0),IF($F$10="M5: Cés, Ara, Vic, Ama, NdS, San",IFERROR((VLOOKUP(D43,'Tarifario '!A:O,15,FALSE)),0),0)))))) -> 0 | K43: 0 | L43: SI | M43: 0 | N43: 0
A44: 0 | C44: 0 | J44: =+IF($F$10="",0,IF($F$10="UNICA",IFERROR((VLOOKUP(D44,'Tarifario '!A:O,11,FALSE)),0),IF($F$10="M2: Cau,VdC, Nar, Tol, Hui, Caq, Put, Vau",IFERROR((VLOOKUP(D44,'Tarifario '!A:O,12,FALSE)),0),IF($F$10="M3: Ant, Cal, Qui, Ris, Cho, Cór, Guai",IFERROR((VLOOKUP(D44,'Tarifario '!A:O,13,FALSE)),0),IF($F$10="M4: Atl, Bol, Guaj, Mag, Suc, SAnd",IFERROR((VLOOKUP(D44,'Tarifario '!A:O,14,FALSE)),0),IF($F$10="M5: Cés, Ara, Vic, Ama, NdS, San",IFERROR((VLOOKUP(D44,'Tarifario '!A:O,15,FALSE)),0),0)))))) -> 0 | K44: 0 | L44: SI | M44: 0 | N44: 0
A45: 0 | C45: 0 | J45: =+IF($F$10="",0,IF($F$10="UNICA",IFERROR((VLOOKUP(D45,'Tarifario '!A:O,11,FALSE)),0),IF($F$10="M2: Cau,VdC, Nar, Tol, Hui, Caq, Put, Vau",IFERROR((VLOOKUP(D45,'Tarifario '!A:O,12,FALSE)),0),IF($F$10="M3: Ant, Cal, Qui, Ris, Cho, Cór, Guai",IFERROR((VLOOKUP(D45,'Tarifario '!A:O,13,FALSE)),0),IF($F$10="M4: Atl, Bol, Guaj, Mag, Suc, SAnd",IFERROR((VLOOKUP(D45,'Tarifario '!A:O,14,FALSE)),0),IF($F$10="M5: Cés, Ara, Vic, Ama, NdS, San",IFERROR((VLOOKUP(D45,'Tarifario '!A:O,15,FALSE)),0),0)))))) -> 0 | K45: 0 | L45: SI | M45: 0 | N45: 0
A46: 0 | C46: 0 | J46: =+IF($F$10="",0,IF($F$10="UNICA",IFERROR((VLOOKUP(D46,'Tarifario '!A:O,11,FALSE)),0),IF($F$10="M2: Cau,VdC, Nar, Tol, Hui, Caq, Put, Vau",IFERROR((VLOOKUP(D46,'Tarifario '!A:O,12,FALSE)),0),IF($F$10="M3: Ant, Cal, Qui, Ris, Cho, Cór, Guai",IFERROR((VLOOKUP(D46,'Tarifario '!A:O,13,FALSE)),0),IF($F$10="M4: Atl, Bol, Guaj, Mag, Suc, SAnd",IFERROR((VLOOKUP(D46,'Tarifario '!A:O,14,FALSE)),0),IF($F$10="M5: Cés, Ara, Vic, Ama, NdS, San",IFERROR((VLOOKUP(D46,'Tarifario '!A:O,15,FALSE)),0),0)))))) -> 0 | K46: 0 | L46: SI | M46: 0 | N46: 0
A47: 0 | C47: 0 | J47: =+IF($F$10="",0,IF($F$10="UNICA",IFERROR((VLOOKUP(D47,'Tarifario '!A:O,11,FALSE)),0),IF($F$10="M2: Cau,VdC, Nar, Tol, Hui, Caq, Put, Vau",IFERROR((VLOOKUP(D47,'Tarifario '!A:O,12,FALSE)),0),IF($F$10="M3: Ant, Cal, Qui, Ris, Cho, Cór, Guai",IFERROR((VLOOKUP(D47,'Tarifario '!A:O,13,FALSE)),0),IF($F$10="M4: Atl, Bol, Guaj, Mag, Suc, SAnd",IFERROR((VLOOKUP(D47,'Tarifario '!A:O,14,FALSE)),0),IF($F$10="M5: Cés, Ara, Vic, Ama, NdS, San",IFERROR((VLOOKUP(D47,'Tarifario '!A:O,15,FALSE)),0),0)))))) -> 0 | K47: 0 | L47: SI | M47: 0 | N47: 0
A48: 0 | C48: 0 | J48: =+IF($F$10="",0,IF($F$10="UNICA",IFERROR((VLOOKUP(D48,'Tarifario '!A:O,11,FALSE)),0),IF($F$10="M2: Cau,VdC, Nar, Tol, Hui, Caq, Put, Vau",IFERROR((VLOOKUP(D48,'Tarifario '!A:O,12,FALSE)),0),IF($F$10="M3: Ant, Cal, Qui, Ris, Cho, Cór, Guai",IFERROR((VLOOKUP(D48,'Tarifario '!A:O,13,FALSE)),0),IF($F$10="M4: Atl, Bol, Guaj, Mag, Suc, SAnd",IFERROR((VLOOKUP(D48,'Tarifario '!A:O,14,FALSE)),0),IF($F$10="M5: Cés, Ara, Vic, Ama, NdS, San",IFERROR((VLOOKUP(D48,'Tarifario '!A:O,15,FALSE)),0),0)))))) -> 0 | K48: 0 | L48: SI | M48: 0 | N48: 0
A49: 0 | C49: 0 | J49: =+IF($F$10="",0,IF($F$10="UNICA",IFERROR((VLOOKUP(D49,'Tarifario '!A:O,11,FALSE)),0),IF($F$10="M2: Cau,VdC, Nar, Tol, Hui, Caq, Put, Vau",IFERROR((VLOOKUP(D49,'Tarifario '!A:O,12,FALSE)),0),IF($F$10="M3: Ant, Cal, Qui, Ris, Cho, Cór, Guai",IFERROR((VLOOKUP(D49,'Tarifario '!A:O,13,FALSE)),0),IF($F$10="M4: Atl, Bol, Guaj, Mag, Suc, SAnd",IFERROR((VLOOKUP(D49,'Tarifario '!A:O,14,FALSE)),0),IF($F$10="M5: Cés, Ara, Vic, Ama, NdS, San",IFERROR((VLOOKUP(D49,'Tarifario '!A:O,15,FALSE)),0),0)))))) -> 0 | K49: 0 | L49: SI | M49: 0 | N49: 0
A50: 0 | C50: 0 | J50: =+IF($F$10="",0,IF($F$10="UNICA",IFERROR((VLOOKUP(D50,'Tarifario '!A:O,11,FALSE)),0),IF($F$10="M2: Cau,VdC, Nar, Tol, Hui, Caq, Put, Vau",IFERROR((VLOOKUP(D50,'Tarifario '!A:O,12,FALSE)),0),IF($F$10="M3: Ant, Cal, Qui, Ris, Cho, Cór, Guai",IFERROR((VLOOKUP(D50,'Tarifario '!A:O,13,FALSE)),0),IF($F$10="M4: Atl, Bol, Guaj, Mag, Suc, SAnd",IFERROR((VLOOKUP(D50,'Tarifario '!A:O,14,FALSE)),0),IF($F$10="M5: Cés, Ara, Vic, Ama, NdS, San",IFERROR((VLOOKUP(D50,'Tarifario '!A:O,15,FALSE)),0),0)))))) -> 0 | K50: 0 | L50: SI | M50: 0 | N50: 0
A51: 0 | C51: 0 | J51: =+IF($F$10="",0,IF($F$10="UNICA",IFERROR((VLOOKUP(D51,'Tarifario '!A:O,11,FALSE)),0),IF($F$10="M2: Cau,VdC, Nar, Tol, Hui, Caq, Put, Vau",IFERROR((VLOOKUP(D51,'Tarifario '!A:O,12,FALSE)),0),IF($F$10="M3: Ant, Cal, Qui, Ris, Cho, Cór, Guai",IFERROR((VLOOKUP(D51,'Tarifario '!A:O,13,FALSE)),0),IF($F$10="M4: Atl, Bol, Guaj, Mag, Suc, SAnd",IFERROR((VLOOKUP(D51,'Tarifario '!A:O,14,FALSE)),0),IF($F$10="M5: Cés, Ara, Vic, Ama, NdS, San",IFERROR((VLOOKUP(D51,'Tarifario '!A:O,15,FALSE)),0),0)))))) -> 0 | K51: 0 | L51: SI | M51: 0 | N51: 0
A52: 0 | C52: 0 | J52: =+IF($F$10="",0,IF($F$10="UNICA",IFERROR((VLOOKUP(D52,'Tarifario '!A:O,11,FALSE)),0),IF($F$10="M2: Cau,VdC, Nar, Tol, Hui, Caq, Put, Vau",IFERROR((VLOOKUP(D52,'Tarifario '!A:O,12,FALSE)),0),IF($F$10="M3: Ant, Cal, Qui, Ris, Cho, Cór, Guai",IFERROR((VLOOKUP(D52,'Tarifario '!A:O,13,FALSE)),0),IF($F$10="M4: Atl, Bol, Guaj, Mag, Suc, SAnd",IFERROR((VLOOKUP(D52,'Tarifario '!A:O,14,FALSE)),0),IF($F$10="M5: Cés, Ara, Vic, Ama, NdS, San",IFERROR((VLOOKUP(D52,'Tarifario '!A:O,15,FALSE)),0),0)))))) -> 0 | K52: 0 | L52: SI | M52: 0 | N52: 0
A53: 0 | C53: 0 | J53: =+IF($F$10="",0,IF($F$10="UNICA",IFERROR((VLOOKUP(D53,'Tarifario '!A:O,11,FALSE)),0),IF($F$10="M2: Cau,VdC, Nar, Tol, Hui, Caq, Put, Vau",IFERROR((VLOOKUP(D53,'Tarifario '!A:O,12,FALSE)),0),IF($F$10="M3: Ant, Cal, Qui, Ris, Cho, Cór, Guai",IFERROR((VLOOKUP(D53,'Tarifario '!A:O,13,FALSE)),0),IF($F$10="M4: Atl, Bol, Guaj, Mag, Suc, SAnd",IFERROR((VLOOKUP(D53,'Tarifario '!A:O,14,FALSE)),0),IF($F$10="M5: Cés, Ara, Vic, Ama, NdS, San",IFERROR((VLOOKUP(D53,'Tarifario '!A:O,15,FALSE)),0),0)))))) -> 0 | K53: 0 | L53: SI | M53: 0 | N53: 0
A54: 0 | C54: 0 | J54: =+IF($F$10="",0,IF($F$10="UNICA",IFERROR((VLOOKUP(D54,'Tarifario '!A:O,11,FALSE)),0),IF($F$10="M2: Cau,VdC, Nar, Tol, Hui, Caq, Put, Vau",IFERROR((VLOOKUP(D54,'Tarifario '!A:O,12,FALSE)),0),IF($F$10="M3: Ant, Cal, Qui, Ris, Cho, Cór, Guai",IFERROR((VLOOKUP(D54,'Tarifario '!A:O,13,FALSE)),0),IF($F$10="M4: Atl, Bol, Guaj, Mag, Suc, SAnd",IFERROR((VLOOKUP(D54,'Tarifario '!A:O,14,FALSE)),0),IF($F$10="M5: Cés, Ara, Vic, Ama, NdS, San",IFERROR((VLOOKUP(D54,'Tarifario '!A:O,15,FALSE)),0),0)))))) -> 0 | K54: 0 | L54: SI | M54: 0 | N54: 0
A55: 0 | C55: 0 | J55: =+IF($F$10="",0,IF($F$10="UNICA",IFERROR((VLOOKUP(D55,'Tarifario '!A:O,11,FALSE)),0),IF($F$10="M2: Cau,VdC, Nar, Tol, Hui, Caq, Put, Vau",IFERROR((VLOOKUP(D55,'Tarifario '!A:O,12,FALSE)),0),IF($F$10="M3: Ant, Cal, Qui, Ris, Cho, Cór, Guai",IFERROR((VLOOKUP(D55,'Tarifario '!A:O,13,FALSE)),0),IF($F$10="M4: Atl, Bol, Guaj, Mag, Suc, SAnd",IFERROR((VLOOKUP(D55,'Tarifario '!A:O,14,FALSE)),0),IF($F$10="M5: Cés, Ara, Vic, Ama, NdS, San",IFERROR((VLOOKUP(D55,'Tarifario '!A:O,15,FALSE)),0),0)))))) -> 0 | K55: 0 | L55: SI | M55: 0 | N55: 0
A56: 0 | C56: 0 | J56: =+IF($F$10="",0,IF($F$10="UNICA",IFERROR((VLOOKUP(D56,'Tarifario '!A:O,11,FALSE)),0),IF($F$10="M2: Cau,VdC, Nar, Tol, Hui, Caq, Put, Vau",IFERROR((VLOOKUP(D56,'Tarifario '!A:O,12,FALSE)),0),IF($F$10="M3: Ant, Cal, Qui, Ris, Cho, Cór, Guai",IFERROR((VLOOKUP(D56,'Tarifario '!A:O,13,FALSE)),0),IF($F$10="M4: Atl, Bol, Guaj, Mag, Suc, SAnd",IFERROR((VLOOKUP(D56,'Tarifario '!A:O,14,FALSE)),0),IF($F$10="M5: Cés, Ara, Vic, Ama, NdS, San",IFERROR((VLOOKUP(D56,'Tarifario '!A:O,15,FALSE)),0),0)))))) -> 0 | K56: 0 | L56: SI | M56: 0 | N56: 0
A57: 0 | C57: 0 | J57: =+IF($F$10="",0,IF($F$10="UNICA",IFERROR((VLOOKUP(D57,'Tarifario '!A:O,11,FALSE)),0),IF($F$10="M2: Cau,VdC, Nar, Tol, Hui, Caq, Put, Vau",IFERROR((VLOOKUP(D57,'Tarifario '!A:O,12,FALSE)),0),IF($F$10="M3: Ant, Cal, Qui, Ris, Cho, Cór, Guai",IFERROR((VLOOKUP(D57,'Tarifario '!A:O,13,FALSE)),0),IF($F$10="M4: Atl, Bol, Guaj, Mag, Suc, SAnd",IFERROR((VLOOKUP(D57,'Tarifario '!A:O,14,FALSE)),0),IF($F$10="M5: Cés, Ara, Vic, Ama, NdS, San",IFERROR((VLOOKUP(D57,'Tarifario '!A:O,15,FALSE)),0),0)))))) -> 0 | K57: 0 | L57: SI | M57: 0 | N57: 0
A58: 0 | C58: 0 | J58: =+IF($F$10="",0,IF($F$10="UNICA",IFERROR((VLOOKUP(D58,'Tarifario '!A:O,11,FALSE)),0),IF($F$10="M2: Cau,VdC, Nar, Tol, Hui, Caq, Put, Vau",IFERROR((VLOOKUP(D58,'Tarifario '!A:O,12,FALSE)),0),IF($F$10="M3: Ant, Cal, Qui, Ris, Cho, Cór, Guai",IFERROR((VLOOKUP(D58,'Tarifario '!A:O,13,FALSE)),0),IF($F$10="M4: Atl, Bol, Guaj, Mag, Suc, SAnd",IFERROR((VLOOKUP(D58,'Tarifario '!A:O,14,FALSE)),0),IF($F$10="M5: Cés, Ara, Vic, Ama, NdS, San",IFERROR((VLOOKUP(D58,'Tarifario '!A:O,15,FALSE)),0),0)))))) -> 0 | K58: 0 | L58: SI | M58: 0 | N58: 0
A59: 0 | C59: 0 | J59: =+IF($F$10="",0,IF($F$10="UNICA",IFERROR((VLOOKUP(D59,'Tarifario '!A:O,11,FALSE)),0),IF($F$10="M2: Cau,VdC, Nar, Tol, Hui, Caq, Put, Vau",IFERROR((VLOOKUP(D59,'Tarifario '!A:O,12,FALSE)),0),IF($F$10="M3: Ant, Cal, Qui, Ris, Cho, Cór, Guai",IFERROR((VLOOKUP(D59,'Tarifario '!A:O,13,FALSE)),0),IF($F$10="M4: Atl, Bol, Guaj, Mag, Suc, SAnd",IFERROR((VLOOKUP(D59,'Tarifario '!A:O,14,FALSE)),0),IF($F$10="M5: Cés, Ara, Vic, Ama, NdS, San",IFERROR((VLOOKUP(D59,'Tarifario '!A:O,15,FALSE)),0),0)))))) -> 0 | K59: 0 | L59: SI | M59: 0 | N59: 0
A60: 0 | C60: 0 | J60: =+IF($F$10="",0,IF($F$10="UNICA",IFERROR((VLOOKUP(D60,'Tarifario '!A:O,11,FALSE)),0),IF($F$10="M2: Cau,VdC, Nar, Tol, Hui, Caq, Put, Vau",IFERROR((VLOOKUP(D60,'Tarifario '!A:O,12,FALSE)),0),IF($F$10="M3: Ant, Cal, Qui, Ris, Cho, Cór, Guai",IFERROR((VLOOKUP(D60,'Tarifario '!A:O,13,FALSE)),0),IF($F$10="M4: Atl, Bol, Guaj, Mag, Suc, SAnd",IFERROR((VLOOKUP(D60,'Tarifario '!A:O,14,FALSE)),0),IF($F$10="M5: Cés, Ara, Vic, Ama, NdS, San",IFERROR((VLOOKUP(D60,'Tarifario '!A:O,15,FALSE)),0),0)))))) -> 0 | K60: 0 | L60: SI | M60: 0 | N60: 0
A61: 0 | C61: 0 | J61: =+IF($F$10="",0,IF($F$10="UNICA",IFERROR((VLOOKUP(D61,'Tarifario '!A:O,11,FALSE)),0),IF($F$10="M2: Cau,VdC, Nar, Tol, Hui, Caq, Put, Vau",IFERROR((VLOOKUP(D61,'Tarifario '!A:O,12,FALSE)),0),IF($F$10="M3: Ant, Cal, Qui, Ris, Cho, Cór, Guai",IFERROR((VLOOKUP(D61,'Tarifario '!A:O,13,FALSE)),0),IF($F$10="M4: Atl, Bol, Guaj, Mag, Suc, SAnd",IFERROR((VLOOKUP(D61,'Tarifario '!A:O,14,FALSE)),0),IF($F$10="M5: Cés, Ara, Vic, Ama, NdS, San",IFERROR((VLOOKUP(D61,'Tarifario '!A:O,15,FALSE)),0),0)))))) -> 0 | K61: 0 | L61: SI | M61: 0 | N61: 0
A62: 0 | C62: 0 | J62: =+IF($F$10="",0,IF($F$10="UNICA",IFERROR((VLOOKUP(D62,'Tarifario '!A:O,11,FALSE)),0),IF($F$10="M2: Cau,VdC, Nar, Tol, Hui, Caq, Put, Vau",IFERROR((VLOOKUP(D62,'Tarifario '!A:O,12,FALSE)),0),IF($F$10="M3: Ant, Cal, Qui, Ris, Cho, Cór, Guai",IFERROR((VLOOKUP(D62,'Tarifario '!A:O,13,FALSE)),0),IF($F$10="M4: Atl, Bol, Guaj, Mag, Suc, SAnd",IFERROR((VLOOKUP(D62,'Tarifario '!A:O,14,FALSE)),0),IF($F$10="M5: Cés, Ara, Vic, Ama, NdS, San",IFERROR((VLOOKUP(D62,'Tarifario '!A:O,15,FALSE)),0),0)))))) -> 0 | K62: 0 | L62: SI | M62: 0 | N62: 0
A63: 0 | C63: 0 | J63: =+IF($F$10="",0,IF($F$10="UNICA",IFERROR((VLOOKUP(D63,'Tarifario '!A:O,11,FALSE)),0),IF($F$10="M2: Cau,VdC, Nar, Tol, Hui, Caq, Put, Vau",IFERROR((VLOOKUP(D63,'Tarifario '!A:O,12,FALSE)),0),IF($F$10="M3: Ant, Cal, Qui, Ris, Cho, Cór, Guai",IFERROR((VLOOKUP(D63,'Tarifario '!A:O,13,FALSE)),0),IF($F$10="M4: Atl, Bol, Guaj, Mag, Suc, SAnd",IFERROR((VLOOKUP(D63,'Tarifario '!A:O,14,FALSE)),0),IF($F$10="M5: Cés, Ara, Vic, Ama, NdS, San",IFERROR((VLOOKUP(D63,'Tarifario '!A:O,15,FALSE)),0),0)))))) -> 0 | K63: 0 | L63: SI | M63: 0 | N63: 0
A64: 0 | C64: 0 | J64: =+IF($F$10="",0,IF($F$10="UNICA",IFERROR((VLOOKUP(D64,'Tarifario '!A:O,11,FALSE)),0),IF($F$10="M2: Cau,VdC, Nar, Tol, Hui, Caq, Put, Vau",IFERROR((VLOOKUP(D64,'Tarifario '!A:O,12,FALSE)),0),IF($F$10="M3: Ant, Cal, Qui, Ris, Cho, Cór, Guai",IFERROR((VLOOKUP(D64,'Tarifario '!A:O,13,FALSE)),0),IF($F$10="M4: Atl, Bol, Guaj, Mag, Suc, SAnd",IFERROR((VLOOKUP(D64,'Tarifario '!A:O,14,FALSE)),0),IF($F$10="M5: Cés, Ara, Vic, Ama, NdS, San",IFERROR((VLOOKUP(D64,'Tarifario '!A:O,15,FALSE)),0),0)))))) -> 0 | K64: 0 | L64: SI | M64: 0 | N64: 0
A65: 0 | C65: 0 | J65: =+IF($F$10="",0,IF($F$10="UNICA",IFERROR((VLOOKUP(D65,'Tarifario '!A:O,11,FALSE)),0),IF($F$10="M2: Cau,VdC, Nar, Tol, Hui, Caq, Put, Vau",IFERROR((VLOOKUP(D65,'Tarifario '!A:O,12,FALSE)),0),IF($F$10="M3: Ant, Cal, Qui, Ris, Cho, Cór, Guai",IFERROR((VLOOKUP(D65,'Tarifario '!A:O,13,FALSE)),0),IF($F$10="M4: Atl, Bol, Guaj, Mag, Suc, SAnd",IFERROR((VLOOKUP(D65,'Tarifario '!A:O,14,FALSE)),0),IF($F$10="M5: Cés, Ara, Vic, Ama, NdS, San",IFERROR((VLOOKUP(D65,'Tarifario '!A:O,15,FALSE)),0),0)))))) -> 0 | K65: 0 | L65: SI | M65: 0 | N65: 0
A66: 0 | C66: 0 | J66: =+IF($F$10="",0,IF($F$10="UNICA",IFERROR((VLOOKUP(D66,'Tarifario '!A:O,11,FALSE)),0),IF($F$10="M2: Cau,VdC, Nar, Tol, Hui, Caq, Put, Vau",IFERROR((VLOOKUP(D66,'Tarifario '!A:O,12,FALSE)),0),IF($F$10="M3: Ant, Cal, Qui, Ris, Cho, Cór, Guai",IFERROR((VLOOKUP(D66,'Tarifario '!A:O,13,FALSE)),0),IF($F$10="M4: Atl, Bol, Guaj, Mag, Suc, SAnd",IFERROR((VLOOKUP(D66,'Tarifario '!A:O,14,FALSE)),0),IF($F$10="M5: Cés, Ara, Vic, Ama, NdS, San",IFERROR((VLOOKUP(D66,'Tarifario '!A:O,15,FALSE)),0),0)))))) -> 0 | K66: 0 | L66: SI | M66: 0 | N66: 0
A67: 0 | C67: 0 | J67: =+IF($F$10="",0,IF($F$10="UNICA",IFERROR((VLOOKUP(D67,'Tarifario '!A:O,11,FALSE)),0),IF($F$10="M2: Cau,VdC, Nar, Tol, Hui, Caq, Put, Vau",IFERROR((VLOOKUP(D67,'Tarifario '!A:O,12,FALSE)),0),IF($F$10="M3: Ant, Cal, Qui, Ris, Cho, Cór, Guai",IFERROR((VLOOKUP(D67,'Tarifario '!A:O,13,FALSE)),0),IF($F$10="M4: Atl, Bol, Guaj, Mag, Suc, SAnd",IFERROR((VLOOKUP(D67,'Tarifario '!A:O,14,FALSE)),0),IF($F$10="M5: Cés, Ara, Vic, Ama, NdS, San",IFERROR((VLOOKUP(D67,'Tarifario '!A:O,15,FALSE)),0),0)))))) -> 0 | K67: 0 | L67: SI | M67: 0 | N67: 0
A68: 0 | C68: 0 | J68: =+IF($F$10="",0,IF($F$10="UNICA",IFERROR((VLOOKUP(D68,'Tarifario '!A:O,11,FALSE)),0),IF($F$10="M2: Cau,VdC, Nar, Tol, Hui, Caq, Put, Vau",IFERROR((VLOOKUP(D68,'Tarifario '!A:O,12,FALSE)),0),IF($F$10="M3: Ant, Cal, Qui, Ris, Cho, Cór, Guai",IFERROR((VLOOKUP(D68,'Tarifario '!A:O,13,FALSE)),0),IF($F$10="M4: Atl, Bol, Guaj, Mag, Suc, SAnd",IFERROR((VLOOKUP(D68,'Tarifario '!A:O,14,FALSE)),0),IF($F$10="M5: Cés, Ara, Vic, Ama, NdS, San",IFERROR((VLOOKUP(D68,'Tarifario '!A:O,15,FALSE)),0),0)))))) -> 0 | K68: 0 | L68: SI | M68: 0 | N68: 0
A69: 0 | C69: 0 | J69: =+IF($F$10="",0,IF($F$10="UNICA",IFERROR((VLOOKUP(D69,'Tarifario '!A:O,11,FALSE)),0),IF($F$10="M2: Cau,VdC, Nar, Tol, Hui, Caq, Put, Vau",IFERROR((VLOOKUP(D69,'Tarifario '!A:O,12,FALSE)),0),IF($F$10="M3: Ant, Cal, Qui, Ris, Cho, Cór, Guai",IFERROR((VLOOKUP(D69,'Tarifario '!A:O,13,FALSE)),0),IF($F$10="M4: Atl, Bol, Guaj, Mag, Suc, SAnd",IFERROR((VLOOKUP(D69,'Tarifario '!A:O,14,FALSE)),0),IF($F$10="M5: Cés, Ara, Vic, Ama, NdS, San",IFERROR((VLOOKUP(D69,'Tarifario '!A:O,15,FALSE)),0),0)))))) -> 0 | K69: 0 | L69: SI | M69: 0 | N69: 0
A70: 0 | C70: 0 | J70: =+IF($F$10="",0,IF($F$10="UNICA",IFERROR((VLOOKUP(D70,'Tarifario '!A:O,11,FALSE)),0),IF($F$10="M2: Cau,VdC, Nar, Tol, Hui, Caq, Put, Vau",IFERROR((VLOOKUP(D70,'Tarifario '!A:O,12,FALSE)),0),IF($F$10="M3: Ant, Cal, Qui, Ris, Cho, Cór, Guai",IFERROR((VLOOKUP(D70,'Tarifario '!A:O,13,FALSE)),0),IF($F$10="M4: Atl, Bol, Guaj, Mag, Suc, SAnd",IFERROR((VLOOKUP(D70,'Tarifario '!A:O,14,FALSE)),0),IF($F$10="M5: Cés, Ara, Vic, Ama, NdS, San",IFERROR((VLOOKUP(D70,'Tarifario '!A:O,15,FALSE)),0),0)))))) -> 0 | K70: 0 | L70: SI | M70: 0 | N70: 0
A71: 0 | C71: 0 | J71: =+IF($F$10="",0,IF($F$10="UNICA",IFERROR((VLOOKUP(D71,'Tarifario '!A:O,11,FALSE)),0),IF($F$10="M2: Cau,VdC, Nar, Tol, Hui, Caq, Put, Vau",IFERROR((VLOOKUP(D71,'Tarifario '!A:O,12,FALSE)),0),IF($F$10="M3: Ant, Cal, Qui, Ris, Cho, Cór, Guai",IFERROR((VLOOKUP(D71,'Tarifario '!A:O,13,FALSE)),0),IF($F$10="M4: Atl, Bol, Guaj, Mag, Suc, SAnd",IFERROR((VLOOKUP(D71,'Tarifario '!A:O,14,FALSE)),0),IF($F$10="M5: Cés, Ara, Vic, Ama, NdS, San",IFERROR((VLOOKUP(D71,'Tarifario '!A:O,15,FALSE)),0),0)))))) -> 0 | K71: 0 | L71: SI | M71: 0 | N71: 0
A72: 0 | C72: 0 | J72: =+IF($F$10="",0,IF($F$10="UNICA",IFERROR((VLOOKUP(D72,'Tarifario '!A:O,11,FALSE)),0),IF($F$10="M2: Cau,VdC, Nar, Tol, Hui, Caq, Put, Vau",IFERROR((VLOOKUP(D72,'Tarifario '!A:O,12,FALSE)),0),IF($F$10="M3: Ant, Cal, Qui, Ris, Cho, Cór, Guai",IFERROR((VLOOKUP(D72,'Tarifario '!A:O,13,FALSE)),0),IF($F$10="M4: Atl, Bol, Guaj, Mag, Suc, SAnd",IFERROR((VLOOKUP(D72,'Tarifario '!A:O,14,FALSE)),0),IF($F$10="M5: Cés, Ara, Vic, Ama, NdS, San",IFERROR((VLOOKUP(D72,'Tarifario '!A:O,15,FALSE)),0),0)))))) -> 0 | K72: 0 | L72: SI | M72: 0 | N72: 0
A73: 0 | C73: 0 | J73: =+IF($F$10="",0,IF($F$10="UNICA",IFERROR((VLOOKUP(D73,'Tarifario '!A:O,11,FALSE)),0),IF($F$10="M2: Cau,VdC, Nar, Tol, Hui, Caq, Put, Vau",IFERROR((VLOOKUP(D73,'Tarifario '!A:O,12,FALSE)),0),IF($F$10="M3: Ant, Cal, Qui, Ris, Cho, Cór, Guai",IFERROR((VLOOKUP(D73,'Tarifario '!A:O,13,FALSE)),0),IF($F$10="M4: Atl, Bol, Guaj, Mag, Suc, SAnd",IFERROR((VLOOKUP(D73,'Tarifario '!A:O,14,FALSE)),0),IF($F$10="M5: Cés, Ara, Vic, Ama, NdS, San",IFERROR((VLOOKUP(D73,'Tarifario '!A:O,15,FALSE)),0),0)))))) -> 0 | K73: 0 | L73: SI | M73: 0 | N73: 0
A74: 0 | C74: 0 | J74: =+IF($F$10="",0,IF($F$10="UNICA",IFERROR((VLOOKUP(D74,'Tarifario '!A:O,11,FALSE)),0),IF($F$10="M2: Cau,VdC, Nar, Tol, Hui, Caq, Put, Vau",IFERROR((VLOOKUP(D74,'Tarifario '!A:O,12,FALSE)),0),IF($F$10="M3: Ant, Cal, Qui, Ris, Cho, Cór, Guai",IFERROR((VLOOKUP(D74,'Tarifario '!A:O,13,FALSE)),0),IF($F$10="M4: Atl, Bol, Guaj, Mag, Suc, SAnd",IFERROR((VLOOKUP(D74,'Tarifario '!A:O,14,FALSE)),0),IF($F$10="M5: Cés, Ara, Vic, Ama, NdS, San",IFERROR((VLOOKUP(D74,'Tarifario '!A:O,15,FALSE)),0),0)))))) -> 0 | K74: 0 | L74: SI | M74: 0 | N74: 0
A75: 0 | C75: 0 | J75: =+IF($F$10="",0,IF($F$10="UNICA",IFERROR((VLOOKUP(D75,'Tarifario '!A:O,11,FALSE)),0),IF($F$10="M2: Cau,VdC, Nar, Tol, Hui, Caq, Put, Vau",IFERROR((VLOOKUP(D75,'Tarifario '!A:O,12,FALSE)),0),IF($F$10="M3: Ant, Cal, Qui, Ris, Cho, Cór, Guai",IFERROR((VLOOKUP(D75,'Tarifario '!A:O,13,FALSE)),0),IF($F$10="M4: Atl, Bol, Guaj, Mag, Suc, SAnd",IFERROR((VLOOKUP(D75,'Tarifario '!A:O,14,FALSE)),0),IF($F$10="M5: Cés, Ara, Vic, Ama, NdS, San",IFERROR((VLOOKUP(D75,'Tarifario '!A:O,15,FALSE)),0),0)))))) -> 0 | K75: 0 | L75: SI | M75: 0 | N75: 0
A76: 0 | C76: 0 | J76: =+IF($F$10="",0,IF($F$10="UNICA",IFERROR((VLOOKUP(D76,'Tarifario '!A:O,11,FALSE)),0),IF($F$10="M2: Cau,VdC, Nar, Tol, Hui, Caq, Put, Vau",IFERROR((VLOOKUP(D76,'Tarifario '!A:O,12,FALSE)),0),IF($F$10="M3: Ant, Cal, Qui, Ris, Cho, Cór, Guai",IFERROR((VLOOKUP(D76,'Tarifario '!A:O,13,FALSE)),0),IF($F$10="M4: Atl, Bol, Guaj, Mag, Suc, SAnd",IFERROR((VLOOKUP(D76,'Tarifario '!A:O,14,FALSE)),0),IF($F$10="M5: Cés, Ara, Vic, Ama, NdS, San",IFERROR((VLOOKUP(D76,'Tarifario '!A:O,15,FALSE)),0),0)))))) -> 0 | K76: 0 | L76: SI | M76: 0 | N76: 0
A77: 0 | C77: 0 | J77: =+IF($F$10="",0,IF($F$10="UNICA",IFERROR((VLOOKUP(D77,'Tarifario '!A:O,11,FALSE)),0),IF($F$10="M2: Cau,VdC, Nar, Tol, Hui, Caq, Put, Vau",IFERROR((VLOOKUP(D77,'Tarifario '!A:O,12,FALSE)),0),IF($F$10="M3: Ant, Cal, Qui, Ris, Cho, Cór, Guai",IFERROR((VLOOKUP(D77,'Tarifario '!A:O,13,FALSE)),0),IF($F$10="M4: Atl, Bol, Guaj, Mag, Suc, SAnd",IFERROR((VLOOKUP(D77,'Tarifario '!A:O,14,FALSE)),0),IF($F$10="M5: Cés, Ara, Vic, Ama, NdS, San",IFERROR((VLOOKUP(D77,'Tarifario '!A:O,15,FALSE)),0),0)))))) -> 0 | K77: 0 | L77: SI | M77: 0 | N77: 0
A78: 0 | C78: 0 | J78: =+IF($F$10="",0,IF($F$10="UNICA",IFERROR((VLOOKUP(D78,'Tarifario '!A:O,11,FALSE)),0),IF($F$10="M2: Cau,VdC, Nar, Tol, Hui, Caq, Put, Vau",IFERROR((VLOOKUP(D78,'Tarifario '!A:O,12,FALSE)),0),IF($F$10="M3: Ant, Cal, Qui, Ris, Cho, Cór, Guai",IFERROR((VLOOKUP(D78,'Tarifario '!A:O,13,FALSE)),0),IF($F$10="M4: Atl, Bol, Guaj, Mag, Suc, SAnd",IFERROR((VLOOKUP(D78,'Tarifario '!A:O,14,FALSE)),0),IF($F$10="M5: Cés, Ara, Vic, Ama, NdS, San",IFERROR((VLOOKUP(D78,'Tarifario '!A:O,15,FALSE)),0),0)))))) -> 0 | K78: 0 | L78: SI | M78: 0 | N78: 0
A79: 0 | C79: 0 | J79: =+IF($F$10="",0,IF($F$10="UNICA",IFERROR((VLOOKUP(D79,'Tarifario '!A:O,11,FALSE)),0),IF($F$10="M2: Cau,VdC, Nar, Tol, Hui, Caq, Put, Vau",IFERROR((VLOOKUP(D79,'Tarifario '!A:O,12,FALSE)),0),IF($F$10="M3: Ant, Cal, Qui, Ris, Cho, Cór, Guai",IFERROR((VLOOKUP(D79,'Tarifario '!A:O,13,FALSE)),0),IF($F$10="M4: Atl, Bol, Guaj, Mag, Suc, SAnd",IFERROR((VLOOKUP(D79,'Tarifario '!A:O,14,FALSE)),0),IF($F$10="M5: Cés, Ara, Vic, Ama, NdS, San",IFERROR((VLOOKUP(D79,'Tarifario '!A:O,15,FALSE)),0),0)))))) -> 0 | K79: 0 | L79: SI | M79: 0 | N79: 0
A80: =+IF(D80="",0,1) -> 0 | C80: 0 | J80: =+IF($F$10="",0,IF($F$10="UNICA",IFERROR((VLOOKUP(D80,'Tarifario '!A:O,11,FALSE)),0),IF($F$10="M2: Cau,VdC, Nar, Tol, Hui, Caq, Put, Vau",IFERROR((VLOOKUP(D80,'Tarifario '!A:O,12,FALSE)),0),IF($F$10="M3: Ant, Cal, Qui, Ris, Cho, Cór, Guai",IFERROR((VLOOKUP(D80,'Tarifario '!A:O,13,FALSE)),0),IF($F$10="M4: Atl, Bol, Guaj, Mag, Suc, SAnd",IFERROR((VLOOKUP(D80,'Tarifario '!A:O,14,FALSE)),0),IF($F$10="M5: Cés, Ara, Vic, Ama, NdS, San",IFERROR((VLOOKUP(D80,'Tarifario '!A:O,15,FALSE)),0),0)))))) -> 0 | K80: =+J80*I80 -> 0 | L80: SI | M80: =+ROUND((IF(L80="SI",(K80*0.19),0)),0) -> 0 | N80: =+K80+M80 -> 0
A81: 0 | C81: 0 | J81: =+IF($F$10="",0,IF($F$10="UNICA",IFERROR((VLOOKUP(D81,'Tarifario '!A:O,11,FALSE)),0),IF($F$10="M2: Cau,VdC, Nar, Tol, Hui, Caq, Put, Vau",IFERROR((VLOOKUP(D81,'Tarifario '!A:O,12,FALSE)),0),IF($F$10="M3: Ant, Cal, Qui, Ris, Cho, Cór, Guai",IFERROR((VLOOKUP(D81,'Tarifario '!A:O,13,FALSE)),0),IF($F$10="M4: Atl, Bol, Guaj, Mag, Suc, SAnd",IFERROR((VLOOKUP(D81,'Tarifario '!A:O,14,FALSE)),0),IF($F$10="M5: Cés, Ara, Vic, Ama, NdS, San",IFERROR((VLOOKUP(D81,'Tarifario '!A:O,15,FALSE)),0),0)))))) -> 0 | K81: 0 | L81: SI | M81: 0 | N81: 0
A82: 0 | C82: 0 | J82: =+IF($F$10="",0,IF($F$10="UNICA",IFERROR((VLOOKUP(D82,'Tarifario '!A:O,11,FALSE)),0),IF($F$10="M2: Cau,VdC, Nar, Tol, Hui, Caq, Put, Vau",IFERROR((VLOOKUP(D82,'Tarifario '!A:O,12,FALSE)),0),IF($F$10="M3: Ant, Cal, Qui, Ris, Cho, Cór, Guai",IFERROR((VLOOKUP(D82,'Tarifario '!A:O,13,FALSE)),0),IF($F$10="M4: Atl, Bol, Guaj, Mag, Suc, SAnd",IFERROR((VLOOKUP(D82,'Tarifario '!A:O,14,FALSE)),0),IF($F$10="M5: Cés, Ara, Vic, Ama, NdS, San",IFERROR((VLOOKUP(D82,'Tarifario '!A:O,15,FALSE)),0),0)))))) -> 0 | K82: 0 | L82: SI | M82: 0 | N82: 0
A83: 0 | C83: 0 | J83: =+IF($F$10="",0,IF($F$10="UNICA",IFERROR((VLOOKUP(D83,'Tarifario '!A:O,11,FALSE)),0),IF($F$10="M2: Cau,VdC, Nar, Tol, Hui, Caq, Put, Vau",IFERROR((VLOOKUP(D83,'Tarifario '!A:O,12,FALSE)),0),IF($F$10="M3: Ant, Cal, Qui, Ris, Cho, Cór, Guai",IFERROR((VLOOKUP(D83,'Tarifario '!A:O,13,FALSE)),0),IF($F$10="M4: Atl, Bol, Guaj, Mag, Suc, SAnd",IFERROR((VLOOKUP(D83,'Tarifario '!A:O,14,FALSE)),0),IF($F$10="M5: Cés, Ara, Vic, Ama, NdS, San",IFERROR((VLOOKUP(D83,'Tarifario '!A:O,15,FALSE)),0),0)))))) -> 0 | K83: 0 | L83: SI | M83: 0 | N83: 0
A84: 0 | C84: 0 | J84: =+IF($F$10="",0,IF($F$10="UNICA",IFERROR((VLOOKUP(D84,'Tarifario '!A:O,11,FALSE)),0),IF($F$10="M2: Cau,VdC, Nar, Tol, Hui, Caq, Put, Vau",IFERROR((VLOOKUP(D84,'Tarifario '!A:O,12,FALSE)),0),IF($F$10="M3: Ant, Cal, Qui, Ris, Cho, Cór, Guai",IFERROR((VLOOKUP(D84,'Tarifario '!A:O,13,FALSE)),0),IF($F$10="M4: Atl, Bol, Guaj, Mag, Suc, SAnd",IFERROR((VLOOKUP(D84,'Tarifario '!A:O,14,FALSE)),0),IF($F$10="M5: Cés, Ara, Vic, Ama, NdS, San",IFERROR((VLOOKUP(D84,'Tarifario '!A:O,15,FALSE)),0),0)))))) -> 0 | K84: 0 | L84: SI | M84: 0 | N84: 0
A85: 0 | C85: 0 | J85: =+IF($F$10="",0,IF($F$10="UNICA",IFERROR((VLOOKUP(D85,'Tarifario '!A:O,11,FALSE)),0),IF($F$10="M2: Cau,VdC, Nar, Tol, Hui, Caq, Put, Vau",IFERROR((VLOOKUP(D85,'Tarifario '!A:O,12,FALSE)),0),IF($F$10="M3: Ant, Cal, Qui, Ris, Cho, Cór, Guai",IFERROR((VLOOKUP(D85,'Tarifario '!A:O,13,FALSE)),0),IF($F$10="M4: Atl, Bol, Guaj, Mag, Suc, SAnd",IFERROR((VLOOKUP(D85,'Tarifario '!A:O,14,FALSE)),0),IF($F$10="M5: Cés, Ara, Vic, Ama, NdS, San",IFERROR((VLOOKUP(D85,'Tarifario '!A:O,15,FALSE)),0),0)))))) -> 0 | K85: 0 | L85: SI | M85: 0 | N85: 0
A86: 0 | C86: 0 | J86: =+IF($F$10="",0,IF($F$10="UNICA",IFERROR((VLOOKUP(D86,'Tarifario '!A:O,11,FALSE)),0),IF($F$10="M2: Cau,VdC, Nar, Tol, Hui, Caq, Put, Vau",IFERROR((VLOOKUP(D86,'Tarifario '!A:O,12,FALSE)),0),IF($F$10="M3: Ant, Cal, Qui, Ris, Cho, Cór, Guai",IFERROR((VLOOKUP(D86,'Tarifario '!A:O,13,FALSE)),0),IF($F$10="M4: Atl, Bol, Guaj, Mag, Suc, SAnd",IFERROR((VLOOKUP(D86,'Tarifario '!A:O,14,FALSE)),0),IF($F$10="M5: Cés, Ara, Vic, Ama, NdS, San",IFERROR((VLOOKUP(D86,'Tarifario '!A:O,15,FALSE)),0),0)))))) -> 0 | K86: 0 | L86: SI | M86: 0 | N86: 0
A87: 0 | C87: 0 | J87: =+IF($F$10="",0,IF($F$10="UNICA",IFERROR((VLOOKUP(D87,'Tarifario '!A:O,11,FALSE)),0),IF($F$10="M2: Cau,VdC, Nar, Tol, Hui, Caq, Put, Vau",IFERROR((VLOOKUP(D87,'Tarifario '!A:O,12,FALSE)),0),IF($F$10="M3: Ant, Cal, Qui, Ris, Cho, Cór, Guai",IFERROR((VLOOKUP(D87,'Tarifario '!A:O,13,FALSE)),0),IF($F$10="M4: Atl, Bol, Guaj, Mag, Suc, SAnd",IFERROR((VLOOKUP(D87,'Tarifario '!A:O,14,FALSE)),0),IF($F$10="M5: Cés, Ara, Vic, Ama, NdS, San",IFERROR((VLOOKUP(D87,'Tarifario '!A:O,15,FALSE)),0),0)))))) -> 0 | K87: 0 | L87: SI | M87: 0 | N87: 0
A88: 0 | C88: 0 | J88: =+IF($F$10="",0,IF($F$10="UNICA",IFERROR((VLOOKUP(D88,'Tarifario '!A:O,11,FALSE)),0),IF($F$10="M2: Cau,VdC, Nar, Tol, Hui, Caq, Put, Vau",IFERROR((VLOOKUP(D88,'Tarifario '!A:O,12,FALSE)),0),IF($F$10="M3: Ant, Cal, Qui, Ris, Cho, Cór, Guai",IFERROR((VLOOKUP(D88,'Tarifario '!A:O,13,FALSE)),0),IF($F$10="M4: Atl, Bol, Guaj, Mag, Suc, SAnd",IFERROR((VLOOKUP(D88,'Tarifario '!A:O,14,FALSE)),0),IF($F$10="M5: Cés, Ara, Vic, Ama, NdS, San",IFERROR((VLOOKUP(D88,'Tarifario '!A:O,15,FALSE)),0),0)))))) -> 0 | K88: 0 | L88: SI | M88: 0 | N88: 0
A89: 0 | C89: 0 | J89: =+IF($F$10="",0,IF($F$10="UNICA",IFERROR((VLOOKUP(D89,'Tarifario '!A:O,11,FALSE)),0),IF($F$10="M2: Cau,VdC, Nar, Tol, Hui, Caq, Put, Vau",IFERROR((VLOOKUP(D89,'Tarifario '!A:O,12,FALSE)),0),IF($F$10="M3: Ant, Cal, Qui, Ris, Cho, Cór, Guai",IFERROR((VLOOKUP(D89,'Tarifario '!A:O,13,FALSE)),0),IF($F$10="M4: Atl, Bol, Guaj, Mag, Suc, SAnd",IFERROR((VLOOKUP(D89,'Tarifario '!A:O,14,FALSE)),0),IF($F$10="M5: Cés, Ara, Vic, Ama, NdS, San",IFERROR((VLOOKUP(D89,'Tarifario '!A:O,15,FALSE)),0),0)))))) -> 0 | K89: 0 | L89: SI | M89: 0 | N89: 0
A90: 0 | C90: 0 | J90: =+IF($F$10="",0,IF($F$10="UNICA",IFERROR((VLOOKUP(D90,'Tarifario '!A:O,11,FALSE)),0),IF($F$10="M2: Cau,VdC, Nar, Tol, Hui, Caq, Put, Vau",IFERROR((VLOOKUP(D90,'Tarifario '!A:O,12,FALSE)),0),IF($F$10="M3: Ant, Cal, Qui, Ris, Cho, Cór, Guai",IFERROR((VLOOKUP(D90,'Tarifario '!A:O,13,FALSE)),0),IF($F$10="M4: Atl, Bol, Guaj, Mag, Suc, SAnd",IFERROR((VLOOKUP(D90,'Tarifario '!A:O,14,FALSE)),0),IF($F$10="M5: Cés, Ara, Vic, Ama, NdS, San",IFERROR((VLOOKUP(D90,'Tarifario '!A:O,15,FALSE)),0),0)))))) -> 0 | K90: 0 | L90: SI | M90: 0 | N90: 0
A91: 0 | C91: 0 | J91: =+IF($F$10="",0,IF($F$10="UNICA",IFERROR((VLOOKUP(D91,'Tarifario '!A:O,11,FALSE)),0),IF($F$10="M2: Cau,VdC, Nar, Tol, Hui, Caq, Put, Vau",IFERROR((VLOOKUP(D91,'Tarifario '!A:O,12,FALSE)),0),IF($F$10="M3: Ant, Cal, Qui, Ris, Cho, Cór, Guai",IFERROR((VLOOKUP(D91,'Tarifario '!A:O,13,FALSE)),0),IF($F$10="M4: Atl, Bol, Guaj, Mag, Suc, SAnd",IFERROR((VLOOKUP(D91,'Tarifario '!A:O,14,FALSE)),0),IF($F$10="M5: Cés, Ara, Vic, Ama, NdS, San",IFERROR((VLOOKUP(D91,'Tarifario '!A:O,15,FALSE)),0),0)))))) -> 0 | K91: 0 | L91: SI | M91: 0 | N91: 0
A92: 0 | C92: 0 | J92: =+IF($F$10="",0,IF($F$10="UNICA",IFERROR((VLOOKUP(D92,'Tarifario '!A:O,11,FALSE)),0),IF($F$10="M2: Cau,VdC, Nar, Tol, Hui, Caq, Put, Vau",IFERROR((VLOOKUP(D92,'Tarifario '!A:O,12,FALSE)),0),IF($F$10="M3: Ant, Cal, Qui, Ris, Cho, Cór, Guai",IFERROR((VLOOKUP(D92,'Tarifario '!A:O,13,FALSE)),0),IF($F$10="M4: Atl, Bol, Guaj, Mag, Suc, SAnd",IFERROR((VLOOKUP(D92,'Tarifario '!A:O,14,FALSE)),0),IF($F$10="M5: Cés, Ara, Vic, Ama, NdS, San",IFERROR((VLOOKUP(D92,'Tarifario '!A:O,15,FALSE)),0),0)))))) -> 0 | K92: 0 | L92: SI | M92: 0 | N92: 0
A93: 0 | C93: 0 | J93: =+IF($F$10="",0,IF($F$10="UNICA",IFERROR((VLOOKUP(D93,'Tarifario '!A:O,11,FALSE)),0),IF($F$10="M2: Cau,VdC, Nar, Tol, Hui, Caq, Put, Vau",IFERROR((VLOOKUP(D93,'Tarifario '!A:O,12,FALSE)),0),IF($F$10="M3: Ant, Cal, Qui, Ris, Cho, Cór, Guai",IFERROR((VLOOKUP(D93,'Tarifario '!A:O,13,FALSE)),0),IF($F$10="M4: Atl, Bol, Guaj, Mag, Suc, SAnd",IFERROR((VLOOKUP(D93,'Tarifario '!A:O,14,FALSE)),0),IF($F$10="M5: Cés, Ara, Vic, Ama, NdS, San",IFERROR((VLOOKUP(D93,'Tarifario '!A:O,15,FALSE)),0),0)))))) -> 0 | K93: 0 | L93: SI | M93: 0 | N93: 0
A94: 0 | C94: 0 | J94: =+IF($F$10="",0,IF($F$10="UNICA",IFERROR((VLOOKUP(D94,'Tarifario '!A:O,11,FALSE)),0),IF($F$10="M2: Cau,VdC, Nar, Tol, Hui, Caq, Put, Vau",IFERROR((VLOOKUP(D94,'Tarifario '!A:O,12,FALSE)),0),IF($F$10="M3: Ant, Cal, Qui, Ris, Cho, Cór, Guai",IFERROR((VLOOKUP(D94,'Tarifario '!A:O,13,FALSE)),0),IF($F$10="M4: Atl, Bol, Guaj, Mag, Suc, SAnd",IFERROR((VLOOKUP(D94,'Tarifario '!A:O,14,FALSE)),0),IF($F$10="M5: Cés, Ara, Vic, Ama, NdS, San",IFERROR((VLOOKUP(D94,'Tarifario '!A:O,15,FALSE)),0),0)))))) -> 0 | K94: 0 | L94: SI | M94: 0 | N94: 0
A95: 0 | C95: 0 | J95: =+IF($F$10="",0,IF($F$10="UNICA",IFERROR((VLOOKUP(D95,'Tarifario '!A:O,11,FALSE)),0),IF($F$10="M2: Cau,VdC, Nar, Tol, Hui, Caq, Put, Vau",IFERROR((VLOOKUP(D95,'Tarifario '!A:O,12,FALSE)),0),IF($F$10="M3: Ant, Cal, Qui, Ris, Cho, Cór, Guai",IFERROR((VLOOKUP(D95,'Tarifario '!A:O,13,FALSE)),0),IF($F$10="M4: Atl, Bol, Guaj, Mag, Suc, SAnd",IFERROR((VLOOKUP(D95,'Tarifario '!A:O,14,FALSE)),0),IF($F$10="M5: Cés, Ara, Vic, Ama, NdS, San",IFERROR((VLOOKUP(D95,'Tarifario '!A:O,15,FALSE)),0),0)))))) -> 0 | K95: 0 | L95: SI | M95: 0 | N95: 0
A96: 0 | C96: 0 | J96: =+IF($F$10="",0,IF($F$10="UNICA",IFERROR((VLOOKUP(D96,'Tarifario '!A:O,11,FALSE)),0),IF($F$10="M2: Cau,VdC, Nar, Tol, Hui, Caq, Put, Vau",IFERROR((VLOOKUP(D96,'Tarifario '!A:O,12,FALSE)),0),IF($F$10="M3: Ant, Cal, Qui, Ris, Cho, Cór, Guai",IFERROR((VLOOKUP(D96,'Tarifario '!A:O,13,FALSE)),0),IF($F$10="M4: Atl, Bol, Guaj, Mag, Suc, SAnd",IFERROR((VLOOKUP(D96,'Tarifario '!A:O,14,FALSE)),0),IF($F$10="M5: Cés, Ara, Vic, Ama, NdS, San",IFERROR((VLOOKUP(D96,'Tarifario '!A:O,15,FALSE)),0),0)))))) -> 0 | K96: 0 | L96: SI | M96: 0 | N96: 0
A97: 0 | C97: 0 | J97: =+IF($F$10="",0,IF($F$10="UNICA",IFERROR((VLOOKUP(D97,'Tarifario '!A:O,11,FALSE)),0),IF($F$10="M2: Cau,VdC, Nar, Tol, Hui, Caq, Put, Vau",IFERROR((VLOOKUP(D97,'Tarifario '!A:O,12,FALSE)),0),IF($F$10="M3: Ant, Cal, Qui, Ris, Cho, Cór, Guai",IFERROR((VLOOKUP(D97,'Tarifario '!A:O,13,FALSE)),0),IF($F$10="M4: Atl, Bol, Guaj, Mag, Suc, SAnd",IFERROR((VLOOKUP(D97,'Tarifario '!A:O,14,FALSE)),0),IF($F$10="M5: Cés, Ara, Vic, Ama, NdS, San",IFERROR((VLOOKUP(D97,'Tarifario '!A:O,15,FALSE)),0),0)))))) -> 0 | K97: 0 | L97: SI | M97: 0 | N97: 0
A98: 0 | C98: 0 | J98: =+IF($F$10="",0,IF($F$10="UNICA",IFERROR((VLOOKUP(D98,'Tarifario '!A:O,11,FALSE)),0),IF($F$10="M2: Cau,VdC, Nar, Tol, Hui, Caq, Put, Vau",IFERROR((VLOOKUP(D98,'Tarifario '!A:O,12,FALSE)),0),IF($F$10="M3: Ant, Cal, Qui, Ris, Cho, Cór, Guai",IFERROR((VLOOKUP(D98,'Tarifario '!A:O,13,FALSE)),0),IF($F$10="M4: Atl, Bol, Guaj, Mag, Suc, SAnd",IFERROR((VLOOKUP(D98,'Tarifario '!A:O,14,FALSE)),0),IF($F$10="M5: Cés, Ara, Vic, Ama, NdS, San",IFERROR((VLOOKUP(D98,'Tarifario '!A:O,15,FALSE)),0),0)))))) -> 0 | K98: 0 | L98: SI | M98: 0 | N98: 0
A99: 0 | C99: 0 | J99: =+IF($F$10="",0,IF($F$10="UNICA",IFERROR((VLOOKUP(D99,'Tarifario '!A:O,11,FALSE)),0),IF($F$10="M2: Cau,VdC, Nar, Tol, Hui, Caq, Put, Vau",IFERROR((VLOOKUP(D99,'Tarifario '!A:O,12,FALSE)),0),IF($F$10="M3: Ant, Cal, Qui, Ris, Cho, Cór, Guai",IFERROR((VLOOKUP(D99,'Tarifario '!A:O,13,FALSE)),0),IF($F$10="M4: Atl, Bol, Guaj, Mag, Suc, SAnd",IFERROR((VLOOKUP(D99,'Tarifario '!A:O,14,FALSE)),0),IF($F$10="M5: Cés, Ara, Vic, Ama, NdS, San",IFERROR((VLOOKUP(D99,'Tarifario '!A:O,15,FALSE)),0),0)))))) -> 0 | K99: 0 | L99: SI | M99: 0 | N99: 0
A100: 0 | C100: 0 | J100: =+IF($F$10="",0,IF($F$10="UNICA",IFERROR((VLOOKUP(D100,'Tarifario '!A:O,11,FALSE)),0),IF($F$10="M2: Cau,VdC, Nar, Tol, Hui, Caq, Put, Vau",IFERROR((VLOOKUP(D100,'Tarifario '!A:O,12,FALSE)),0),IF($F$10="M3: Ant, Cal, Qui, Ris, Cho, Cór, Guai",IFERROR((VLOOKUP(D100,'Tarifario '!A:O,13,FALSE)),0),IF($F$10="M4: Atl, Bol, Guaj, Mag, Suc, SAnd",IFERROR((VLOOKUP(D100,'Tarifario '!A:O,14,FALSE)),0),IF($F$10="M5: Cés, Ara, Vic, Ama, NdS, San",IFERROR((VLOOKUP(D100,'Tarifario '!A:O,15,FALSE)),0),0)))))) -> 0 | K100: 0 | L100: SI | M100: 0 | N100: 0
A101: 0 | C101: 0 | J101: =+IF($F$10="",0,IF($F$10="UNICA",IFERROR((VLOOKUP(D101,'Tarifario '!A:O,11,FALSE)),0),IF($F$10="M2: Cau,VdC, Nar, Tol, Hui, Caq, Put, Vau",IFERROR((VLOOKUP(D101,'Tarifario '!A:O,12,FALSE)),0),IF($F$10="M3: Ant, Cal, Qui, Ris, Cho, Cór, Guai",IFERROR((VLOOKUP(D101,'Tarifario '!A:O,13,FALSE)),0),IF($F$10="M4: Atl, Bol, Guaj, Mag, Suc, SAnd",IFERROR((VLOOKUP(D101,'Tarifario '!A:O,14,FALSE)),0),IF($F$10="M5: Cés, Ara, Vic, Ama, NdS, San",IFERROR((VLOOKUP(D101,'Tarifario '!A:O,15,FALSE)),0),0)))))) -> 0 | K101: 0 | L101: SI | M101: 0 | N101: 0
A102: 0 | C102: 0 | J102: =+IF($F$10="",0,IF($F$10="UNICA",IFERROR((VLOOKUP(D102,'Tarifario '!A:O,11,FALSE)),0),IF($F$10="M2: Cau,VdC, Nar, Tol, Hui, Caq, Put, Vau",IFERROR((VLOOKUP(D102,'Tarifario '!A:O,12,FALSE)),0),IF($F$10="M3: Ant, Cal, Qui, Ris, Cho, Cór, Guai",IFERROR((VLOOKUP(D102,'Tarifario '!A:O,13,FALSE)),0),IF($F$10="M4: Atl, Bol, Guaj, Mag, Suc, SAnd",IFERROR((VLOOKUP(D102,'Tarifario '!A:O,14,FALSE)),0),IF($F$10="M5: Cés, Ara, Vic, Ama, NdS, San",IFERROR((VLOOKUP(D102,'Tarifario '!A:O,15,FALSE)),0),0)))))) -> 0 | K102: 0 | L102: SI | M102: 0 | N102: 0
A103: 0 | C103: 0 | J103: =+IF($F$10="",0,IF($F$10="UNICA",IFERROR((VLOOKUP(D103,'Tarifario '!A:O,11,FALSE)),0),IF($F$10="M2: Cau,VdC, Nar, Tol, Hui, Caq, Put, Vau",IFERROR((VLOOKUP(D103,'Tarifario '!A:O,12,FALSE)),0),IF($F$10="M3: Ant, Cal, Qui, Ris, Cho, Cór, Guai",IFERROR((VLOOKUP(D103,'Tarifario '!A:O,13,FALSE)),0),IF($F$10="M4: Atl, Bol, Guaj, Mag, Suc, SAnd",IFERROR((VLOOKUP(D103,'Tarifario '!A:O,14,FALSE)),0),IF($F$10="M5: Cés, Ara, Vic, Ama, NdS, San",IFERROR((VLOOKUP(D103,'Tarifario '!A:O,15,FALSE)),0),0)))))) -> 0 | K103: 0 | L103: SI | M103: 0 | N103: 0
A104: 0 | C104: 0 | J104: =+IF($F$10="",0,IF($F$10="UNICA",IFERROR((VLOOKUP(D104,'Tarifario '!A:O,11,FALSE)),0),IF($F$10="M2: Cau,VdC, Nar, Tol, Hui, Caq, Put, Vau",IFERROR((VLOOKUP(D104,'Tarifario '!A:O,12,FALSE)),0),IF($F$10="M3: Ant, Cal, Qui, Ris, Cho, Cór, Guai",IFERROR((VLOOKUP(D104,'Tarifario '!A:O,13,FALSE)),0),IF($F$10="M4: Atl, Bol, Guaj, Mag, Suc, SAnd",IFERROR((VLOOKUP(D104,'Tarifario '!A:O,14,FALSE)),0),IF($F$10="M5: Cés, Ara, Vic, Ama, NdS, San",IFERROR((VLOOKUP(D104,'Tarifario '!A:O,15,FALSE)),0),0)))))) -> 0 | K104: 0 | L104: SI | M104: 0 | N104: 0
A105: 0 | C105: 0 | J105: =+IF($F$10="",0,IF($F$10="UNICA",IFERROR((VLOOKUP(D105,'Tarifario '!A:O,11,FALSE)),0),IF($F$10="M2: Cau,VdC, Nar, Tol, Hui, Caq, Put, Vau",IFERROR((VLOOKUP(D105,'Tarifario '!A:O,12,FALSE)),0),IF($F$10="M3: Ant, Cal, Qui, Ris, Cho, Cór, Guai",IFERROR((VLOOKUP(D105,'Tarifario '!A:O,13,FALSE)),0),IF($F$10="M4: Atl, Bol, Guaj, Mag, Suc, SAnd",IFERROR((VLOOKUP(D105,'Tarifario '!A:O,14,FALSE)),0),IF($F$10="M5: Cés, Ara, Vic, Ama, NdS, San",IFERROR((VLOOKUP(D105,'Tarifario '!A:O,15,FALSE)),0),0)))))) -> 0 | K105: 0 | L105: SI | M105: 0 | N105: 0
A106: 0 | C106: 0 | J106: =+IF($F$10="",0,IF($F$10="UNICA",IFERROR((VLOOKUP(D106,'Tarifario '!A:O,11,FALSE)),0),IF($F$10="M2: Cau,VdC, Nar, Tol, Hui, Caq, Put, Vau",IFERROR((VLOOKUP(D106,'Tarifario '!A:O,12,FALSE)),0),IF($F$10="M3: Ant, Cal, Qui, Ris, Cho, Cór, Guai",IFERROR((VLOOKUP(D106,'Tarifario '!A:O,13,FALSE)),0),IF($F$10="M4: Atl, Bol, Guaj, Mag, Suc, SAnd",IFERROR((VLOOKUP(D106,'Tarifario '!A:O,14,FALSE)),0),IF($F$10="M5: Cés, Ara, Vic, Ama, NdS, San",IFERROR((VLOOKUP(D106,'Tarifario '!A:O,15,FALSE)),0),0)))))) -> 0 | K106: 0 | L106: SI | M106: 0 | N106: 0
A107: 0 | C107: 0 | J107: =+IF($F$10="",0,IF($F$10="UNICA",IFERROR((VLOOKUP(D107,'Tarifario '!A:O,11,FALSE)),0),IF($F$10="M2: Cau,VdC, Nar, Tol, Hui, Caq, Put, Vau",IFERROR((VLOOKUP(D107,'Tarifario '!A:O,12,FALSE)),0),IF($F$10="M3: Ant, Cal, Qui, Ris, Cho, Cór, Guai",IFERROR((VLOOKUP(D107,'Tarifario '!A:O,13,FALSE)),0),IF($F$10="M4: Atl, Bol, Guaj, Mag, Suc, SAnd",IFERROR((VLOOKUP(D107,'Tarifario '!A:O,14,FALSE)),0),IF($F$10="M5: Cés, Ara, Vic, Ama, NdS, San",IFERROR((VLOOKUP(D107,'Tarifario '!A:O,15,FALSE)),0),0)))))) -> 0 | K107: 0 | L107: SI | M107: 0 | N107: 0
A108: 0 | C108: 0 | J108: =+IF($F$10="",0,IF($F$10="UNICA",IFERROR((VLOOKUP(D108,'Tarifario '!A:O,11,FALSE)),0),IF($F$10="M2: Cau,VdC, Nar, Tol, Hui, Caq, Put, Vau",IFERROR((VLOOKUP(D108,'Tarifario '!A:O,12,FALSE)),0),IF($F$10="M3: Ant, Cal, Qui, Ris, Cho, Cór, Guai",IFERROR((VLOOKUP(D108,'Tarifario '!A:O,13,FALSE)),0),IF($F$10="M4: Atl, Bol, Guaj, Mag, Suc, SAnd",IFERROR((VLOOKUP(D108,'Tarifario '!A:O,14,FALSE)),0),IF($F$10="M5: Cés, Ara, Vic, Ama, NdS, San",IFERROR((VLOOKUP(D108,'Tarifario '!A:O,15,FALSE)),0),0)))))) -> 0 | K108: 0 | L108: SI | M108: 0 | N108: 0
A109: 0 | C109: 0 | J109: =+IF($F$10="",0,IF($F$10="UNICA",IFERROR((VLOOKUP(D109,'Tarifario '!A:O,11,FALSE)),0),IF($F$10="M2: Cau,VdC, Nar, Tol, Hui, Caq, Put, Vau",IFERROR((VLOOKUP(D109,'Tarifario '!A:O,12,FALSE)),0),IF($F$10="M3: Ant, Cal, Qui, Ris, Cho, Cór, Guai",IFERROR((VLOOKUP(D109,'Tarifario '!A:O,13,FALSE)),0),IF($F$10="M4: Atl, Bol, Guaj, Mag, Suc, SAnd",IFERROR((VLOOKUP(D109,'Tarifario '!A:O,14,FALSE)),0),IF($F$10="M5: Cés, Ara, Vic, Ama, NdS, San",IFERROR((VLOOKUP(D109,'Tarifario '!A:O,15,FALSE)),0),0)))))) -> 0 | K109: 0 | L109: SI | M109: 0 | N109: 0
A110: 0 | C110: 0 | J110: =+IF($F$10="",0,IF($F$10="UNICA",IFERROR((VLOOKUP(D110,'Tarifario '!A:O,11,FALSE)),0),IF($F$10="M2: Cau,VdC, Nar, Tol, Hui, Caq, Put, Vau",IFERROR((VLOOKUP(D110,'Tarifario '!A:O,12,FALSE)),0),IF($F$10="M3: Ant, Cal, Qui, Ris, Cho, Cór, Guai",IFERROR((VLOOKUP(D110,'Tarifario '!A:O,13,FALSE)),0),IF($F$10="M4: Atl, Bol, Guaj, Mag, Suc, SAnd",IFERROR((VLOOKUP(D110,'Tarifario '!A:O,14,FALSE)),0),IF($F$10="M5: Cés, Ara, Vic, Ama, NdS, San",IFERROR((VLOOKUP(D110,'Tarifario '!A:O,15,FALSE)),0),0)))))) -> 0 | K110: 0 | L110: SI | M110: 0 | N110: 0
A111: 0 | C111: 0 | J111: =+IF($F$10="",0,IF($F$10="UNICA",IFERROR((VLOOKUP(D111,'Tarifario '!A:O,11,FALSE)),0),IF($F$10="M2: Cau,VdC, Nar, Tol, Hui, Caq, Put, Vau",IFERROR((VLOOKUP(D111,'Tarifario '!A:O,12,FALSE)),0),IF($F$10="M3: Ant, Cal, Qui, Ris, Cho, Cór, Guai",IFERROR((VLOOKUP(D111,'Tarifario '!A:O,13,FALSE)),0),IF($F$10="M4: Atl, Bol, Guaj, Mag, Suc, SAnd",IFERROR((VLOOKUP(D111,'Tarifario '!A:O,14,FALSE)),0),IF($F$10="M5: Cés, Ara, Vic, Ama, NdS, San",IFERROR((VLOOKUP(D111,'Tarifario '!A:O,15,FALSE)),0),0)))))) -> 0 | K111: 0 | L111: SI | M111: 0 | N111: 0
A112: 0 | C112: 0 | J112: =+IF($F$10="",0,IF($F$10="UNICA",IFERROR((VLOOKUP(D112,'Tarifario '!A:O,11,FALSE)),0),IF($F$10="M2: Cau,VdC, Nar, Tol, Hui, Caq, Put, Vau",IFERROR((VLOOKUP(D112,'Tarifario '!A:O,12,FALSE)),0),IF($F$10="M3: Ant, Cal, Qui, Ris, Cho, Cór, Guai",IFERROR((VLOOKUP(D112,'Tarifario '!A:O,13,FALSE)),0),IF($F$10="M4: Atl, Bol, Guaj, Mag, Suc, SAnd",IFERROR((VLOOKUP(D112,'Tarifario '!A:O,14,FALSE)),0),IF($F$10="M5: Cés, Ara, Vic, Ama, NdS, San",IFERROR((VLOOKUP(D112,'Tarifario '!A:O,15,FALSE)),0),0)))))) -> 0 | K112: 0 | L112: SI | M112: 0 | N112: 0
A113: 0 | C113: 0 | J113: =+IF($F$10="",0,IF($F$10="UNICA",IFERROR((VLOOKUP(D113,'Tarifario '!A:O,11,FALSE)),0),IF($F$10="M2: Cau,VdC, Nar, Tol, Hui, Caq, Put, Vau",IFERROR((VLOOKUP(D113,'Tarifario '!A:O,12,FALSE)),0),IF($F$10="M3: Ant, Cal, Qui, Ris, Cho, Cór, Guai",IFERROR((VLOOKUP(D113,'Tarifario '!A:O,13,FALSE)),0),IF($F$10="M4: Atl, Bol, Guaj, Mag, Suc, SAnd",IFERROR((VLOOKUP(D113,'Tarifario '!A:O,14,FALSE)),0),IF($F$10="M5: Cés, Ara, Vic, Ama, NdS, San",IFERROR((VLOOKUP(D113,'Tarifario '!A:O,15,FALSE)),0),0)))))) -> 0 | K113: 0 | L113: SI | M113: 0 | N113: 0
A114: 0 | C114: 0 | J114: =+IF($F$10="",0,IF($F$10="UNICA",IFERROR((VLOOKUP(D114,'Tarifario '!A:O,11,FALSE)),0),IF($F$10="M2: Cau,VdC, Nar, Tol, Hui, Caq, Put, Vau",IFERROR((VLOOKUP(D114,'Tarifario '!A:O,12,FALSE)),0),IF($F$10="M3: Ant, Cal, Qui, Ris, Cho, Cór, Guai",IFERROR((VLOOKUP(D114,'Tarifario '!A:O,13,FALSE)),0),IF($F$10="M4: Atl, Bol, Guaj, Mag, Suc, SAnd",IFERROR((VLOOKUP(D114,'Tarifario '!A:O,14,FALSE)),0),IF($F$10="M5: Cés, Ara, Vic, Ama, NdS, San",IFERROR((VLOOKUP(D114,'Tarifario '!A:O,15,FALSE)),0),0)))))) -> 0 | K114: 0 | L114: SI | M114: 0 | N114: 0
A115: 0 | C115: 0 | J115: =+IF($F$10="",0,IF($F$10="UNICA",IFERROR((VLOOKUP(D115,'Tarifario '!A:O,11,FALSE)),0),IF($F$10="M2: Cau,VdC, Nar, Tol, Hui, Caq, Put, Vau",IFERROR((VLOOKUP(D115,'Tarifario '!A:O,12,FALSE)),0),IF($F$10="M3: Ant, Cal, Qui, Ris, Cho, Cór, Guai",IFERROR((VLOOKUP(D115,'Tarifario '!A:O,13,FALSE)),0),IF($F$10="M4: Atl, Bol, Guaj, Mag, Suc, SAnd",IFERROR((VLOOKUP(D115,'Tarifario '!A:O,14,FALSE)),0),IF($F$10="M5: Cés, Ara, Vic, Ama, NdS, San",IFERROR((VLOOKUP(D115,'Tarifario '!A:O,15,FALSE)),0),0)))))) -> 0 | K115: 0 | L115: SI | M115: 0 | N115: 0
A116: 0 | C116: 0 | J116: =+IF($F$10="",0,IF($F$10="UNICA",IFERROR((VLOOKUP(D116,'Tarifario '!A:O,11,FALSE)),0),IF($F$10="M2: Cau,VdC, Nar, Tol, Hui, Caq, Put, Vau",IFERROR((VLOOKUP(D116,'Tarifario '!A:O,12,FALSE)),0),IF($F$10="M3: Ant, Cal, Qui, Ris, Cho, Cór, Guai",IFERROR((VLOOKUP(D116,'Tarifario '!A:O,13,FALSE)),0),IF($F$10="M4: Atl, Bol, Guaj, Mag, Suc, SAnd",IFERROR((VLOOKUP(D116,'Tarifario '!A:O,14,FALSE)),0),IF($F$10="M5: Cés, Ara, Vic, Ama, NdS, San",IFERROR((VLOOKUP(D116,'Tarifario '!A:O,15,FALSE)),0),0)))))) -> 0 | K116: 0 | L116: SI | M116: 0 | N116: 0
A117: 0 | C117: 0 | J117: =+IF($F$10="",0,IF($F$10="UNICA",IFERROR((VLOOKUP(D117,'Tarifario '!A:O,11,FALSE)),0),IF($F$10="M2: Cau,VdC, Nar, Tol, Hui, Caq, Put, Vau",IFERROR((VLOOKUP(D117,'Tarifario '!A:O,12,FALSE)),0),IF($F$10="M3: Ant, Cal, Qui, Ris, Cho, Cór, Guai",IFERROR((VLOOKUP(D117,'Tarifario '!A:O,13,FALSE)),0),IF($F$10="M4: Atl, Bol, Guaj, Mag, Suc, SAnd",IFERROR((VLOOKUP(D117,'Tarifario '!A:O,14,FALSE)),0),IF($F$10="M5: Cés, Ara, Vic, Ama, NdS, San",IFERROR((VLOOKUP(D117,'Tarifario '!A:O,15,FALSE)),0),0)))))) -> 0 | K117: 0 | L117: SI | M117: 0 | N117: 0
A118: 0 | C118: 0 | J118: =+IF($F$10="",0,IF($F$10="UNICA",IFERROR((VLOOKUP(D118,'Tarifario '!A:O,11,FALSE)),0),IF($F$10="M2: Cau,VdC, Nar, Tol, Hui, Caq, Put, Vau",IFERROR((VLOOKUP(D118,'Tarifario '!A:O,12,FALSE)),0),IF($F$10="M3: Ant, Cal, Qui, Ris, Cho, Cór, Guai",IFERROR((VLOOKUP(D118,'Tarifario '!A:O,13,FALSE)),0),IF($F$10="M4: Atl, Bol, Guaj, Mag, Suc, SAnd",IFERROR((VLOOKUP(D118,'Tarifario '!A:O,14,FALSE)),0),IF($F$10="M5: Cés, Ara, Vic, Ama, NdS, San",IFERROR((VLOOKUP(D118,'Tarifario '!A:O,15,FALSE)),0),0)))))) -> 0 | K118: 0 | L118: SI | M118: 0 | N118: 0
A119: 0 | C119: 0 | J119: =+IF($F$10="",0,IF($F$10="UNICA",IFERROR((VLOOKUP(D119,'Tarifario '!A:O,11,FALSE)),0),IF($F$10="M2: Cau,VdC, Nar, Tol, Hui, Caq, Put, Vau",IFERROR((VLOOKUP(D119,'Tarifario '!A:O,12,FALSE)),0),IF($F$10="M3: Ant, Cal, Qui, Ris, Cho, Cór, Guai",IFERROR((VLOOKUP(D119,'Tarifario '!A:O,13,FALSE)),0),IF($F$10="M4: Atl, Bol, Guaj, Mag, Suc, SAnd",IFERROR((VLOOKUP(D119,'Tarifario '!A:O,14,FALSE)),0),IF($F$10="M5: Cés, Ara, Vic, Ama, NdS, San",IFERROR((VLOOKUP(D119,'Tarifario '!A:O,15,FALSE)),0),0)))))) -> 0 | K119: 0 | L119: SI | M119: 0 | N119: 0
A120: 0 | C120: 0 | J120: =+IF($F$10="",0,IF($F$10="UNICA",IFERROR((VLOOKUP(D120,'Tarifario '!A:O,11,FALSE)),0),IF($F$10="M2: Cau,VdC, Nar, Tol, Hui, Caq, Put, Vau",IFERROR((VLOOKUP(D120,'Tarifario '!A:O,12,FALSE)),0),IF($F$10="M3: Ant, Cal, Qui, Ris, Cho, Cór, Guai",IFERROR((VLOOKUP(D120,'Tarifario '!A:O,13,FALSE)),0),IF($F$10="M4: Atl, Bol, Guaj, Mag, Suc, SAnd",IFERROR((VLOOKUP(D120,'Tarifario '!A:O,14,FALSE)),0),IF($F$10="M5: Cés, Ara, Vic, Ama, NdS, San",IFERROR((VLOOKUP(D120,'Tarifario '!A:O,15,FALSE)),0),0)))))) -> 0 | K120: 0 | L120: SI | M120: 0 | N120: 0
A121: 0 | C121: 0 | J121: =+IF($F$10="",0,IF($F$10="UNICA",IFERROR((VLOOKUP(D121,'Tarifario '!A:O,11,FALSE)),0),IF($F$10="M2: Cau,VdC, Nar, Tol, Hui, Caq, Put, Vau",IFERROR((VLOOKUP(D121,'Tarifario '!A:O,12,FALSE)),0),IF($F$10="M3: Ant, Cal, Qui, Ris, Cho, Cór, Guai",IFERROR((VLOOKUP(D121,'Tarifario '!A:O,13,FALSE)),0),IF($F$10="M4: Atl, Bol, Guaj, Mag, Suc, SAnd",IFERROR((VLOOKUP(D121,'Tarifario '!A:O,14,FALSE)),0),IF($F$10="M5: Cés, Ara, Vic, Ama, NdS, San",IFERROR((VLOOKUP(D121,'Tarifario '!A:O,15,FALSE)),0),0)))))) -> 0 | K121: 0 | L121: SI | M121: 0 | N121: 0
A122: 0 | C122: 0 | J122: =+IF($F$10="",0,IF($F$10="UNICA",IFERROR((VLOOKUP(D122,'Tarifario '!A:O,11,FALSE)),0),IF($F$10="M2: Cau,VdC, Nar, Tol, Hui, Caq, Put, Vau",IFERROR((VLOOKUP(D122,'Tarifario '!A:O,12,FALSE)),0),IF($F$10="M3: Ant, Cal, Qui, Ris, Cho, Cór, Guai",IFERROR((VLOOKUP(D122,'Tarifario '!A:O,13,FALSE)),0),IF($F$10="M4: Atl, Bol, Guaj, Mag, Suc, SAnd",IFERROR((VLOOKUP(D122,'Tarifario '!A:O,14,FALSE)),0),IF($F$10="M5: Cés, Ara, Vic, Ama, NdS, San",IFERROR((VLOOKUP(D122,'Tarifario '!A:O,15,FALSE)),0),0)))))) -> 0 | K122: 0 | L122: SI | M122: 0 | N122: 0
A123: 0 | C123: 0 | J123: =+IF($F$10="",0,IF($F$10="UNICA",IFERROR((VLOOKUP(D123,'Tarifario '!A:O,11,FALSE)),0),IF($F$10="M2: Cau,VdC, Nar, Tol, Hui, Caq, Put, Vau",IFERROR((VLOOKUP(D123,'Tarifario '!A:O,12,FALSE)),0),IF($F$10="M3: Ant, Cal, Qui, Ris, Cho, Cór, Guai",IFERROR((VLOOKUP(D123,'Tarifario '!A:O,13,FALSE)),0),IF($F$10="M4: Atl, Bol, Guaj, Mag, Suc, SAnd",IFERROR((VLOOKUP(D123,'Tarifario '!A:O,14,FALSE)),0),IF($F$10="M5: Cés, Ara, Vic, Ama, NdS, San",IFERROR((VLOOKUP(D123,'Tarifario '!A:O,15,FALSE)),0),0)))))) -> 0 | K123: 0 | L123: SI | M123: 0 | N123: 0
A124: 0 | C124: 0 | J124: =+IF($F$10="",0,IF($F$10="UNICA",IFERROR((VLOOKUP(D124,'Tarifario '!A:O,11,FALSE)),0),IF($F$10="M2: Cau,VdC, Nar, Tol, Hui, Caq, Put, Vau",IFERROR((VLOOKUP(D124,'Tarifario '!A:O,12,FALSE)),0),IF($F$10="M3: Ant, Cal, Qui, Ris, Cho, Cór, Guai",IFERROR((VLOOKUP(D124,'Tarifario '!A:O,13,FALSE)),0),IF($F$10="M4: Atl, Bol, Guaj, Mag, Suc, SAnd",IFERROR((VLOOKUP(D124,'Tarifario '!A:O,14,FALSE)),0),IF($F$10="M5: Cés, Ara, Vic, Ama, NdS, San",IFERROR((VLOOKUP(D124,'Tarifario '!A:O,15,FALSE)),0),0)))))) -> 0 | K124: 0 | L124: SI | M124: 0 | N124: 0
A125: 0 | C125: 0 | J125: =+IF($F$10="",0,IF($F$10="UNICA",IFERROR((VLOOKUP(D125,'Tarifario '!A:O,11,FALSE)),0),IF($F$10="M2: Cau,VdC, Nar, Tol, Hui, Caq, Put, Vau",IFERROR((VLOOKUP(D125,'Tarifario '!A:O,12,FALSE)),0),IF($F$10="M3: Ant, Cal, Qui, Ris, Cho, Cór, Guai",IFERROR((VLOOKUP(D125,'Tarifario '!A:O,13,FALSE)),0),IF($F$10="M4: Atl, Bol, Guaj, Mag, Suc, SAnd",IFERROR((VLOOKUP(D125,'Tarifario '!A:O,14,FALSE)),0),IF($F$10="M5: Cés, Ara, Vic, Ama, NdS, San",IFERROR((VLOOKUP(D125,'Tarifario '!A:O,15,FALSE)),0),0)))))) -> 0 | K125: 0 | L125: SI | M125: 0 | N125: 0
A126: 0 | C126: 0 | J126: =+IF($F$10="",0,IF($F$10="UNICA",IFERROR((VLOOKUP(D126,'Tarifario '!A:O,11,FALSE)),0),IF($F$10="M2: Cau,VdC, Nar, Tol, Hui, Caq, Put, Vau",IFERROR((VLOOKUP(D126,'Tarifario '!A:O,12,FALSE)),0),IF($F$10="M3: Ant, Cal, Qui, Ris, Cho, Cór, Guai",IFERROR((VLOOKUP(D126,'Tarifario '!A:O,13,FALSE)),0),IF($F$10="M4: Atl, Bol, Guaj, Mag, Suc, SAnd",IFERROR((VLOOKUP(D126,'Tarifario '!A:O,14,FALSE)),0),IF($F$10="M5: Cés, Ara, Vic, Ama, NdS, San",IFERROR((VLOOKUP(D126,'Tarifario '!A:O,15,FALSE)),0),0)))))) -> 0 | K126: 0 | L126: SI | M126: 0 | N126: 0
A127: 0 | C127: 0 | J127: =+IF($F$10="",0,IF($F$10="UNICA",IFERROR((VLOOKUP(D127,'Tarifario '!A:O,11,FALSE)),0),IF($F$10="M2: Cau,VdC, Nar, Tol, Hui, Caq, Put, Vau",IFERROR((VLOOKUP(D127,'Tarifario '!A:O,12,FALSE)),0),IF($F$10="M3: Ant, Cal, Qui, Ris, Cho, Cór, Guai",IFERROR((VLOOKUP(D127,'Tarifario '!A:O,13,FALSE)),0),IF($F$10="M4: Atl, Bol, Guaj, Mag, Suc, SAnd",IFERROR((VLOOKUP(D127,'Tarifario '!A:O,14,FALSE)),0),IF($F$10="M5: Cés, Ara, Vic, Ama, NdS, San",IFERROR((VLOOKUP(D127,'Tarifario '!A:O,15,FALSE)),0),0)))))) -> 0 | K127: 0 | L127: SI | M127: 0 | N127: 0
A128: 0 | C128: 0 | J128: =+IF($F$10="",0,IF($F$10="UNICA",IFERROR((VLOOKUP(D128,'Tarifario '!A:O,11,FALSE)),0),IF($F$10="M2: Cau,VdC, Nar, Tol, Hui, Caq, Put, Vau",IFERROR((VLOOKUP(D128,'Tarifario '!A:O,12,FALSE)),0),IF($F$10="M3: Ant, Cal, Qui, Ris, Cho, Cór, Guai",IFERROR((VLOOKUP(D128,'Tarifario '!A:O,13,FALSE)),0),IF($F$10="M4: Atl, Bol, Guaj, Mag, Suc, SAnd",IFERROR((VLOOKUP(D128,'Tarifario '!A:O,14,FALSE)),0),IF($F$10="M5: Cés, Ara, Vic, Ama, NdS, San",IFERROR((VLOOKUP(D128,'Tarifario '!A:O,15,FALSE)),0),0)))))) -> 0 | K128: 0 | L128: SI | M128: 0 | N128: 0
A129: 0 | C129: 0 | J129: =+IF($F$10="",0,IF($F$10="UNICA",IFERROR((VLOOKUP(D129,'Tarifario '!A:O,11,FALSE)),0),IF($F$10="M2: Cau,VdC, Nar, Tol, Hui, Caq, Put, Vau",IFERROR((VLOOKUP(D129,'Tarifario '!A:O,12,FALSE)),0),IF($F$10="M3: Ant, Cal, Qui, Ris, Cho, Cór, Guai",IFERROR((VLOOKUP(D129,'Tarifario '!A:O,13,FALSE)),0),IF($F$10="M4: Atl, Bol, Guaj, Mag, Suc, SAnd",IFERROR((VLOOKUP(D129,'Tarifario '!A:O,14,FALSE)),0),IF($F$10="M5: Cés, Ara, Vic, Ama, NdS, San",IFERROR((VLOOKUP(D129,'Tarifario '!A:O,15,FALSE)),0),0)))))) -> 0 | K129: 0 | L129: SI | M129: 0 | N129: 0
A130: 0 | C130: 0 | J130: =+IF($F$10="",0,IF($F$10="UNICA",IFERROR((VLOOKUP(D130,'Tarifario '!A:O,11,FALSE)),0),IF($F$10="M2: Cau,VdC, Nar, Tol, Hui, Caq, Put, Vau",IFERROR((VLOOKUP(D130,'Tarifario '!A:O,12,FALSE)),0),IF($F$10="M3: Ant, Cal, Qui, Ris, Cho, Cór, Guai",IFERROR((VLOOKUP(D130,'Tarifario '!A:O,13,FALSE)),0),IF($F$10="M4: Atl, Bol, Guaj, Mag, Suc, SAnd",IFERROR((VLOOKUP(D130,'Tarifario '!A:O,14,FALSE)),0),IF($F$10="M5: Cés, Ara, Vic, Ama, NdS, San",IFERROR((VLOOKUP(D130,'Tarifario '!A:O,15,FALSE)),0),0)))))) -> 0 | K130: 0 | L130: SI | M130: 0 | N130: 0
A131: 0 | C131: 0 | J131: =+IF($F$10="",0,IF($F$10="UNICA",IFERROR((VLOOKUP(D131,'Tarifario '!A:O,11,FALSE)),0),IF($F$10="M2: Cau,VdC, Nar, Tol, Hui, Caq, Put, Vau",IFERROR((VLOOKUP(D131,'Tarifario '!A:O,12,FALSE)),0),IF($F$10="M3: Ant, Cal, Qui, Ris, Cho, Cór, Guai",IFERROR((VLOOKUP(D131,'Tarifario '!A:O,13,FALSE)),0),IF($F$10="M4: Atl, Bol, Guaj, Mag, Suc, SAnd",IFERROR((VLOOKUP(D131,'Tarifario '!A:O,14,FALSE)),0),IF($F$10="M5: Cés, Ara, Vic, Ama, NdS, San",IFERROR((VLOOKUP(D131,'Tarifario '!A:O,15,FALSE)),0),0)))))) -> 0 | K131: 0 | L131: SI | M131: 0 | N131: 0
A132: 0 | C132: 0 | J132: =+IF($F$10="",0,IF($F$10="UNICA",IFERROR((VLOOKUP(D132,'Tarifario '!A:O,11,FALSE)),0),IF($F$10="M2: Cau,VdC, Nar, Tol, Hui, Caq, Put, Vau",IFERROR((VLOOKUP(D132,'Tarifario '!A:O,12,FALSE)),0),IF($F$10="M3: Ant, Cal, Qui, Ris, Cho, Cór, Guai",IFERROR((VLOOKUP(D132,'Tarifario '!A:O,13,FALSE)),0),IF($F$10="M4: Atl, Bol, Guaj, Mag, Suc, SAnd",IFERROR((VLOOKUP(D132,'Tarifario '!A:O,14,FALSE)),0),IF($F$10="M5: Cés, Ara, Vic, Ama, NdS, San",IFERROR((VLOOKUP(D132,'Tarifario '!A:O,15,FALSE)),0),0)))))) -> 0 | K132: 0 | L132: SI | M132: 0 | N132: 0
A133: 0 | C133: 0 | J133: =+IF($F$10="",0,IF($F$10="UNICA",IFERROR((VLOOKUP(D133,'Tarifario '!A:O,11,FALSE)),0),IF($F$10="M2: Cau,VdC, Nar, Tol, Hui, Caq, Put, Vau",IFERROR((VLOOKUP(D133,'Tarifario '!A:O,12,FALSE)),0),IF($F$10="M3: Ant, Cal, Qui, Ris, Cho, Cór, Guai",IFERROR((VLOOKUP(D133,'Tarifario '!A:O,13,FALSE)),0),IF($F$10="M4: Atl, Bol, Guaj, Mag, Suc, SAnd",IFERROR((VLOOKUP(D133,'Tarifario '!A:O,14,FALSE)),0),IF($F$10="M5: Cés, Ara, Vic, Ama, NdS, San",IFERROR((VLOOKUP(D133,'Tarifario '!A:O,15,FALSE)),0),0)))))) -> 0 | K133: 0 | L133: SI | M133: 0 | N133: 0
A134: 0 | C134: 0 | J134: =+IF($F$10="",0,IF($F$10="UNICA",IFERROR((VLOOKUP(D134,'Tarifario '!A:O,11,FALSE)),0),IF($F$10="M2: Cau,VdC, Nar, Tol, Hui, Caq, Put, Vau",IFERROR((VLOOKUP(D134,'Tarifario '!A:O,12,FALSE)),0),IF($F$10="M3: Ant, Cal, Qui, Ris, Cho, Cór, Guai",IFERROR((VLOOKUP(D134,'Tarifario '!A:O,13,FALSE)),0),IF($F$10="M4: Atl, Bol, Guaj, Mag, Suc, SAnd",IFERROR((VLOOKUP(D134,'Tarifario '!A:O,14,FALSE)),0),IF($F$10="M5: Cés, Ara, Vic, Ama, NdS, San",IFERROR((VLOOKUP(D134,'Tarifario '!A:O,15,FALSE)),0),0)))))) -> 0 | K134: 0 | L134: SI | M134: 0 | N134: 0
A135: 0 | C135: 0 | J135: =+IF($F$10="",0,IF($F$10="UNICA",IFERROR((VLOOKUP(D135,'Tarifario '!A:O,11,FALSE)),0),IF($F$10="M2: Cau,VdC, Nar, Tol, Hui, Caq, Put, Vau",IFERROR((VLOOKUP(D135,'Tarifario '!A:O,12,FALSE)),0),IF($F$10="M3: Ant, Cal, Qui, Ris, Cho, Cór, Guai",IFERROR((VLOOKUP(D135,'Tarifario '!A:O,13,FALSE)),0),IF($F$10="M4: Atl, Bol, Guaj, Mag, Suc, SAnd",IFERROR((VLOOKUP(D135,'Tarifario '!A:O,14,FALSE)),0),IF($F$10="M5: Cés, Ara, Vic, Ama, NdS, San",IFERROR((VLOOKUP(D135,'Tarifario '!A:O,15,FALSE)),0),0)))))) -> 0 | K135: 0 | L135: SI | M135: 0 | N135: 0
A136: 0 | C136: 0 | J136: =+IF($F$10="",0,IF($F$10="UNICA",IFERROR((VLOOKUP(D136,'Tarifario '!A:O,11,FALSE)),0),IF($F$10="M2: Cau,VdC, Nar, Tol, Hui, Caq, Put, Vau",IFERROR((VLOOKUP(D136,'Tarifario '!A:O,12,FALSE)),0),IF($F$10="M3: Ant, Cal, Qui, Ris, Cho, Cór, Guai",IFERROR((VLOOKUP(D136,'Tarifario '!A:O,13,FALSE)),0),IF($F$10="M4: Atl, Bol, Guaj, Mag, Suc, SAnd",IFERROR((VLOOKUP(D136,'Tarifario '!A:O,14,FALSE)),0),IF($F$10="M5: Cés, Ara, Vic, Ama, NdS, San",IFERROR((VLOOKUP(D136,'Tarifario '!A:O,15,FALSE)),0),0)))))) -> 0 | K136: 0 | L136: SI | M136: 0 | N136: 0
A137: 0 | C137: 0 | J137: =+IF($F$10="",0,IF($F$10="UNICA",IFERROR((VLOOKUP(D137,'Tarifario '!A:O,11,FALSE)),0),IF($F$10="M2: Cau,VdC, Nar, Tol, Hui, Caq, Put, Vau",IFERROR((VLOOKUP(D137,'Tarifario '!A:O,12,FALSE)),0),IF($F$10="M3: Ant, Cal, Qui, Ris, Cho, Cór, Guai",IFERROR((VLOOKUP(D137,'Tarifario '!A:O,13,FALSE)),0),IF($F$10="M4: Atl, Bol, Guaj, Mag, Suc, SAnd",IFERROR((VLOOKUP(D137,'Tarifario '!A:O,14,FALSE)),0),IF($F$10="M5: Cés, Ara, Vic, Ama, NdS, San",IFERROR((VLOOKUP(D137,'Tarifario '!A:O,15,FALSE)),0),0)))))) -> 0 | K137: 0 | L137: SI | M137: 0 | N137: 0
A138: 0 | C138: 0 | J138: =+IF($F$10="",0,IF($F$10="UNICA",IFERROR((VLOOKUP(D138,'Tarifario '!A:O,11,FALSE)),0),IF($F$10="M2: Cau,VdC, Nar, Tol, Hui, Caq, Put, Vau",IFERROR((VLOOKUP(D138,'Tarifario '!A:O,12,FALSE)),0),IF($F$10="M3: Ant, Cal, Qui, Ris, Cho, Cór, Guai",IFERROR((VLOOKUP(D138,'Tarifario '!A:O,13,FALSE)),0),IF($F$10="M4: Atl, Bol, Guaj, Mag, Suc, SAnd",IFERROR((VLOOKUP(D138,'Tarifario '!A:O,14,FALSE)),0),IF($F$10="M5: Cés, Ara, Vic, Ama, NdS, San",IFERROR((VLOOKUP(D138,'Tarifario '!A:O,15,FALSE)),0),0)))))) -> 0 | K138: 0 | L138: SI | M138: 0 | N138: 0
A139: 0 | C139: 0 | J139: =+IF($F$10="",0,IF($F$10="UNICA",IFERROR((VLOOKUP(D139,'Tarifario '!A:O,11,FALSE)),0),IF($F$10="M2: Cau,VdC, Nar, Tol, Hui, Caq, Put, Vau",IFERROR((VLOOKUP(D139,'Tarifario '!A:O,12,FALSE)),0),IF($F$10="M3: Ant, Cal, Qui, Ris, Cho, Cór, Guai",IFERROR((VLOOKUP(D139,'Tarifario '!A:O,13,FALSE)),0),IF($F$10="M4: Atl, Bol, Guaj, Mag, Suc, SAnd",IFERROR((VLOOKUP(D139,'Tarifario '!A:O,14,FALSE)),0),IF($F$10="M5: Cés, Ara, Vic, Ama, NdS, San",IFERROR((VLOOKUP(D139,'Tarifario '!A:O,15,FALSE)),0),0)))))) -> 0 | K139: 0 | L139: SI | M139: 0 | N139: 0
A140: 0 | C140: 0 | J140: =+IF($F$10="",0,IF($F$10="UNICA",IFERROR((VLOOKUP(D140,'Tarifario '!A:O,11,FALSE)),0),IF($F$10="M2: Cau,VdC, Nar, Tol, Hui, Caq, Put, Vau",IFERROR((VLOOKUP(D140,'Tarifario '!A:O,12,FALSE)),0),IF($F$10="M3: Ant, Cal, Qui, Ris, Cho, Cór, Guai",IFERROR((VLOOKUP(D140,'Tarifario '!A:O,13,FALSE)),0),IF($F$10="M4: Atl, Bol, Guaj, Mag, Suc, SAnd",IFERROR((VLOOKUP(D140,'Tarifario '!A:O,14,FALSE)),0),IF($F$10="M5: Cés, Ara, Vic, Ama, NdS, San",IFERROR((VLOOKUP(D140,'Tarifario '!A:O,15,FALSE)),0),0)))))) -> 0 | K140: 0 | L140: SI | M140: 0 | N140: 0
A141: 0 | C141: 0 | J141: =+IF($F$10="",0,IF($F$10="UNICA",IFERROR((VLOOKUP(D141,'Tarifario '!A:O,11,FALSE)),0),IF($F$10="M2: Cau,VdC, Nar, Tol, Hui, Caq, Put, Vau",IFERROR((VLOOKUP(D141,'Tarifario '!A:O,12,FALSE)),0),IF($F$10="M3: Ant, Cal, Qui, Ris, Cho, Cór, Guai",IFERROR((VLOOKUP(D141,'Tarifario '!A:O,13,FALSE)),0),IF($F$10="M4: Atl, Bol, Guaj, Mag, Suc, SAnd",IFERROR((VLOOKUP(D141,'Tarifario '!A:O,14,FALSE)),0),IF($F$10="M5: Cés, Ara, Vic, Ama, NdS, San",IFERROR((VLOOKUP(D141,'Tarifario '!A:O,15,FALSE)),0),0)))))) -> 0 | K141: 0 | L141: SI | M141: 0 | N141: 0
A142: 0 | C142: 0 | J142: =+IF($F$10="",0,IF($F$10="UNICA",IFERROR((VLOOKUP(D142,'Tarifario '!A:O,11,FALSE)),0),IF($F$10="M2: Cau,VdC, Nar, Tol, Hui, Caq, Put, Vau",IFERROR((VLOOKUP(D142,'Tarifario '!A:O,12,FALSE)),0),IF($F$10="M3: Ant, Cal, Qui, Ris, Cho, Cór, Guai",IFERROR((VLOOKUP(D142,'Tarifario '!A:O,13,FALSE)),0),IF($F$10="M4: Atl, Bol, Guaj, Mag, Suc, SAnd",IFERROR((VLOOKUP(D142,'Tarifario '!A:O,14,FALSE)),0),IF($F$10="M5: Cés, Ara, Vic, Ama, NdS, San",IFERROR((VLOOKUP(D142,'Tarifario '!A:O,15,FALSE)),0),0)))))) -> 0 | K142: 0 | L142: SI | M142: 0 | N142: 0
A143: 0 | C143: 0 | J143: =+IF($F$10="",0,IF($F$10="UNICA",IFERROR((VLOOKUP(D143,'Tarifario '!A:O,11,FALSE)),0),IF($F$10="M2: Cau,VdC, Nar, Tol, Hui, Caq, Put, Vau",IFERROR((VLOOKUP(D143,'Tarifario '!A:O,12,FALSE)),0),IF($F$10="M3: Ant, Cal, Qui, Ris, Cho, Cór, Guai",IFERROR((VLOOKUP(D143,'Tarifario '!A:O,13,FALSE)),0),IF($F$10="M4: Atl, Bol, Guaj, Mag, Suc, SAnd",IFERROR((VLOOKUP(D143,'Tarifario '!A:O,14,FALSE)),0),IF($F$10="M5: Cés, Ara, Vic, Ama, NdS, San",IFERROR((VLOOKUP(D143,'Tarifario '!A:O,15,FALSE)),0),0)))))) -> 0 | K143: 0 | L143: SI | M143: 0 | N143: 0
A144: =+IF(D144="",0,1) -> 0 | C144: 0 | J144: =+IF($F$10="",0,IF($F$10="UNICA",IFERROR((VLOOKUP(D144,'Tarifario '!A:O,11,FALSE)),0),IF($F$10="M2: Cau,VdC, Nar, Tol, Hui, Caq, Put, Vau",IFERROR((VLOOKUP(D144,'Tarifario '!A:O,12,FALSE)),0),IF($F$10="M3: Ant, Cal, Qui, Ris, Cho, Cór, Guai",IFERROR((VLOOKUP(D144,'Tarifario '!A:O,13,FALSE)),0),IF($F$10="M4: Atl, Bol, Guaj, Mag, Suc, SAnd",IFERROR((VLOOKUP(D144,'Tarifario '!A:O,14,FALSE)),0),IF($F$10="M5: Cés, Ara, Vic, Ama, NdS, San",IFERROR((VLOOKUP(D144,'Tarifario '!A:O,15,FALSE)),0),0)))))) -> 0 | K144: =+J144*I144 -> 0 | L144: SI | M144: =+ROUND((IF(L144="SI",(K144*0.19),0)),0) -> 0 | N144: =+K144+M144 -> 0
A145: 0 | C145: 0 | J145: =+IF($F$10="",0,IF($F$10="UNICA",IFERROR((VLOOKUP(D145,'Tarifario '!A:O,11,FALSE)),0),IF($F$10="M2: Cau,VdC, Nar, Tol, Hui, Caq, Put, Vau",IFERROR((VLOOKUP(D145,'Tarifario '!A:O,12,FALSE)),0),IF($F$10="M3: Ant, Cal, Qui, Ris, Cho, Cór, Guai",IFERROR((VLOOKUP(D145,'Tarifario '!A:O,13,FALSE)),0),IF($F$10="M4: Atl, Bol, Guaj, Mag, Suc, SAnd",IFERROR((VLOOKUP(D145,'Tarifario '!A:O,14,FALSE)),0),IF($F$10="M5: Cés, Ara, Vic, Ama, NdS, San",IFERROR((VLOOKUP(D145,'Tarifario '!A:O,15,FALSE)),0),0)))))) -> 0 | K145: 0 | L145: SI | M145: 0 | N145: 0
A146: 0 | C146: 0 | J146: =+IF($F$10="",0,IF($F$10="UNICA",IFERROR((VLOOKUP(D146,'Tarifario '!A:O,11,FALSE)),0),IF($F$10="M2: Cau,VdC, Nar, Tol, Hui, Caq, Put, Vau",IFERROR((VLOOKUP(D146,'Tarifario '!A:O,12,FALSE)),0),IF($F$10="M3: Ant, Cal, Qui, Ris, Cho, Cór, Guai",IFERROR((VLOOKUP(D146,'Tarifario '!A:O,13,FALSE)),0),IF($F$10="M4: Atl, Bol, Guaj, Mag, Suc, SAnd",IFERROR((VLOOKUP(D146,'Tarifario '!A:O,14,FALSE)),0),IF($F$10="M5: Cés, Ara, Vic, Ama, NdS, San",IFERROR((VLOOKUP(D146,'Tarifario '!A:O,15,FALSE)),0),0)))))) -> 0 | K146: 0 | L146: SI | M146: 0 | N146: 0
A147: 0 | C147: 0 | J147: =+IF($F$10="",0,IF($F$10="UNICA",IFERROR((VLOOKUP(D147,'Tarifario '!A:O,11,FALSE)),0),IF($F$10="M2: Cau,VdC, Nar, Tol, Hui, Caq, Put, Vau",IFERROR((VLOOKUP(D147,'Tarifario '!A:O,12,FALSE)),0),IF($F$10="M3: Ant, Cal, Qui, Ris, Cho, Cór, Guai",IFERROR((VLOOKUP(D147,'Tarifario '!A:O,13,FALSE)),0),IF($F$10="M4: Atl, Bol, Guaj, Mag, Suc, SAnd",IFERROR((VLOOKUP(D147,'Tarifario '!A:O,14,FALSE)),0),IF($F$10="M5: Cés, Ara, Vic, Ama, NdS, San",IFERROR((VLOOKUP(D147,'Tarifario '!A:O,15,FALSE)),0),0)))))) -> 0 | K147: 0 | L147: SI | M147: 0 | N147: 0
A148: 0 | C148: 0 | J148: =+IF($F$10="",0,IF($F$10="UNICA",IFERROR((VLOOKUP(D148,'Tarifario '!A:O,11,FALSE)),0),IF($F$10="M2: Cau,VdC, Nar, Tol, Hui, Caq, Put, Vau",IFERROR((VLOOKUP(D148,'Tarifario '!A:O,12,FALSE)),0),IF($F$10="M3: Ant, Cal, Qui, Ris, Cho, Cór, Guai",IFERROR((VLOOKUP(D148,'Tarifario '!A:O,13,FALSE)),0),IF($F$10="M4: Atl, Bol, Guaj, Mag, Suc, SAnd",IFERROR((VLOOKUP(D148,'Tarifario '!A:O,14,FALSE)),0),IF($F$10="M5: Cés, Ara, Vic, Ama, NdS, San",IFERROR((VLOOKUP(D148,'Tarifario '!A:O,15,FALSE)),0),0)))))) -> 0 | K148: 0 | L148: SI | M148: 0 | N148: 0
A149: 0 | C149: 0 | J149: =+IF($F$10="",0,IF($F$10="UNICA",IFERROR((VLOOKUP(D149,'Tarifario '!A:O,11,FALSE)),0),IF($F$10="M2: Cau,VdC, Nar, Tol, Hui, Caq, Put, Vau",IFERROR((VLOOKUP(D149,'Tarifario '!A:O,12,FALSE)),0),IF($F$10="M3: Ant, Cal, Qui, Ris, Cho, Cór, Guai",IFERROR((VLOOKUP(D149,'Tarifario '!A:O,13,FALSE)),0),IF($F$10="M4: Atl, Bol, Guaj, Mag, Suc, SAnd",IFERROR((VLOOKUP(D149,'Tarifario '!A:O,14,FALSE)),0),IF($F$10="M5: Cés, Ara, Vic, Ama, NdS, San",IFERROR((VLOOKUP(D149,'Tarifario '!A:O,15,FALSE)),0),0)))))) -> 0 | K149: 0 | L149: SI | M149: 0 | N149: 0
A150: 0 | C150: 0 | J150: =+IF($F$10="",0,IF($F$10="UNICA",IFERROR((VLOOKUP(D150,'Tarifario '!A:O,11,FALSE)),0),IF($F$10="M2: Cau,VdC, Nar, Tol, Hui, Caq, Put, Vau",IFERROR((VLOOKUP(D150,'Tarifario '!A:O,12,FALSE)),0),IF($F$10="M3: Ant, Cal, Qui, Ris, Cho, Cór, Guai",IFERROR((VLOOKUP(D150,'Tarifario '!A:O,13,FALSE)),0),IF($F$10="M4: Atl, Bol, Guaj, Mag, Suc, SAnd",IFERROR((VLOOKUP(D150,'Tarifario '!A:O,14,FALSE)),0),IF($F$10="M5: Cés, Ara, Vic, Ama, NdS, San",IFERROR((VLOOKUP(D150,'Tarifario '!A:O,15,FALSE)),0),0)))))) -> 0 | K150: 0 | L150: SI | M150: 0 | N150: 0
A151: 0 | C151: 0 | J151: =+IF($F$10="",0,IF($F$10="UNICA",IFERROR((VLOOKUP(D151,'Tarifario '!A:O,11,FALSE)),0),IF($F$10="M2: Cau,VdC, Nar, Tol, Hui, Caq, Put, Vau",IFERROR((VLOOKUP(D151,'Tarifario '!A:O,12,FALSE)),0),IF($F$10="M3: Ant, Cal, Qui, Ris, Cho, Cór, Guai",IFERROR((VLOOKUP(D151,'Tarifario '!A:O,13,FALSE)),0),IF($F$10="M4: Atl, Bol, Guaj, Mag, Suc, SAnd",IFERROR((VLOOKUP(D151,'Tarifario '!A:O,14,FALSE)),0),IF($F$10="M5: Cés, Ara, Vic, Ama, NdS, San",IFERROR((VLOOKUP(D151,'Tarifario '!A:O,15,FALSE)),0),0)))))) -> 0 | K151: 0 | L151: SI | M151: 0 | N151: 0
A152: 0 | C152: 0 | J152: =+IF($F$10="",0,IF($F$10="UNICA",IFERROR((VLOOKUP(D152,'Tarifario '!A:O,11,FALSE)),0),IF($F$10="M2: Cau,VdC, Nar, Tol, Hui, Caq, Put, Vau",IFERROR((VLOOKUP(D152,'Tarifario '!A:O,12,FALSE)),0),IF($F$10="M3: Ant, Cal, Qui, Ris, Cho, Cór, Guai",IFERROR((VLOOKUP(D152,'Tarifario '!A:O,13,FALSE)),0),IF($F$10="M4: Atl, Bol, Guaj, Mag, Suc, SAnd",IFERROR((VLOOKUP(D152,'Tarifario '!A:O,14,FALSE)),0),IF($F$10="M5: Cés, Ara, Vic, Ama, NdS, San",IFERROR((VLOOKUP(D152,'Tarifario '!A:O,15,FALSE)),0),0)))))) -> 0 | K152: 0 | L152: SI | M152: 0 | N152: 0
A153: 0 | C153: 0 | J153: =+IF($F$10="",0,IF($F$10="UNICA",IFERROR((VLOOKUP(D153,'Tarifario '!A:O,11,FALSE)),0),IF($F$10="M2: Cau,VdC, Nar, Tol, Hui, Caq, Put, Vau",IFERROR((VLOOKUP(D153,'Tarifario '!A:O,12,FALSE)),0),IF($F$10="M3: Ant, Cal, Qui, Ris, Cho, Cór, Guai",IFERROR((VLOOKUP(D153,'Tarifario '!A:O,13,FALSE)),0),IF($F$10="M4: Atl, Bol, Guaj, Mag, Suc, SAnd",IFERROR((VLOOKUP(D153,'Tarifario '!A:O,14,FALSE)),0),IF($F$10="M5: Cés, Ara, Vic, Ama, NdS, San",IFERROR((VLOOKUP(D153,'Tarifario '!A:O,15,FALSE)),0),0)))))) -> 0 | K153: 0 | L153: SI | M153: 0 | N153: 0
A154: 0 | C154: 0 | J154: =+IF($F$10="",0,IF($F$10="UNICA",IFERROR((VLOOKUP(D154,'Tarifario '!A:O,11,FALSE)),0),IF($F$10="M2: Cau,VdC, Nar, Tol, Hui, Caq, Put, Vau",IFERROR((VLOOKUP(D154,'Tarifario '!A:O,12,FALSE)),0),IF($F$10="M3: Ant, Cal, Qui, Ris, Cho, Cór, Guai",IFERROR((VLOOKUP(D154,'Tarifario '!A:O,13,FALSE)),0),IF($F$10="M4: Atl, Bol, Guaj, Mag, Suc, SAnd",IFERROR((VLOOKUP(D154,'Tarifario '!A:O,14,FALSE)),0),IF($F$10="M5: Cés, Ara, Vic, Ama, NdS, San",IFERROR((VLOOKUP(D154,'Tarifario '!A:O,15,FALSE)),0),0)))))) -> 0 | K154: 0 | L154: SI | M154: 0 | N154: 0
A155: 0 | C155: 0 | J155: =+IF($F$10="",0,IF($F$10="UNICA",IFERROR((VLOOKUP(D155,'Tarifario '!A:O,11,FALSE)),0),IF($F$10="M2: Cau,VdC, Nar, Tol, Hui, Caq, Put, Vau",IFERROR((VLOOKUP(D155,'Tarifario '!A:O,12,FALSE)),0),IF($F$10="M3: Ant, Cal, Qui, Ris, Cho, Cór, Guai",IFERROR((VLOOKUP(D155,'Tarifario '!A:O,13,FALSE)),0),IF($F$10="M4: Atl, Bol, Guaj, Mag, Suc, SAnd",IFERROR((VLOOKUP(D155,'Tarifario '!A:O,14,FALSE)),0),IF($F$10="M5: Cés, Ara, Vic, Ama, NdS, San",IFERROR((VLOOKUP(D155,'Tarifario '!A:O,15,FALSE)),0),0)))))) -> 0 | K155: 0 | L155: SI | M155: 0 | N155: 0
A156: 0 | C156: 0 | J156: =+IF($F$10="",0,IF($F$10="UNICA",IFERROR((VLOOKUP(D156,'Tarifario '!A:O,11,FALSE)),0),IF($F$10="M2: Cau,VdC, Nar, Tol, Hui, Caq, Put, Vau",IFERROR((VLOOKUP(D156,'Tarifario '!A:O,12,FALSE)),0),IF($F$10="M3: Ant, Cal, Qui, Ris, Cho, Cór, Guai",IFERROR((VLOOKUP(D156,'Tarifario '!A:O,13,FALSE)),0),IF($F$10="M4: Atl, Bol, Guaj, Mag, Suc, SAnd",IFERROR((VLOOKUP(D156,'Tarifario '!A:O,14,FALSE)),0),IF($F$10="M5: Cés, Ara, Vic, Ama, NdS, San",IFERROR((VLOOKUP(D156,'Tarifario '!A:O,15,FALSE)),0),0)))))) -> 0 | K156: 0 | L156: SI | M156: 0 | N156: 0
A157: 0 | C157: 0 | J157: =+IF($F$10="",0,IF($F$10="UNICA",IFERROR((VLOOKUP(D157,'Tarifario '!A:O,11,FALSE)),0),IF($F$10="M2: Cau,VdC, Nar, Tol, Hui, Caq, Put, Vau",IFERROR((VLOOKUP(D157,'Tarifario '!A:O,12,FALSE)),0),IF($F$10="M3: Ant, Cal, Qui, Ris, Cho, Cór, Guai",IFERROR((VLOOKUP(D157,'Tarifario '!A:O,13,FALSE)),0),IF($F$10="M4: Atl, Bol, Guaj, Mag, Suc, SAnd",IFERROR((VLOOKUP(D157,'Tarifario '!A:O,14,FALSE)),0),IF($F$10="M5: Cés, Ara, Vic, Ama, NdS, San",IFERROR((VLOOKUP(D157,'Tarifario '!A:O,15,FALSE)),0),0)))))) -> 0 | K157: 0 | L157: SI | M157: 0 | N157: 0
A158: 0 | C158: 0 | J158: =+IF($F$10="",0,IF($F$10="UNICA",IFERROR((VLOOKUP(D158,'Tarifario '!A:O,11,FALSE)),0),IF($F$10="M2: Cau,VdC, Nar, Tol, Hui, Caq, Put, Vau",IFERROR((VLOOKUP(D158,'Tarifario '!A:O,12,FALSE)),0),IF($F$10="M3: Ant, Cal, Qui, Ris, Cho, Cór, Guai",IFERROR((VLOOKUP(D158,'Tarifario '!A:O,13,FALSE)),0),IF($F$10="M4: Atl, Bol, Guaj, Mag, Suc, SAnd",IFERROR((VLOOKUP(D158,'Tarifario '!A:O,14,FALSE)),0),IF($F$10="M5: Cés, Ara, Vic, Ama, NdS, San",IFERROR((VLOOKUP(D158,'Tarifario '!A:O,15,FALSE)),0),0)))))) -> 0 | K158: 0 | L158: SI | M158: 0 | N158: 0
A159: 0 | C159: 0 | J159: =+IF($F$10="",0,IF($F$10="UNICA",IFERROR((VLOOKUP(D159,'Tarifario '!A:O,11,FALSE)),0),IF($F$10="M2: Cau,VdC, Nar, Tol, Hui, Caq, Put, Vau",IFERROR((VLOOKUP(D159,'Tarifario '!A:O,12,FALSE)),0),IF($F$10="M3: Ant, Cal, Qui, Ris, Cho, Cór, Guai",IFERROR((VLOOKUP(D159,'Tarifario '!A:O,13,FALSE)),0),IF($F$10="M4: Atl, Bol, Guaj, Mag, Suc, SAnd",IFERROR((VLOOKUP(D159,'Tarifario '!A:O,14,FALSE)),0),IF($F$10="M5: Cés, Ara, Vic, Ama, NdS, San",IFERROR((VLOOKUP(D159,'Tarifario '!A:O,15,FALSE)),0),0)))))) -> 0 | K159: 0 | L159: SI | M159: 0 | N159: 0
A160: 0 | C160: 0 | J160: =+IF($F$10="",0,IF($F$10="UNICA",IFERROR((VLOOKUP(D160,'Tarifario '!A:O,11,FALSE)),0),IF($F$10="M2: Cau,VdC, Nar, Tol, Hui, Caq, Put, Vau",IFERROR((VLOOKUP(D160,'Tarifario '!A:O,12,FALSE)),0),IF($F$10="M3: Ant, Cal, Qui, Ris, Cho, Cór, Guai",IFERROR((VLOOKUP(D160,'Tarifario '!A:O,13,FALSE)),0),IF($F$10="M4: Atl, Bol, Guaj, Mag, Suc, SAnd",IFERROR((VLOOKUP(D160,'Tarifario '!A:O,14,FALSE)),0),IF($F$10="M5: Cés, Ara, Vic, Ama, NdS, San",IFERROR((VLOOKUP(D160,'Tarifario '!A:O,15,FALSE)),0),0)))))) -> 0 | K160: 0 | L160: SI | M160: 0 | N160: 0
A161: 0 | C161: 0 | J161: =+IF($F$10="",0,IF($F$10="UNICA",IFERROR((VLOOKUP(D161,'Tarifario '!A:O,11,FALSE)),0),IF($F$10="M2: Cau,VdC, Nar, Tol, Hui, Caq, Put, Vau",IFERROR((VLOOKUP(D161,'Tarifario '!A:O,12,FALSE)),0),IF($F$10="M3: Ant, Cal, Qui, Ris, Cho, Cór, Guai",IFERROR((VLOOKUP(D161,'Tarifario '!A:O,13,FALSE)),0),IF($F$10="M4: Atl, Bol, Guaj, Mag, Suc, SAnd",IFERROR((VLOOKUP(D161,'Tarifario '!A:O,14,FALSE)),0),IF($F$10="M5: Cés, Ara, Vic, Ama, NdS, San",IFERROR((VLOOKUP(D161,'Tarifario '!A:O,15,FALSE)),0),0)))))) -> 0 | K161: 0 | L161: SI | M161: 0 | N161: 0
A162: 0 | C162: 0 | J162: =+IF($F$10="",0,IF($F$10="UNICA",IFERROR((VLOOKUP(D162,'Tarifario '!A:O,11,FALSE)),0),IF($F$10="M2: Cau,VdC, Nar, Tol, Hui, Caq, Put, Vau",IFERROR((VLOOKUP(D162,'Tarifario '!A:O,12,FALSE)),0),IF($F$10="M3: Ant, Cal, Qui, Ris, Cho, Cór, Guai",IFERROR((VLOOKUP(D162,'Tarifario '!A:O,13,FALSE)),0),IF($F$10="M4: Atl, Bol, Guaj, Mag, Suc, SAnd",IFERROR((VLOOKUP(D162,'Tarifario '!A:O,14,FALSE)),0),IF($F$10="M5: Cés, Ara, Vic, Ama, NdS, San",IFERROR((VLOOKUP(D162,'Tarifario '!A:O,15,FALSE)),0),0)))))) -> 0 | K162: 0 | L162: SI | M162: 0 | N162: 0
A163: 0 | C163: 0 | J163: =+IF($F$10="",0,IF($F$10="UNICA",IFERROR((VLOOKUP(D163,'Tarifario '!A:O,11,FALSE)),0),IF($F$10="M2: Cau,VdC, Nar, Tol, Hui, Caq, Put, Vau",IFERROR((VLOOKUP(D163,'Tarifario '!A:O,12,FALSE)),0),IF($F$10="M3: Ant, Cal, Qui, Ris, Cho, Cór, Guai",IFERROR((VLOOKUP(D163,'Tarifario '!A:O,13,FALSE)),0),IF($F$10="M4: Atl, Bol, Guaj, Mag, Suc, SAnd",IFERROR((VLOOKUP(D163,'Tarifario '!A:O,14,FALSE)),0),IF($F$10="M5: Cés, Ara, Vic, Ama, NdS, San",IFERROR((VLOOKUP(D163,'Tarifario '!A:O,15,FALSE)),0),0)))))) -> 0 | K163: 0 | L163: SI | M163: 0 | N163: 0
A164: 0 | C164: 0 | J164: =+IF($F$10="",0,IF($F$10="UNICA",IFERROR((VLOOKUP(D164,'Tarifario '!A:O,11,FALSE)),0),IF($F$10="M2: Cau,VdC, Nar, Tol, Hui, Caq, Put, Vau",IFERROR((VLOOKUP(D164,'Tarifario '!A:O,12,FALSE)),0),IF($F$10="M3: Ant, Cal, Qui, Ris, Cho, Cór, Guai",IFERROR((VLOOKUP(D164,'Tarifario '!A:O,13,FALSE)),0),IF($F$10="M4: Atl, Bol, Guaj, Mag, Suc, SAnd",IFERROR((VLOOKUP(D164,'Tarifario '!A:O,14,FALSE)),0),IF($F$10="M5: Cés, Ara, Vic, Ama, NdS, San",IFERROR((VLOOKUP(D164,'Tarifario '!A:O,15,FALSE)),0),0)))))) -> 0 | K164: 0 | L164: SI | M164: 0 | N164: 0
A165: 0 | C165: 0 | J165: =+IF($F$10="",0,IF($F$10="UNICA",IFERROR((VLOOKUP(D165,'Tarifario '!A:O,11,FALSE)),0),IF($F$10="M2: Cau,VdC, Nar, Tol, Hui, Caq, Put, Vau",IFERROR((VLOOKUP(D165,'Tarifario '!A:O,12,FALSE)),0),IF($F$10="M3: Ant, Cal, Qui, Ris, Cho, Cór, Guai",IFERROR((VLOOKUP(D165,'Tarifario '!A:O,13,FALSE)),0),IF($F$10="M4: Atl, Bol, Guaj, Mag, Suc, SAnd",IFERROR((VLOOKUP(D165,'Tarifario '!A:O,14,FALSE)),0),IF($F$10="M5: Cés, Ara, Vic, Ama, NdS, San",IFERROR((VLOOKUP(D165,'Tarifario '!A:O,15,FALSE)),0),0)))))) -> 0 | K165: 0 | L165: SI | M165: 0 | N165: 0
A166: 0 | C166: 0 | J166: =+IF($F$10="",0,IF($F$10="UNICA",IFERROR((VLOOKUP(D166,'Tarifario '!A:O,11,FALSE)),0),IF($F$10="M2: Cau,VdC, Nar, Tol, Hui, Caq, Put, Vau",IFERROR((VLOOKUP(D166,'Tarifario '!A:O,12,FALSE)),0),IF($F$10="M3: Ant, Cal, Qui, Ris, Cho, Cór, Guai",IFERROR((VLOOKUP(D166,'Tarifario '!A:O,13,FALSE)),0),IF($F$10="M4: Atl, Bol, Guaj, Mag, Suc, SAnd",IFERROR((VLOOKUP(D166,'Tarifario '!A:O,14,FALSE)),0),IF($F$10="M5: Cés, Ara, Vic, Ama, NdS, San",IFERROR((VLOOKUP(D166,'Tarifario '!A:O,15,FALSE)),0),0)))))) -> 0 | K166: 0 | L166: SI | M166: 0 | N166: 0
A167: 0 | C167: 0 | J167: =+IF($F$10="",0,IF($F$10="UNICA",IFERROR((VLOOKUP(D167,'Tarifario '!A:O,11,FALSE)),0),IF($F$10="M2: Cau,VdC, Nar, Tol, Hui, Caq, Put, Vau",IFERROR((VLOOKUP(D167,'Tarifario '!A:O,12,FALSE)),0),IF($F$10="M3: Ant, Cal, Qui, Ris, Cho, Cór, Guai",IFERROR((VLOOKUP(D167,'Tarifario '!A:O,13,FALSE)),0),IF($F$10="M4: Atl, Bol, Guaj, Mag, Suc, SAnd",IFERROR((VLOOKUP(D167,'Tarifario '!A:O,14,FALSE)),0),IF($F$10="M5: Cés, Ara, Vic, Ama, NdS, San",IFERROR((VLOOKUP(D167,'Tarifario '!A:O,15,FALSE)),0),0)))))) -> 0 | K167: 0 | L167: SI | M167: 0 | N167: 0
A168: 0 | C168: 0 | J168: =+IF($F$10="",0,IF($F$10="UNICA",IFERROR((VLOOKUP(D168,'Tarifario '!A:O,11,FALSE)),0),IF($F$10="M2: Cau,VdC, Nar, Tol, Hui, Caq, Put, Vau",IFERROR((VLOOKUP(D168,'Tarifario '!A:O,12,FALSE)),0),IF($F$10="M3: Ant, Cal, Qui, Ris, Cho, Cór, Guai",IFERROR((VLOOKUP(D168,'Tarifario '!A:O,13,FALSE)),0),IF($F$10="M4: Atl, Bol, Guaj, Mag, Suc, SAnd",IFERROR((VLOOKUP(D168,'Tarifario '!A:O,14,FALSE)),0),IF($F$10="M5: Cés, Ara, Vic, Ama, NdS, San",IFERROR((VLOOKUP(D168,'Tarifario '!A:O,15,FALSE)),0),0)))))) -> 0 | K168: 0 | L168: SI | M168: 0 | N168: 0
A169: 0 | C169: 0 | J169: =+IF($F$10="",0,IF($F$10="UNICA",IFERROR((VLOOKUP(D169,'Tarifario '!A:O,11,FALSE)),0),IF($F$10="M2: Cau,VdC, Nar, Tol, Hui, Caq, Put, Vau",IFERROR((VLOOKUP(D169,'Tarifario '!A:O,12,FALSE)),0),IF($F$10="M3: Ant, Cal, Qui, Ris, Cho, Cór, Guai",IFERROR((VLOOKUP(D169,'Tarifario '!A:O,13,FALSE)),0),IF($F$10="M4: Atl, Bol, Guaj, Mag, Suc, SAnd",IFERROR((VLOOKUP(D169,'Tarifario '!A:O,14,FALSE)),0),IF($F$10="M5: Cés, Ara, Vic, Ama, NdS, San",IFERROR((VLOOKUP(D169,'Tarifario '!A:O,15,FALSE)),0),0)))))) -> 0 | K169: 0 | L169: SI | M169: 0 | N169: 0
A170: 0 | C170: 0 | J170: =+IF($F$10="",0,IF($F$10="UNICA",IFERROR((VLOOKUP(D170,'Tarifario '!A:O,11,FALSE)),0),IF($F$10="M2: Cau,VdC, Nar, Tol, Hui, Caq, Put, Vau",IFERROR((VLOOKUP(D170,'Tarifario '!A:O,12,FALSE)),0),IF($F$10="M3: Ant, Cal, Qui, Ris, Cho, Cór, Guai",IFERROR((VLOOKUP(D170,'Tarifario '!A:O,13,FALSE)),0),IF($F$10="M4: Atl, Bol, Guaj, Mag, Suc, SAnd",IFERROR((VLOOKUP(D170,'Tarifario '!A:O,14,FALSE)),0),IF($F$10="M5: Cés, Ara, Vic, Ama, NdS, San",IFERROR((VLOOKUP(D170,'Tarifario '!A:O,15,FALSE)),0),0)))))) -> 0 | K170: 0 | L170: SI | M170: 0 | N170: 0
A171: 0 | C171: 0 | J171: =+IF($F$10="",0,IF($F$10="UNICA",IFERROR((VLOOKUP(D171,'Tarifario '!A:O,11,FALSE)),0),IF($F$10="M2: Cau,VdC, Nar, Tol, Hui, Caq, Put, Vau",IFERROR((VLOOKUP(D171,'Tarifario '!A:O,12,FALSE)),0),IF($F$10="M3: Ant, Cal, Qui, Ris, Cho, Cór, Guai",IFERROR((VLOOKUP(D171,'Tarifario '!A:O,13,FALSE)),0),IF($F$10="M4: Atl, Bol, Guaj, Mag, Suc, SAnd",IFERROR((VLOOKUP(D171,'Tarifario '!A:O,14,FALSE)),0),IF($F$10="M5: Cés, Ara, Vic, Ama, NdS, San",IFERROR((VLOOKUP(D171,'Tarifario '!A:O,15,FALSE)),0),0)))))) -> 0 | K171: 0 | L171: SI | M171: 0 | N171: 0
A172: 0 | C172: 0 | J172: =+IF($F$10="",0,IF($F$10="UNICA",IFERROR((VLOOKUP(D172,'Tarifario '!A:O,11,FALSE)),0),IF($F$10="M2: Cau,VdC, Nar, Tol, Hui, Caq, Put, Vau",IFERROR((VLOOKUP(D172,'Tarifario '!A:O,12,FALSE)),0),IF($F$10="M3: Ant, Cal, Qui, Ris, Cho, Cór, Guai",IFERROR((VLOOKUP(D172,'Tarifario '!A:O,13,FALSE)),0),IF($F$10="M4: Atl, Bol, Guaj, Mag, Suc, SAnd",IFERROR((VLOOKUP(D172,'Tarifario '!A:O,14,FALSE)),0),IF($F$10="M5: Cés, Ara, Vic, Ama, NdS, San",IFERROR((VLOOKUP(D172,'Tarifario '!A:O,15,FALSE)),0),0)))))) -> 0 | K172: 0 | L172: SI | M172: 0 | N172: 0
A173: 0 | C173: 0 | J173: =+IF($F$10="",0,IF($F$10="UNICA",IFERROR((VLOOKUP(D173,'Tarifario '!A:O,11,FALSE)),0),IF($F$10="M2: Cau,VdC, Nar, Tol, Hui, Caq, Put, Vau",IFERROR((VLOOKUP(D173,'Tarifario '!A:O,12,FALSE)),0),IF($F$10="M3: Ant, Cal, Qui, Ris, Cho, Cór, Guai",IFERROR((VLOOKUP(D173,'Tarifario '!A:O,13,FALSE)),0),IF($F$10="M4: Atl, Bol, Guaj, Mag, Suc, SAnd",IFERROR((VLOOKUP(D173,'Tarifario '!A:O,14,FALSE)),0),IF($F$10="M5: Cés, Ara, Vic, Ama, NdS, San",IFERROR((VLOOKUP(D173,'Tarifario '!A:O,15,FALSE)),0),0)))))) -> 0 | K173: 0 | L173: SI | M173: 0 | N173: 0
A174: 0 | C174: 0 | J174: =+IF($F$10="",0,IF($F$10="UNICA",IFERROR((VLOOKUP(D174,'Tarifario '!A:O,11,FALSE)),0),IF($F$10="M2: Cau,VdC, Nar, Tol, Hui, Caq, Put, Vau",IFERROR((VLOOKUP(D174,'Tarifario '!A:O,12,FALSE)),0),IF($F$10="M3: Ant, Cal, Qui, Ris, Cho, Cór, Guai",IFERROR((VLOOKUP(D174,'Tarifario '!A:O,13,FALSE)),0),IF($F$10="M4: Atl, Bol, Guaj, Mag, Suc, SAnd",IFERROR((VLOOKUP(D174,'Tarifario '!A:O,14,FALSE)),0),IF($F$10="M5: Cés, Ara, Vic, Ama, NdS, San",IFERROR((VLOOKUP(D174,'Tarifario '!A:O,15,FALSE)),0),0)))))) -> 0 | K174: 0 | L174: SI | M174: 0 | N174: 0
A175: 0 | C175: 0 | J175: =+IF($F$10="",0,IF($F$10="UNICA",IFERROR((VLOOKUP(D175,'Tarifario '!A:O,11,FALSE)),0),IF($F$10="M2: Cau,VdC, Nar, Tol, Hui, Caq, Put, Vau",IFERROR((VLOOKUP(D175,'Tarifario '!A:O,12,FALSE)),0),IF($F$10="M3: Ant, Cal, Qui, Ris, Cho, Cór, Guai",IFERROR((VLOOKUP(D175,'Tarifario '!A:O,13,FALSE)),0),IF($F$10="M4: Atl, Bol, Guaj, Mag, Suc, SAnd",IFERROR((VLOOKUP(D175,'Tarifario '!A:O,14,FALSE)),0),IF($F$10="M5: Cés, Ara, Vic, Ama, NdS, San",IFERROR((VLOOKUP(D175,'Tarifario '!A:O,15,FALSE)),0),0)))))) -> 0 | K175: 0 | L175: SI | M175: 0 | N175: 0
A176: 0 | C176: 0 | J176: =+IF($F$10="",0,IF($F$10="UNICA",IFERROR((VLOOKUP(D176,'Tarifario '!A:O,11,FALSE)),0),IF($F$10="M2: Cau,VdC, Nar, Tol, Hui, Caq, Put, Vau",IFERROR((VLOOKUP(D176,'Tarifario '!A:O,12,FALSE)),0),IF($F$10="M3: Ant, Cal, Qui, Ris, Cho, Cór, Guai",IFERROR((VLOOKUP(D176,'Tarifario '!A:O,13,FALSE)),0),IF($F$10="M4: Atl, Bol, Guaj, Mag, Suc, SAnd",IFERROR((VLOOKUP(D176,'Tarifario '!A:O,14,FALSE)),0),IF($F$10="M5: Cés, Ara, Vic, Ama, NdS, San",IFERROR((VLOOKUP(D176,'Tarifario '!A:O,15,FALSE)),0),0)))))) -> 0 | K176: 0 | L176: SI | M176: 0 | N176: 0
A177: 0 | C177: 0 | J177: =+IF($F$10="",0,IF($F$10="UNICA",IFERROR((VLOOKUP(D177,'Tarifario '!A:O,11,FALSE)),0),IF($F$10="M2: Cau,VdC, Nar, Tol, Hui, Caq, Put, Vau",IFERROR((VLOOKUP(D177,'Tarifario '!A:O,12,FALSE)),0),IF($F$10="M3: Ant, Cal, Qui, Ris, Cho, Cór, Guai",IFERROR((VLOOKUP(D177,'Tarifario '!A:O,13,FALSE)),0),IF($F$10="M4: Atl, Bol, Guaj, Mag, Suc, SAnd",IFERROR((VLOOKUP(D177,'Tarifario '!A:O,14,FALSE)),0),IF($F$10="M5: Cés, Ara, Vic, Ama, NdS, San",IFERROR((VLOOKUP(D177,'Tarifario '!A:O,15,FALSE)),0),0)))))) -> 0 | K177: 0 | L177: SI | M177: 0 | N177: 0
A178: 0 | C178: 0 | J178: =+IF($F$10="",0,IF($F$10="UNICA",IFERROR((VLOOKUP(D178,'Tarifario '!A:O,11,FALSE)),0),IF($F$10="M2: Cau,VdC, Nar, Tol, Hui, Caq, Put, Vau",IFERROR((VLOOKUP(D178,'Tarifario '!A:O,12,FALSE)),0),IF($F$10="M3: Ant, Cal, Qui, Ris, Cho, Cór, Guai",IFERROR((VLOOKUP(D178,'Tarifario '!A:O,13,FALSE)),0),IF($F$10="M4: Atl, Bol, Guaj, Mag, Suc, SAnd",IFERROR((VLOOKUP(D178,'Tarifario '!A:O,14,FALSE)),0),IF($F$10="M5: Cés, Ara, Vic, Ama, NdS, San",IFERROR((VLOOKUP(D178,'Tarifario '!A:O,15,FALSE)),0),0)))))) -> 0 | K178: 0 | L178: SI | M178: 0 | N178: 0
A179: 0 | C179: 0 | J179: =+IF($F$10="",0,IF($F$10="UNICA",IFERROR((VLOOKUP(D179,'Tarifario '!A:O,11,FALSE)),0),IF($F$10="M2: Cau,VdC, Nar, Tol, Hui, Caq, Put, Vau",IFERROR((VLOOKUP(D179,'Tarifario '!A:O,12,FALSE)),0),IF($F$10="M3: Ant, Cal, Qui, Ris, Cho, Cór, Guai",IFERROR((VLOOKUP(D179,'Tarifario '!A:O,13,FALSE)),0),IF($F$10="M4: Atl, Bol, Guaj, Mag, Suc, SAnd",IFERROR((VLOOKUP(D179,'Tarifario '!A:O,14,FALSE)),0),IF($F$10="M5: Cés, Ara, Vic, Ama, NdS, San",IFERROR((VLOOKUP(D179,'Tarifario '!A:O,15,FALSE)),0),0)))))) -> 0 | K179: 0 | L179: SI | M179: 0 | N179: 0
A180: 0 | C180: 0 | J180: =+IF($F$10="",0,IF($F$10="UNICA",IFERROR((VLOOKUP(D180,'Tarifario '!A:O,11,FALSE)),0),IF($F$10="M2: Cau,VdC, Nar, Tol, Hui, Caq, Put, Vau",IFERROR((VLOOKUP(D180,'Tarifario '!A:O,12,FALSE)),0),IF($F$10="M3: Ant, Cal, Qui, Ris, Cho, Cór, Guai",IFERROR((VLOOKUP(D180,'Tarifario '!A:O,13,FALSE)),0),IF($F$10="M4: Atl, Bol, Guaj, Mag, Suc, SAnd",IFERROR((VLOOKUP(D180,'Tarifario '!A:O,14,FALSE)),0),IF($F$10="M5: Cés, Ara, Vic, Ama, NdS, San",IFERROR((VLOOKUP(D180,'Tarifario '!A:O,15,FALSE)),0),0)))))) -> 0 | K180: 0 | L180: SI | M180: 0 | N180: 0
A181: 0 | C181: 0 | J181: =+IF($F$10="",0,IF($F$10="UNICA",IFERROR((VLOOKUP(D181,'Tarifario '!A:O,11,FALSE)),0),IF($F$10="M2: Cau,VdC, Nar, Tol, Hui, Caq, Put, Vau",IFERROR((VLOOKUP(D181,'Tarifario '!A:O,12,FALSE)),0),IF($F$10="M3: Ant, Cal, Qui, Ris, Cho, Cór, Guai",IFERROR((VLOOKUP(D181,'Tarifario '!A:O,13,FALSE)),0),IF($F$10="M4: Atl, Bol, Guaj, Mag, Suc, SAnd",IFERROR((VLOOKUP(D181,'Tarifario '!A:O,14,FALSE)),0),IF($F$10="M5: Cés, Ara, Vic, Ama, NdS, San",IFERROR((VLOOKUP(D181,'Tarifario '!A:O,15,FALSE)),0),0)))))) -> 0 | K181: 0 | L181: SI | M181: 0 | N181: 0
A182: 0 | C182: 0 | J182: =+IF($F$10="",0,IF($F$10="UNICA",IFERROR((VLOOKUP(D182,'Tarifario '!A:O,11,FALSE)),0),IF($F$10="M2: Cau,VdC, Nar, Tol, Hui, Caq, Put, Vau",IFERROR((VLOOKUP(D182,'Tarifario '!A:O,12,FALSE)),0),IF($F$10="M3: Ant, Cal, Qui, Ris, Cho, Cór, Guai",IFERROR((VLOOKUP(D182,'Tarifario '!A:O,13,FALSE)),0),IF($F$10="M4: Atl, Bol, Guaj, Mag, Suc, SAnd",IFERROR((VLOOKUP(D182,'Tarifario '!A:O,14,FALSE)),0),IF($F$10="M5: Cés, Ara, Vic, Ama, NdS, San",IFERROR((VLOOKUP(D182,'Tarifario '!A:O,15,FALSE)),0),0)))))) -> 0 | K182: 0 | L182: SI | M182: 0 | N182: 0
A183: 0 | C183: 0 | J183: =+IF($F$10="",0,IF($F$10="UNICA",IFERROR((VLOOKUP(D183,'Tarifario '!A:O,11,FALSE)),0),IF($F$10="M2: Cau,VdC, Nar, Tol, Hui, Caq, Put, Vau",IFERROR((VLOOKUP(D183,'Tarifario '!A:O,12,FALSE)),0),IF($F$10="M3: Ant, Cal, Qui, Ris, Cho, Cór, Guai",IFERROR((VLOOKUP(D183,'Tarifario '!A:O,13,FALSE)),0),IF($F$10="M4: Atl, Bol, Guaj, Mag, Suc, SAnd",IFERROR((VLOOKUP(D183,'Tarifario '!A:O,14,FALSE)),0),IF($F$10="M5: Cés, Ara, Vic, Ama, NdS, San",IFERROR((VLOOKUP(D183,'Tarifario '!A:O,15,FALSE)),0),0)))))) -> 0 | K183: 0 | L183: SI | M183: 0 | N183: 0
A184: 0 | C184: 0 | J184: =+IF($F$10="",0,IF($F$10="UNICA",IFERROR((VLOOKUP(D184,'Tarifario '!A:O,11,FALSE)),0),IF($F$10="M2: Cau,VdC, Nar, Tol, Hui, Caq, Put, Vau",IFERROR((VLOOKUP(D184,'Tarifario '!A:O,12,FALSE)),0),IF($F$10="M3: Ant, Cal, Qui, Ris, Cho, Cór, Guai",IFERROR((VLOOKUP(D184,'Tarifario '!A:O,13,FALSE)),0),IF($F$10="M4: Atl, Bol, Guaj, Mag, Suc, SAnd",IFERROR((VLOOKUP(D184,'Tarifario '!A:O,14,FALSE)),0),IF($F$10="M5: Cés, Ara, Vic, Ama, NdS, San",IFERROR((VLOOKUP(D184,'Tarifario '!A:O,15,FALSE)),0),0)))))) -> 0 | K184: 0 | L184: SI | M184: 0 | N184: 0
A185: 0 | C185: 0 | J185: =+IF($F$10="",0,IF($F$10="UNICA",IFERROR((VLOOKUP(D185,'Tarifario '!A:O,11,FALSE)),0),IF($F$10="M2: Cau,VdC, Nar, Tol, Hui, Caq, Put, Vau",IFERROR((VLOOKUP(D185,'Tarifario '!A:O,12,FALSE)),0),IF($F$10="M3: Ant, Cal, Qui, Ris, Cho, Cór, Guai",IFERROR((VLOOKUP(D185,'Tarifario '!A:O,13,FALSE)),0),IF($F$10="M4: Atl, Bol, Guaj, Mag, Suc, SAnd",IFERROR((VLOOKUP(D185,'Tarifario '!A:O,14,FALSE)),0),IF($F$10="M5: Cés, Ara, Vic, Ama, NdS, San",IFERROR((VLOOKUP(D185,'Tarifario '!A:O,15,FALSE)),0),0)))))) -> 0 | K185: 0 | L185: SI | M185: 0 | N185: 0
A186: 0 | C186: 0 | J186: =+IF($F$10="",0,IF($F$10="UNICA",IFERROR((VLOOKUP(D186,'Tarifario '!A:O,11,FALSE)),0),IF($F$10="M2: Cau,VdC, Nar, Tol, Hui, Caq, Put, Vau",IFERROR((VLOOKUP(D186,'Tarifario '!A:O,12,FALSE)),0),IF($F$10="M3: Ant, Cal, Qui, Ris, Cho, Cór, Guai",IFERROR((VLOOKUP(D186,'Tarifario '!A:O,13,FALSE)),0),IF($F$10="M4: Atl, Bol, Guaj, Mag, Suc, SAnd",IFERROR((VLOOKUP(D186,'Tarifario '!A:O,14,FALSE)),0),IF($F$10="M5: Cés, Ara, Vic, Ama, NdS, San",IFERROR((VLOOKUP(D186,'Tarifario '!A:O,15,FALSE)),0),0)))))) -> 0 | K186: 0 | L186: SI | M186: 0 | N186: 0
A187: 0 | C187: 0 | J187: =+IF($F$10="",0,IF($F$10="UNICA",IFERROR((VLOOKUP(D187,'Tarifario '!A:O,11,FALSE)),0),IF($F$10="M2: Cau,VdC, Nar, Tol, Hui, Caq, Put, Vau",IFERROR((VLOOKUP(D187,'Tarifario '!A:O,12,FALSE)),0),IF($F$10="M3: Ant, Cal, Qui, Ris, Cho, Cór, Guai",IFERROR((VLOOKUP(D187,'Tarifario '!A:O,13,FALSE)),0),IF($F$10="M4: Atl, Bol, Guaj, Mag, Suc, SAnd",IFERROR((VLOOKUP(D187,'Tarifario '!A:O,14,FALSE)),0),IF($F$10="M5: Cés, Ara, Vic, Ama, NdS, San",IFERROR((VLOOKUP(D187,'Tarifario '!A:O,15,FALSE)),0),0)))))) -> 0 | K187: 0 | L187: SI | M187: 0 | N187: 0
A188: 0 | C188: 0 | J188: =+IF($F$10="",0,IF($F$10="UNICA",IFERROR((VLOOKUP(D188,'Tarifario '!A:O,11,FALSE)),0),IF($F$10="M2: Cau,VdC, Nar, Tol, Hui, Caq, Put, Vau",IFERROR((VLOOKUP(D188,'Tarifario '!A:O,12,FALSE)),0),IF($F$10="M3: Ant, Cal, Qui, Ris, Cho, Cór, Guai",IFERROR((VLOOKUP(D188,'Tarifario '!A:O,13,FALSE)),0),IF($F$10="M4: Atl, Bol, Guaj, Mag, Suc, SAnd",IFERROR((VLOOKUP(D188,'Tarifario '!A:O,14,FALSE)),0),IF($F$10="M5: Cés, Ara, Vic, Ama, NdS, San",IFERROR((VLOOKUP(D188,'Tarifario '!A:O,15,FALSE)),0),0)))))) -> 0 | K188: 0 | L188: SI | M188: 0 | N188: 0
A189: 0 | C189: 0 | J189: =+IF($F$10="",0,IF($F$10="UNICA",IFERROR((VLOOKUP(D189,'Tarifario '!A:O,11,FALSE)),0),IF($F$10="M2: Cau,VdC, Nar, Tol, Hui, Caq, Put, Vau",IFERROR((VLOOKUP(D189,'Tarifario '!A:O,12,FALSE)),0),IF($F$10="M3: Ant, Cal, Qui, Ris, Cho, Cór, Guai",IFERROR((VLOOKUP(D189,'Tarifario '!A:O,13,FALSE)),0),IF($F$10="M4: Atl, Bol, Guaj, Mag, Suc, SAnd",IFERROR((VLOOKUP(D189,'Tarifario '!A:O,14,FALSE)),0),IF($F$10="M5: Cés, Ara, Vic, Ama, NdS, San",IFERROR((VLOOKUP(D189,'Tarifario '!A:O,15,FALSE)),0),0)))))) -> 0 | K189: 0 | L189: SI | M189: 0 | N189: 0
A190: 0 | C190: 0 | J190: =+IF($F$10="",0,IF($F$10="UNICA",IFERROR((VLOOKUP(D190,'Tarifario '!A:O,11,FALSE)),0),IF($F$10="M2: Cau,VdC, Nar, Tol, Hui, Caq, Put, Vau",IFERROR((VLOOKUP(D190,'Tarifario '!A:O,12,FALSE)),0),IF($F$10="M3: Ant, Cal, Qui, Ris, Cho, Cór, Guai",IFERROR((VLOOKUP(D190,'Tarifario '!A:O,13,FALSE)),0),IF($F$10="M4: Atl, Bol, Guaj, Mag, Suc, SAnd",IFERROR((VLOOKUP(D190,'Tarifario '!A:O,14,FALSE)),0),IF($F$10="M5: Cés, Ara, Vic, Ama, NdS, San",IFERROR((VLOOKUP(D190,'Tarifario '!A:O,15,FALSE)),0),0)))))) -> 0 | K190: 0 | L190: SI | M190: 0 | N190: 0
A191: 0 | C191: 0 | J191: =+IF($F$10="",0,IF($F$10="UNICA",IFERROR((VLOOKUP(D191,'Tarifario '!A:O,11,FALSE)),0),IF($F$10="M2: Cau,VdC, Nar, Tol, Hui, Caq, Put, Vau",IFERROR((VLOOKUP(D191,'Tarifario '!A:O,12,FALSE)),0),IF($F$10="M3: Ant, Cal, Qui, Ris, Cho, Cór, Guai",IFERROR((VLOOKUP(D191,'Tarifario '!A:O,13,FALSE)),0),IF($F$10="M4: Atl, Bol, Guaj, Mag, Suc, SAnd",IFERROR((VLOOKUP(D191,'Tarifario '!A:O,14,FALSE)),0),IF($F$10="M5: Cés, Ara, Vic, Ama, NdS, San",IFERROR((VLOOKUP(D191,'Tarifario '!A:O,15,FALSE)),0),0)))))) -> 0 | K191: 0 | L191: SI | M191: 0 | N191: 0
A192: 0 | C192: 0 | J192: =+IF($F$10="",0,IF($F$10="UNICA",IFERROR((VLOOKUP(D192,'Tarifario '!A:O,11,FALSE)),0),IF($F$10="M2: Cau,VdC, Nar, Tol, Hui, Caq, Put, Vau",IFERROR((VLOOKUP(D192,'Tarifario '!A:O,12,FALSE)),0),IF($F$10="M3: Ant, Cal, Qui, Ris, Cho, Cór, Guai",IFERROR((VLOOKUP(D192,'Tarifario '!A:O,13,FALSE)),0),IF($F$10="M4: Atl, Bol, Guaj, Mag, Suc, SAnd",IFERROR((VLOOKUP(D192,'Tarifario '!A:O,14,FALSE)),0),IF($F$10="M5: Cés, Ara, Vic, Ama, NdS, San",IFERROR((VLOOKUP(D192,'Tarifario '!A:O,15,FALSE)),0),0)))))) -> 0 | K192: 0 | L192: SI | M192: 0 | N192: 0
A193: 0 | C193: 0 | J193: =+IF($F$10="",0,IF($F$10="UNICA",IFERROR((VLOOKUP(D193,'Tarifario '!A:O,11,FALSE)),0),IF($F$10="M2: Cau,VdC, Nar, Tol, Hui, Caq, Put, Vau",IFERROR((VLOOKUP(D193,'Tarifario '!A:O,12,FALSE)),0),IF($F$10="M3: Ant, Cal, Qui, Ris, Cho, Cór, Guai",IFERROR((VLOOKUP(D193,'Tarifario '!A:O,13,FALSE)),0),IF($F$10="M4: Atl, Bol, Guaj, Mag, Suc, SAnd",IFERROR((VLOOKUP(D193,'Tarifario '!A:O,14,FALSE)),0),IF($F$10="M5: Cés, Ara, Vic, Ama, NdS, San",IFERROR((VLOOKUP(D193,'Tarifario '!A:O,15,FALSE)),0),0)))))) -> 0 | K193: 0 | L193: SI | M193: 0 | N193: 0
A194: 0 | C194: 0 | J194: =+IF($F$10="",0,IF($F$10="UNICA",IFERROR((VLOOKUP(D194,'Tarifario '!A:O,11,FALSE)),0),IF($F$10="M2: Cau,VdC, Nar, Tol, Hui, Caq, Put, Vau",IFERROR((VLOOKUP(D194,'Tarifario '!A:O,12,FALSE)),0),IF($F$10="M3: Ant, Cal, Qui, Ris, Cho, Cór, Guai",IFERROR((VLOOKUP(D194,'Tarifario '!A:O,13,FALSE)),0),IF($F$10="M4: Atl, Bol, Guaj, Mag, Suc, SAnd",IFERROR((VLOOKUP(D194,'Tarifario '!A:O,14,FALSE)),0),IF($F$10="M5: Cés, Ara, Vic, Ama, NdS, San",IFERROR((VLOOKUP(D194,'Tarifario '!A:O,15,FALSE)),0),0)))))) -> 0 | K194: 0 | L194: SI | M194: 0 | N194: 0
A195: 0 | C195: 0 | J195: =+IF($F$10="",0,IF($F$10="UNICA",IFERROR((VLOOKUP(D195,'Tarifario '!A:O,11,FALSE)),0),IF($F$10="M2: Cau,VdC, Nar, Tol, Hui, Caq, Put, Vau",IFERROR((VLOOKUP(D195,'Tarifario '!A:O,12,FALSE)),0),IF($F$10="M3: Ant, Cal, Qui, Ris, Cho, Cór, Guai",IFERROR((VLOOKUP(D195,'Tarifario '!A:O,13,FALSE)),0),IF($F$10="M4: Atl, Bol, Guaj, Mag, Suc, SAnd",IFERROR((VLOOKUP(D195,'Tarifario '!A:O,14,FALSE)),0),IF($F$10="M5: Cés, Ara, Vic, Ama, NdS, San",IFERROR((VLOOKUP(D195,'Tarifario '!A:O,15,FALSE)),0),0)))))) -> 0 | K195: 0 | L195: SI | M195: 0 | N195: 0
A196: 0 | C196: 0 | J196: =+IF($F$10="",0,IF($F$10="UNICA",IFERROR((VLOOKUP(D196,'Tarifario '!A:O,11,FALSE)),0),IF($F$10="M2: Cau,VdC, Nar, Tol, Hui, Caq, Put, Vau",IFERROR((VLOOKUP(D196,'Tarifario '!A:O,12,FALSE)),0),IF($F$10="M3: Ant, Cal, Qui, Ris, Cho, Cór, Guai",IFERROR((VLOOKUP(D196,'Tarifario '!A:O,13,FALSE)),0),IF($F$10="M4: Atl, Bol, Guaj, Mag, Suc, SAnd",IFERROR((VLOOKUP(D196,'Tarifario '!A:O,14,FALSE)),0),IF($F$10="M5: Cés, Ara, Vic, Ama, NdS, San",IFERROR((VLOOKUP(D196,'Tarifario '!A:O,15,FALSE)),0),0)))))) -> 0 | K196: 0 | L196: SI | M196: 0 | N196: 0
A197: 0 | C197: 0 | J197: =+IF($F$10="",0,IF($F$10="UNICA",IFERROR((VLOOKUP(D197,'Tarifario '!A:O,11,FALSE)),0),IF($F$10="M2: Cau,VdC, Nar, Tol, Hui, Caq, Put, Vau",IFERROR((VLOOKUP(D197,'Tarifario '!A:O,12,FALSE)),0),IF($F$10="M3: Ant, Cal, Qui, Ris, Cho, Cór, Guai",IFERROR((VLOOKUP(D197,'Tarifario '!A:O,13,FALSE)),0),IF($F$10="M4: Atl, Bol, Guaj, Mag, Suc, SAnd",IFERROR((VLOOKUP(D197,'Tarifario '!A:O,14,FALSE)),0),IF($F$10="M5: Cés, Ara, Vic, Ama, NdS, San",IFERROR((VLOOKUP(D197,'Tarifario '!A:O,15,FALSE)),0),0)))))) -> 0 | K197: 0 | L197: SI | M197: 0 | N197: 0
A198: 0 | C198: 0 | J198: =+IF($F$10="",0,IF($F$10="UNICA",IFERROR((VLOOKUP(D198,'Tarifario '!A:O,11,FALSE)),0),IF($F$10="M2: Cau,VdC, Nar, Tol, Hui, Caq, Put, Vau",IFERROR((VLOOKUP(D198,'Tarifario '!A:O,12,FALSE)),0),IF($F$10="M3: Ant, Cal, Qui, Ris, Cho, Cór, Guai",IFERROR((VLOOKUP(D198,'Tarifario '!A:O,13,FALSE)),0),IF($F$10="M4: Atl, Bol, Guaj, Mag, Suc, SAnd",IFERROR((VLOOKUP(D198,'Tarifario '!A:O,14,FALSE)),0),IF($F$10="M5: Cés, Ara, Vic, Ama, NdS, San",IFERROR((VLOOKUP(D198,'Tarifario '!A:O,15,FALSE)),0),0)))))) -> 0 | K198: 0 | L198: SI | M198: 0 | N198: 0
A199: 0 | C199: 0 | J199: =+IF($F$10="",0,IF($F$10="UNICA",IFERROR((VLOOKUP(D199,'Tarifario '!A:O,11,FALSE)),0),IF($F$10="M2: Cau,VdC, Nar, Tol, Hui, Caq, Put, Vau",IFERROR((VLOOKUP(D199,'Tarifario '!A:O,12,FALSE)),0),IF($F$10="M3: Ant, Cal, Qui, Ris, Cho, Cór, Guai",IFERROR((VLOOKUP(D199,'Tarifario '!A:O,13,FALSE)),0),IF($F$10="M4: Atl, Bol, Guaj, Mag, Suc, SAnd",IFERROR((VLOOKUP(D199,'Tarifario '!A:O,14,FALSE)),0),IF($F$10="M5: Cés, Ara, Vic, Ama, NdS, San",IFERROR((VLOOKUP(D199,'Tarifario '!A:O,15,FALSE)),0),0)))))) -> 0 | K199: 0 | L199: SI | M199: 0 | N199: 0
A200: 0 | C200: 0 | J200: =+IF($F$10="",0,IF($F$10="UNICA",IFERROR((VLOOKUP(D200,'Tarifario '!A:O,11,FALSE)),0),IF($F$10="M2: Cau,VdC, Nar, Tol, Hui, Caq, Put, Vau",IFERROR((VLOOKUP(D200,'Tarifario '!A:O,12,FALSE)),0),IF($F$10="M3: Ant, Cal, Qui, Ris, Cho, Cór, Guai",IFERROR((VLOOKUP(D200,'Tarifario '!A:O,13,FALSE)),0),IF($F$10="M4: Atl, Bol, Guaj, Mag, Suc, SAnd",IFERROR((VLOOKUP(D200,'Tarifario '!A:O,14,FALSE)),0),IF($F$10="M5: Cés, Ara, Vic, Ama, NdS, San",IFERROR((VLOOKUP(D200,'Tarifario '!A:O,15,FALSE)),0),0)))))) -> 0 | K200: 0 | L200: SI | M200: 0 | N200: 0
... 373 more rows

Sheet pdf (2) (hidden)
D2: PROCESO DE ADQUISICION DE BIENES Y SERVICIO SOLICITUD DE SERVICIO - CERTIFICACIÓN DE EJECUCIÓN Y CIERRE | G2: F2.P4.ABS | H2: =+Registro!AA3 -> 2026-05-13
G3: =+Registro!X5 -> Versión 13
G4: Clasificación de la Información: CLASIFICADA
C5: # De solicitud | D5: Nombre del evento: | E5: =+Registro!S8 -> 0 | G5: # de Participantes: | H5: =+Registro!Y16 -> 0
C6: =+PPTO!F6 -> 0
D7: Tipo de solicitud: | E7: =+Registro!I8 -> 0 | F7: Fecha inicio: | G7: =+Registro!S12 -> 00:00:00
D8: Fecha de solicitud: | E8: =+Registro!I10 -> 00:00:00 | F8: Fecha fin: | G8: =+Registro!S14 -> 00:00:00
D9: Dependencia / Regional: | E9: =+Registro!I12 -> 0 | F9: Hora inicio: | G9: =+Registro!X12 -> 00:00:00
D10: Nombres enlace del evento: | E10: =+Registro!I14 -> 0 | F10: Hora fin: | G10: =+Registro!X14 -> 00:00:00
D11: Teléfono de Contacto: | E11: =+Registro!I16 -> 0 | F11: Ciudad del Evento : | G11: =+Registro!S16 -> 0
D12: Correo Institucional: | E12: =+Registro!I18 -> 0 | F12: Lugar de Realización: | G12: =+Registro!S18 -> 0
D13: Jefe o Director Area / Regional: | E13: =+Registro!I20 -> 0 | F13: Objetivo del Evento: | G13: =+Registro!S20 -> 0
D14: Cargo: | E14: =+Registro!I22 -> 0
D15: Macroregión: | E15: =+PPTO!F10 -> UNICA | F15: Operador: | G15: =+IFERROR((VLOOKUP(E15,Parametros!I2:J6,2,FALSE)),"") -> PUBBLICA S.A.S
D18: Servicios requeridos - items tarifario (IVA incluido): | F18: =+PPTO!N8 -> 0
D19: ítems no previstos en tarifario (IVA incluido): | F19: =+PPTO!N9 -> 0
D20: Comisión de admon.: | F20: =+PPTO!K10 -> 0
D21: IVA Comisión de admon.: | F21: =+PPTO!M10 -> 0
D22: Valor Total Evento: | F22: =+PPTO!N11 -> 0
E23: Valor No Ejecutado: | F23: 0
E24: ANS: | F24: 0
E25: Valor Total Final Evento: | F25: =+F22-F24-F23 -> 0
D26: En mi calidad Director o Jefe del area solicitante, Certifico la ejecución del evento, así como también el cumplimiento de los servicios requeridos y estipulados en la documentación adjunta y, en consecuencia, presento mi visto bueno para que se adelanten los trámites tendientes al pago de los servicios realmente prestados.
D30: OBSERVACIONES:
D38: =+"Se firma a los ____"&" dias del mes de ________________"&" del año "&YEAR(TODAY())&"." -> Se firma a los ____ dias del mes de ________________ del año 2026.
C41: Nombre y Apellidos | E41: Cargo | F41: Dependencia / Regional | G41: Firma
C42: =+E13 -> 0 | E42: =+E14 -> 0 | F42: =+E9 -> 0
C43: Firma Cambio Director o Encargado Por Resolución:
